Workbook

Sheet GAAR 2008-12 Data Inputs
A1: Multinet
A3: Multinet GAAR 2008 Revenue Model Further Final Decision.xls
A5: REGULATORY ASSET BASE
B7: 1998-01-01
A8: Opening RAB $m (1/7/06) | B8: 920.1822407
A11: Regulatory Asset Base
A12: $m (1/7/06) | B12: 1998 | C12: 1999 | D12: 2000 | E12: 2001 | F12: 2002 | G12: 2003 | H12: 2004 | I12: 2005 | J12: 2006 | K12: 2007 | L12: 2008 | M12: =L12+1 -> 2009 | N12: =M12+1 -> 2010 | O12: =N12+1 -> 2011 | P12: =O12+1 -> 2012
A13: Opening RAB | B13: =B8 -> 920.1822407 | C13: =B18 -> 921.7034917 | D13: 919.3269361 | E13: 895.5623421 | F13: 889.56875 | G13: 889.5481777 | H13: 881.43277 | I13: 875.4529386 | J13: 866.9204159 | K13: 860.8296441 | L13: =K18+K19 -> 905.9781306 | M13: =L18 -> 904.220404 | N13: =M18 -> 922.8657577 | O13: =N18 -> 924.3626522 | P13: =O18 -> 920.2443667
A14: Gross Capex | B14: 34.03976608 | C14: 31.86183017 | D14: 27.79918963 | E14: 29.7540107 | F14: 37.17598982 | G14: 31.16636497 | H14: 36.04921145 | I14: 38.66058485 | J14: 42.31231416 | K14: 54.61909267 | L14: 46.97964283 | M14: 67.54301065 | N14: 47.75153433 | O14: 42.64162463 | P14: 41.31695758
A15: Surcharges (Customer Contributions) | B15: 1.251461988 | C15: 1.852431987 | D15: 1.335332253 | E15: 1.487700535 | F15: 2.095463124 | G15: 2.890328809 | H15: 3.463267419 | I15: 7.254070151 | J15: 6.976348 | K15: 2.626457438 | L15: 7.70545237 | M15: 5.615803202 | N15: 1.464454921 | O15: 1.442669504 | P15: 1.691261092
A16: Proceeds from Disposals | B16: 0.1251461988 | C16: 0.1234954658 | D16: 16.87374392 | E16: 0 | F16: 0 | G16: 0 | H16: 0 | I16: 0 | J16: 0 | K16: 0 | L16: 0 | M16: 0 | N16: 0 | O16: 0 | P16: 0
A17: Regulatory Depreciation | B17: 31.14190688 | C17: 32.26245829 | D17: 33.35470751 | E17: 34.25990225 | F17: 35.10109897 | G17: 36.39144385 | H17: 38.5657754 | I17: 39.93903743 | J17: 41.42673797 | K17: 42.8 | L17: 41.03191708 | M17: 43.28185374 | N17: 44.79018495 | O17: 45.31724062 | P17: 45.84754116
A18: Closing RAB | B18: =B13+B14-B15-B16-B17 -> 921.7034917 | C18: 919.3269361 | D18: 895.5623421 | E18: 889.56875 | F18: 889.5481777 | G18: 881.43277 | H18: 875.4529386 | I18: 866.9204159 | J18: 860.8296441 | K18: 870.0222793 | L18: 904.220404 | M18: 922.8657577 | N18: 924.3626522 | O18: 920.2443667 | P18: 914.022522
A19: Gas Extensions - Amounts Rolled into RAB 1/1/2008 | K19: =H150 -> 35.95585128
A22: CAPITAL EXPENDITURE - FORECAST | B22: 2012
A23: ($m 1/7/2006)
A24: RAB
A25: Categories
A26: Mains & Services | B26: 34.95982545
A27: Meters | B27: 4.18185277
A28: Land & Buildings | B28: 0
A29: SCADA | B29: 0.2090182717
A30: Computer Equipment | B30: 0.275
A31: Other Assets | B31: 0
A32: Net Capex | B32: =SUM(B26:B31) -> 39.62569649
A34: Surcharges (Customer Contributions) | B34: 1.691261092
A36: Gross Capex | B36: =SUM(B32,B34) -> 41.31695758
A40: REGULATED TAX ASSET VALUE (MOD)
A42: Depn Method - Straight Line | C42: Opening Bal. | D42: Actual Capex - Nominal
A43: Asset Class | B43: Depn Life | C43: 1996 | D43: 1996 | E43: 1997 | F43: 1998 | G43: 1999 | H43: 2000 | I43: 2001 | J43: 2002 | K43: 2003 | L43: 2004 | M43: 2005 | N43: 2006
A44: Land & Buildings | B44: 40 | C44: 13.727 | D44: 0 | E44: 0.1 | F44: 0 | G44: 0 | H44: 0 | I44: 0 | J44: 0 | K44: 0 | L44: 0 | M44: 0 | N44: 0
A48: Depn Method - Fully Deductible
A49: Asset Class
A50: Repairs
A53: Depn Method - Declining Balance
A54: Group 1 | B54: 1996 Opening Tax Value
A55: Group 2 | B55: Capex 1996 to 1999 PRE BTR
A56: Group 3 | B56: Capex 1999 to 2002 Post BTR
A57: Group 4 | B57: Capex 2002 to 2006
A58: Group 5 | B58: Capex 2006 to 2007
A59: Group 6 | B59: Capex 2008 onwards
A61: Asset Class | B61: Depn Life | C61: Tax Depn Rate | D61: 2007 Opening Balance
A62: Mains & Services
A63: Group 1 | B63: 7.5 | C63: =1/B63*1.5 -> 0.2 | D63: 50.78261957
A64: Group 2 | B64: 7.5 | C64: =1/B64*1.5 -> 0.2 | D64: 9.602674459
C65: =C64 -> 0.2 | D65: =SUM(D63:D64) -> 60.38529402
A67: Group 3 | B67: 50 | C67: =1/B67*1.5 -> 0.03 | D67: 35.17216908
A69: Group 4 | B69: 20 | C69: =1/B69*1.5 -> 0.075 | D69: 99.29436346
A71: Group 5 | B71: 20 | C71: =1/B71*2 -> 0.1 | D71: 30.06701415
A72: Group 6 | B72: 20 | C72: =1/B72*2 -> 0.1 | D72: 0
C73: =C72 -> 0.1 | D73: =SUM(D71:D72) -> 30.06701415
A75: Mains & Services - Total | D75: =SUM(D65,D67,D69,D73) -> 224.9188407
A78: Asset Class | B78: Depn Life | C78: Tax Depn Rate | D78: 2007 Opening Balance
A79: Meters
A80: Group 3 | B80: 4 | C80: =1/B80*1.5 -> 0.375 | D80: 0.6316781997
A81: Group 4 | B81: 4 | C81: =1/B81*1.5 -> 0.375 | D81: 3.714718162
A82: Group 5 | B82: 4 | C82: =1/B82*1.5 -> 0.375 | D82: 0.9870429489
A83: Meters - Total | C83: =C82 -> 0.375 | D83: =SUM(D80:D82) -> 5.33343931
A86: Asset Class | B86: Depn Life | C86: Tax Depn Rate | D86: 2007 Opening Balance
A87: Meters Domestic
A88: Group 6 | B88: 4 | C88: =1/B88*1.5 -> 0.375 | D88: 0
A89: Meters Domestic - Total | C89: =C88 -> 0.375 | D89: =SUM(D88) -> 0
A92: Asset Class | B92: Depn Life | C92: Tax Depn Rate | D92: 2007 Opening Balance
A93: Meters Industrial & Commercial
A94: Group 6 | B94: 15 | C94: =1/B94*2 -> 0.1333333333 | D94: 0
A95: Meters Domestic - Total | C95: =C94 -> 0.1333333333 | D95: =SUM(D94) -> 0
A98: Asset Class | B98: Depn Life | C98: Tax Depn Rate | D98: 2007 Opening Balance
A99: Other Assets
A100: Group 1 | B100: 5 | C100: =1/B100*1.5 -> 0.3 | D100: 0.09123950543
A101: Group 2 | B101: 5 | C101: =1/B101*1.5 -> 0.3 | D101: 0.4854720102
C102: =C101 -> 0.3 | D102: =SUM(D100:D101) -> 0.5767115156
A104: Group 3 | B104: 10 | C104: =1/B104*1.5 -> 0.15 | D104: 8.680155338
A105: Group 4 | B105: 10 | C105: =1/B105*1.5 -> 0.15 | D105: 10.02702842
C106: =C105 -> 0.15 | D106: =SUM(D104:D105) -> 18.70718376
A108: Group 5 | B108: 10 | C108: =1/B108*2 -> 0.2 | D108: 0.4938706295
A109: Group 6 | B109: 10 | C109: =1/B109*2 -> 0.2 | D109: 0
C110: =C109 -> 0.2 | D110: =SUM(D108:D109) -> 0.4938706295
A112: Other Assets - Total | D112: =SUM(D102,D106,D110) -> 19.77776591
A116: Total Opening Tax Asset Value | D116: =SUM(D75,D83,D89,D95,D112) -> 250.0300459
A119: Gas Extensions - Gross Capex
A120: ($m 1/7/2006)
A121: Asset Class | B121: 2007
A122: Mains & Services | B122: 27.87068069
A123: Meters | B123: 0
A124: Land & Buildings | B124: 0
A125: Other Assets | B125: 0
A126: Repairs | B126: 0
B127: =SUM(B122:B126) -> 27.87068069
A131: Forecast Gross Capex Real $ 2006 ($m) | B131: 2012
A132: Asset Class
A133: Mains & Services | B133: 36.65108654
A134: Meters Domestic | B134: 2.38651212
A135: Meters Industrial & Commercial | B135: 1.79534065
A136: Land & Buildings | B136: 0
A137: Other Assets | B137: 0.4840182717
A138: Repairs | B138: 0
B139: =SUM(B133:B138) -> 41.31695758
A140: Check | B140: =ABS(B139-B36) -> 0
A144: Gas Extensions - Amounts Rolled into RAB 1/1/2008
C145: 2003 | D145: 2004 | E145: 2005 | F145: 2006 | G145: 2007 | H145: Total
A146: ($m 1/7/2006)
A147: Gross Capex | C147: 0 | D147: 0 | E147: 9.541186787 | F147: 9.36465776 | G147: 27.87068069 | H147: =SUM(C147:G147) -> 46.77652524
A148: Capital Contributions | C148: 0 | D148: 0 | E148: -0.2035011777 | F148: -1.011823 | G148: -11.37429469 | H148: =SUM(C148:G148) -> -12.58961886
A149: Economic Depreciation | H149: 1.768944912
A150: Gas Extensions - Amount Rolled into RAB 1/1/2008 | H150: =SUM(H147:H149) -> 35.95585128

Sheet BM Capex 2012 adjust for Growth
A1: ='GAAR 2008-12 Data Inputs'!$A$1 -> Multinet
B2: BM Adjusted for Growth | D2: BM Growth Adjustments | F2: GAAR 2008-12 Benchmark
A3: RAB | B3: (Real $ 2012) | D3: (Real $ 2012) | F3: (Real $ 2012) | G3: (Real $ 2006)
A4: Gross Capex $m | B4: 2012 | D4: 2012 | F4: 2012 | G4: 2012
A5: Transmission and distribution | B5: =SUM(D$5,F$5)*'Actual Data Inputs'!F15/SUM('Actual Data Inputs'!F$15:F$18) -> 27.07605808 | D5: =B62+B41*B97+B50*B98 -> -3.276186213 | F5: =G5*'Actual Data Inputs'!$L$9 -> 43.8932238 | G5: =SUM('GAAR 2008-12 Data Inputs'!B26,'GAAR 2008-12 Data Inputs'!B34) -> 36.65108654
A6: Services | B6: =SUM(D$5,F$5)*'Actual Data Inputs'!F16/SUM('Actual Data Inputs'!F$15:F$18) -> 12.11248264
A7: Cathodic Protection | B7: =SUM(D$5,F$5)*'Actual Data Inputs'!F17/SUM('Actual Data Inputs'!F$15:F$18) -> 0.1453988874
A8: Suppy Regs/Valve stations | B8: =SUM(D$5,F$5)*'Actual Data Inputs'!F18/SUM('Actual Data Inputs'!F$15:F$18) -> 1.283097974
A9: Meters | B9: =SUM(F9,D9) -> 6.435821779 | D9: =SUM(D21:D22) -> 1.427648301 | F9: =G9*'Actual Data Inputs'!$L$9 -> 5.008173478 | G9: ='GAAR 2008-12 Data Inputs'!B27 -> 4.18185277
A10: Land and buildings | B10: 0 | F10: =G10*'Actual Data Inputs'!$L$9 -> 0 | G10: ='GAAR 2008-12 Data Inputs'!B28 -> 0
A11: IT | B11: 0.3293391188 | F11: =G11*'Actual Data Inputs'!$L$9 -> 0.3293391188 | G11: ='GAAR 2008-12 Data Inputs'!B30 -> 0.275
A12: SCADA | B12: 0.2503196125 | F12: =G12*'Actual Data Inputs'!$L$9 -> 0.2503196125 | G12: ='GAAR 2008-12 Data Inputs'!B29 -> 0.2090182717
A13: Other | B13: 0 | F13: =G13*'Actual Data Inputs'!$L$9 -> 0 | G13: ='GAAR 2008-12 Data Inputs'!B31 -> 0
B14: =SUM(B5:B13) -> 47.6325181 | D14: =SUM(D5:D13) -> -1.848537912 | F14: =SUM(F5:F13) -> 49.48105601 | G14: =SUM(G5:G13) -> 41.31695758
A18: TAX Additions
A19: Gross Capex $m | B19: 2012 | D19: 2012 | F19: 2012 | G19: 2012
A20: Mains & Services | B20: =SUM(F20,D20) -> 40.61703759 | D20: =D5 -> -3.276186213 | F20: =G20*'Actual Data Inputs'!$L$9 -> 43.8932238 | G20: ='GAAR 2008-12 Data Inputs'!B133 -> 36.65108654
A21: Meters Domestic | B21: 4.632252777 | D21: =B73+B41*B93 -> 1.774173509 | F21: =G21*'Actual Data Inputs'!$L$9 -> 2.858079268 | G21: ='GAAR 2008-12 Data Inputs'!B134 -> 2.38651212
A22: Meters Industrial & Commercial | B22: 1.803569002 | D22: =B82+B50*B94 -> -0.3465252079 | F22: =G22*'Actual Data Inputs'!$L$9 -> 2.15009421 | G22: ='GAAR 2008-12 Data Inputs'!B135 -> 1.79534065
A23: Land & Buildings | B23: 0 | F23: =G23*'Actual Data Inputs'!$L$9 -> 0 | G23: ='GAAR 2008-12 Data Inputs'!B136 -> 0
A24: Other Assets | B24: 0.5796587313 | F24: =G24*'Actual Data Inputs'!$L$9 -> 0.5796587313 | G24: ='GAAR 2008-12 Data Inputs'!B137 -> 0.4840182717
A25: Repairs | B25: 0 | F25: =G25*'Actual Data Inputs'!$L$9 -> 0 | G25: ='GAAR 2008-12 Data Inputs'!B138 -> 0
B26: =SUM(B20:B25) -> 47.6325181 | D26: =SUM(D20:D25) -> -1.848537912 | F26: =SUM(F20:F25) -> 49.48105601 | G26: =SUM(G20:G25) -> 41.31695758
A27: Check to RAB Gross capex | B27: =ABS(B26-B14) -> 2.131628207e-14 | D27: =ABS(D26-D14) -> 0 | F27: =ABS(F26-F14) -> 7.105427358e-15 | G27: =ABS(G26-G14) -> 0
A31: Benchmark Adjustment for Growth
A32: CAPITAL EXPENDITURE
A33: Benchmark Adjustment for Customer connections | B33: 2012
A34: Domestic
A35: Forecast Number of new connections | B35: ='[1]BM Capex 2012 ECM growth data'!$D$10 -> 8573
A36: Actual \ Estimate Number of new connection | B36: ='[1]BM Capex 2012 ECM growth data'!$F$10 -> 7922.343562
B37: =B36-B35 -> -650.6564384
A39: Capital expenditure per connection ($ Real 2006) | B39: ='[1]BM Capex 2012 ECM growth data'!$B$10 -> 1322
A40: Capital expenditure per connection ($ Real 2012) | B40: =B39*'Actual Data Inputs'!$L$9 -> 1583.222964
A41: Adjustments to Capex Benchmark ($m Real 2012) | B41: =B37*B40/10^6 -> -1.030134215
A43: Non Domestic
A44: Forecast Number of replacements | B44: ='[1]BM Capex 2012 ECM growth data'!$D$11 -> 419
A45: Actual \ Estimate Number of new connection | B45: ='[1]BM Capex 2012 ECM growth data'!$F$11 -> 195.8750263
B46: =B45-B44 -> -223.1249737
A48: Capital expenditure per connection ($ Real 2006) | B48: ='[1]BM Capex 2012 ECM growth data'!$B$11 -> 3846
A49: Capital expenditure per connection ($ Real 2012) | B49: =B48*'Actual Data Inputs'!$L$9 -> 4605.957276
A50: Adjustments to Capex Benchmark ($m Real 2012) | B50: =B46*B49/10^6 -> -1.027704096
A52: Adjustments to Capex Benchmark ($m Real 2012) | B52: =SUM(B41,B50) -> -2.057838311
A55: Benchmark Adjustment for LP replacement program | B55: 2012
A56: Forecast km replaced | B56: ='[1]BM Capex 2012 ECM growth data'!$D$12 -> 114
A57: Actual \ Estimate km replaced | B57: ='[1]BM Capex 2012 ECM growth data'!$F$12 -> 103.3
B58: =B57-B56 -> -10.7
A60: Capital Expenditure per metre ($ Real 20006) | B60: ='[1]BM Capex 2012 ECM growth data'!$B$12 -> 158
A61: Capital Expenditure per metre ($ Real 2012) | B61: =B60*'Actual Data Inputs'!$L$9 -> 189.2202937
A62: Adjustments to Capex Benchmark ($m Real 2012) | B62: =B61*B58/10^3 -> -2.024657143
A65: Benchmark Adjustment for Meter Replacement | B65: 2012
A66: Domestic
A67: Forecast Number of replacements | B67: ='[1]BM Capex 2012 ECM growth data'!$D$13 -> 8081
A68: Actual \ Estimate Number of replacements | B68: ='[1]BM Capex 2012 ECM growth data'!$F$13 -> 20142
B69: =B68-B67 -> 12061
A71: Capital expenditure per meter ($ Real 2006) | B71: ='[1]BM Capex 2012 ECM growth data'!$B$13 -> 131
A72: Capital expenditure per meter ($ Real 2012) | B72: =B71*'Actual Data Inputs'!$L$9 -> 156.8851802
A73: Adjustments to Capex Benchmark ($m Real 2012) | B73: =B72*B69/10^6 -> 1.892192159
A75: Non Domestic
A76: Forecast Number of replacements | B76: ='[1]BM Capex 2012 ECM growth data'!$D$14 -> 562
A77: Actual \ Estimate Number of replacements | B77: ='[1]BM Capex 2012 ECM growth data'!$F$14 -> 786
B78: =B77-B76 -> 224
A80: Capital expenditure per meter ($ Real 2006) | B80: ='[1]BM Capex 2012 ECM growth data'!$B$14 -> 1274
A81: Capital expenditure per meter ($ Real 2012) | B81: =B80*'Actual Data Inputs'!$L$9 -> 1525.738318
A82: Adjustments to Capex Benchmark ($m Real 2012) | B82: =B81*B78/10^6 -> 0.3417653832
A84: Adjustments to Capex Benchmark ($m Real 2012) | B84: =SUM(B73,B82) -> 2.233957542
A87: Total Adjustments to Capex Benchmark ($m Real 2012) | B87: =SUM(B52,B62,B84) -> -1.848537912
A90: GAAR 2008-12
A91: New Customer Connections | B91: Allocation %
A92: Meters - ECM
A93: New Customer Connections - Domestic | B93: ='[1]BM Capex 2012 ECM growth data'!B20 -> 0.1145662848
A94: New Customer Connections - Non Domestic | B94: ='[1]BM Capex 2012 ECM growth data'!B21 -> 0.6697361562
A96: Mains & Services - ECM
A97: New Customer Connections - Domestic | B97: ='[1]BM Capex 2012 ECM growth data'!B24 -> 0.8854337152
A98: New Customer Connections - Non Domestic | B98: ='[1]BM Capex 2012 ECM growth data'!B25 -> 0.3302638438

Sheet Actual Data Inputs
A1: ='GAAR 2008-12 Data Inputs'!$A$1 -> Multinet | C1: Check | D1: =SUM(B81:G81) -> 0.0003098400001
A3: CPI | B3: 1997-03-01 | C3: 1997-09-01 | D3: 1998-09-30 | E3: 1999-09-30 | F3: 2000-09-30 | G3: 2001-09-30 | H3: 2002-09-30 | I3: 2003-09-30 | J3: 2004-09-30 | K3: 2005-09-30 | L3: 2006-09-30 | M3: 2007-09-30 | N3: 2008-09-30 | O3: 2009-09-30 | P3: 2010-09-30 | Q3: 2011-09-30
A4: CPI Index | B4: 120.5 | C4: 119.7 | D4: 121.3 | E4: 123.4 | F4: 130.9 | G4: 134.2 | H4: 138.5 | I4: 142.1 | J4: 145.4 | K4: 149.8 | L4: 155.7 | M4: 158.6 | N4: 166.5 | O4: 168.6 | P4: 173.3 | Q4: 179.4
C6: 1997 | D6: 1998 | E6: 1999 | F6: 2000 | G6: 2001 | H6: 2002 | I6: 2003 | J6: 2004 | K6: 2005 | L6: 2006 | M6: 2007 | N6: 2008 | O6: 2009 | P6: 2010 | Q6: 2011 | R6: 2012
A8: CPI p.a. | E8: =D4/C4-1 -> 0.01336675021 | F8: 0.01731244847 | G8: 0.06077795786 | H8: 0.02521008403 | I8: 0.03204172876 | J8: 0.02599277978 | K8: 0.02322308234 | L8: 0.03026134801 | M8: 0.0393858478 | N8: 0.01862556198 | O8: 0.04981084489 | P8: 0.01261261261 | Q8: 0.02787663108 | R8: 0.03519907675
A9: Escalator : Nominal $ to Real $ 2012 | D9: =E9*(1+E8) -> 1.498746867 | E9: 1.478977741 | F9: 1.453808752 | G9: 1.370511841 | H9: 1.33681073 | I9: 1.295306859 | J9: 1.262491203 | K9: 1.233837689 | L9: 1.197596796 | M9: 1.1522158 | N9: 1.131147541 | O9: 1.077477477 | P9: 1.06405694 | Q9: 1.035199077 | R9: 1
A13: RAB | B13: 2007 | C13: 2008 | D13: 2009 | E13: 2010 | F13: 2011 | G13: 2012
A14: Gross Capex $m (Nominal
A15: Transmission and distribution | B15: ='[1]AER RFM Capex - Prov Adjusted'!N5 -> 62.326 | C15: ='[1]AER RFM Capex - Prov Adjusted'!O5 -> 22.63365169 | D15: ='[1]AER RFM Capex - Prov Adjusted'!P5 -> 20.71213564 | E15: ='[1]AER RFM Capex - Prov Adjusted'!Q5 -> 18.16586429 | F15: ='[1]AER RFM Capex - Prov Adjusted'!R5 -> 22.9422 | G15: ='BM Capex 2012 adjust for Growth'!B5 -> 27.07605808
A16: Services | B16: ='[1]AER RFM Capex - Prov Adjusted'!N6 -> 4.357 | C16: ='[1]AER RFM Capex - Prov Adjusted'!O6 -> 7.65607723 | D16: ='[1]AER RFM Capex - Prov Adjusted'!P6 -> 9.380880787 | E16: ='[1]AER RFM Capex - Prov Adjusted'!Q6 -> 9.20198599 | F16: ='[1]AER RFM Capex - Prov Adjusted'!R6 -> 10.2632 | G16: ='BM Capex 2012 adjust for Growth'!B6 -> 12.11248264
A17: Cathodic Protection | B17: ='[1]AER RFM Capex - Prov Adjusted'!N7 -> 0.053 | C17: ='[1]AER RFM Capex - Prov Adjusted'!O7 -> 0.10564065 | D17: ='[1]AER RFM Capex - Prov Adjusted'!P7 -> 0.17170281 | E17: ='[1]AER RFM Capex - Prov Adjusted'!Q7 -> 0.06242495 | F17: ='[1]AER RFM Capex - Prov Adjusted'!R7 -> 0.1232 | G17: ='BM Capex 2012 adjust for Growth'!B7 -> 0.1453988874
A18: Suppy Regs/Valve stations | B18: ='[1]AER RFM Capex - Prov Adjusted'!N8 -> 1.151 | C18: ='[1]AER RFM Capex - Prov Adjusted'!O8 -> 2.39688143 | D18: ='[1]AER RFM Capex - Prov Adjusted'!P8 -> 1.48674014 | E18: ='[1]AER RFM Capex - Prov Adjusted'!Q8 -> 0.92333971 | F18: ='[1]AER RFM Capex - Prov Adjusted'!R8 -> 1.0872 | G18: ='BM Capex 2012 adjust for Growth'!B8 -> 1.283097974
A19: Meters | B19: ='[1]AER RFM Capex - Prov Adjusted'!N9 -> 2.851 | C19: ='[1]AER RFM Capex - Prov Adjusted'!O9 -> 2.778192155 | D19: ='[1]AER RFM Capex - Prov Adjusted'!P9 -> 3.31807853 | E19: ='[1]AER RFM Capex - Prov Adjusted'!Q9 -> 3.72039689 | F19: ='[1]AER RFM Capex - Prov Adjusted'!R9 -> 4.1693 | G19: ='BM Capex 2012 adjust for Growth'!B9 -> 6.435821779
A20: Land and buildings | B20: ='[1]AER RFM Capex - Prov Adjusted'!N10 -> 0 | C20: ='[1]AER RFM Capex - Prov Adjusted'!O10 -> 0 | D20: ='[1]AER RFM Capex - Prov Adjusted'!P10 -> 0 | E20: ='[1]AER RFM Capex - Prov Adjusted'!Q10 -> 0 | F20: ='[1]AER RFM Capex - Prov Adjusted'!R10 -> 0 | G20: ='BM Capex 2012 adjust for Growth'!B10 -> 0
A21: IT | B21: ='[1]AER RFM Capex - Prov Adjusted'!N11 -> 0.763 | C21: ='[1]AER RFM Capex - Prov Adjusted'!O11 -> 0.78295608 | D21: ='[1]AER RFM Capex - Prov Adjusted'!P11 -> 1.17010174 | E21: ='[1]AER RFM Capex - Prov Adjusted'!Q11 -> 6.04069925 | F21: ='[1]AER RFM Capex - Prov Adjusted'!R11 -> 23.49134 | G21: ='BM Capex 2012 adjust for Growth'!B11 -> 0.3293391188
A22: SCADA | B22: ='[1]AER RFM Capex - Prov Adjusted'!N12 -> 0.203 | C22: ='[1]AER RFM Capex - Prov Adjusted'!O12 -> 0.09942994 | D22: ='[1]AER RFM Capex - Prov Adjusted'!P12 -> 0.0801379 | E22: ='[1]AER RFM Capex - Prov Adjusted'!Q12 -> 0.00399688 | F22: ='[1]AER RFM Capex - Prov Adjusted'!R12 -> 0.069 | G22: ='BM Capex 2012 adjust for Growth'!B12 -> 0.2503196125
A23: Other | B23: ='[1]AER RFM Capex - Prov Adjusted'!N13 -> -0.003 | C23: ='[1]AER RFM Capex - Prov Adjusted'!O13 -> 0 | D23: ='[1]AER RFM Capex - Prov Adjusted'!P13 -> 0 | E23: ='[1]AER RFM Capex - Prov Adjusted'!Q13 -> 0.1781037 | F23: ='[1]AER RFM Capex - Prov Adjusted'!R13 -> 0.121 | G23: ='BM Capex 2012 adjust for Growth'!B13 -> 0
B24: =SUM(B15:B23) -> 71.701 | C24: 36.45282918 | D24: 36.31977755 | E24: 38.29681166 | F24: 62.26644 | G24: 47.6325181
A26: Customer \ Govt Contributions $m (Nominal)
A27: =A$15 -> Transmission and distribution | B27: ='[1]AER RFM Capex - Prov Adjusted'!N17 -> 3.005 | C27: ='[1]AER RFM Capex - Prov Adjusted'!O17 -> 2.155906515 | D27: ='[1]AER RFM Capex - Prov Adjusted'!P17 -> 24.07804714 | E27: ='[1]AER RFM Capex - Prov Adjusted'!Q17 -> 2.2757148 | F27: ='[1]AER RFM Capex - Prov Adjusted'!R17 -> 2.12322243 | G27: ='GAAR 2008-12 Data Inputs'!B34*$L$9 -> 2.025448865
A28: =A$16 -> Services | B28: ='[1]AER RFM Capex - Prov Adjusted'!N18 -> 0 | C28: ='[1]AER RFM Capex - Prov Adjusted'!O18 -> 0 | D28: ='[1]AER RFM Capex - Prov Adjusted'!P18 -> 0 | E28: ='[1]AER RFM Capex - Prov Adjusted'!Q18 -> 0 | F28: ='[1]AER RFM Capex - Prov Adjusted'!R18 -> 0
A29: =A$17 -> Cathodic Protection | B29: ='[1]AER RFM Capex - Prov Adjusted'!N19 -> 0 | C29: ='[1]AER RFM Capex - Prov Adjusted'!O19 -> 0 | D29: ='[1]AER RFM Capex - Prov Adjusted'!P19 -> 0 | E29: ='[1]AER RFM Capex - Prov Adjusted'!Q19 -> 0 | F29: ='[1]AER RFM Capex - Prov Adjusted'!R19 -> 0
A30: =A$18 -> Suppy Regs/Valve stations | B30: ='[1]AER RFM Capex - Prov Adjusted'!N20 -> 0 | C30: ='[1]AER RFM Capex - Prov Adjusted'!O20 -> 0 | D30: ='[1]AER RFM Capex - Prov Adjusted'!P20 -> 0 | E30: ='[1]AER RFM Capex - Prov Adjusted'!Q20 -> 0 | F30: ='[1]AER RFM Capex - Prov Adjusted'!R20 -> 0
A31: =A$19 -> Meters | B31: ='[1]AER RFM Capex - Prov Adjusted'!N21 -> 0 | C31: ='[1]AER RFM Capex - Prov Adjusted'!O21 -> 0 | D31: ='[1]AER RFM Capex - Prov Adjusted'!P21 -> 0 | E31: ='[1]AER RFM Capex - Prov Adjusted'!Q21 -> 0 | F31: ='[1]AER RFM Capex - Prov Adjusted'!R21 -> 0
A32: =A$20 -> Land and buildings | B32: ='[1]AER RFM Capex - Prov Adjusted'!N22 -> 0 | C32: ='[1]AER RFM Capex - Prov Adjusted'!O22 -> 0 | D32: ='[1]AER RFM Capex - Prov Adjusted'!P22 -> 0 | E32: ='[1]AER RFM Capex - Prov Adjusted'!Q22 -> 0 | F32: ='[1]AER RFM Capex - Prov Adjusted'!R22 -> 0
A33: =A$21 -> IT | B33: ='[1]AER RFM Capex - Prov Adjusted'!N23 -> 0 | C33: ='[1]AER RFM Capex - Prov Adjusted'!O23 -> 0 | D33: ='[1]AER RFM Capex - Prov Adjusted'!P23 -> 0 | E33: ='[1]AER RFM Capex - Prov Adjusted'!Q23 -> 0 | F33: ='[1]AER RFM Capex - Prov Adjusted'!R23 -> 0
A34: =A$22 -> SCADA | B34: ='[1]AER RFM Capex - Prov Adjusted'!N24 -> 0 | C34: ='[1]AER RFM Capex - Prov Adjusted'!O24 -> 0 | D34: ='[1]AER RFM Capex - Prov Adjusted'!P24 -> 0 | E34: ='[1]AER RFM Capex - Prov Adjusted'!Q24 -> 0 | F34: ='[1]AER RFM Capex - Prov Adjusted'!R24 -> 0
A35: =A$23 -> Other | B35: ='[1]AER RFM Capex - Prov Adjusted'!N25 -> 0 | C35: ='[1]AER RFM Capex - Prov Adjusted'!O25 -> 0 | D35: ='[1]AER RFM Capex - Prov Adjusted'!P25 -> 0 | E35: ='[1]AER RFM Capex - Prov Adjusted'!Q25 -> 0 | F35: ='[1]AER RFM Capex - Prov Adjusted'!R25 -> 0
B36: =SUM(B27:B35) -> 3.005 | C36: 2.155906515 | D36: 24.07804714 | E36: 2.2757148 | F36: 2.12322243 | G36: 2.025448865
A38: Net Capex $m (Nominal) (excludes Proceeds from Disposals)
A39: =A$15 -> Transmission and distribution | B39: =B15-B27 -> 59.321 | C39: 20.47774518 | D39: -3.3659115 | E39: 15.89014949 | F39: 20.81897757 | G39: 25.05060922
A40: =A$16 -> Services | B40: 4.357 | C40: 7.65607723 | D40: 9.380880787 | E40: 9.20198599 | F40: 10.2632 | G40: 12.11248264
A41: =A$17 -> Cathodic Protection | B41: 0.053 | C41: 0.10564065 | D41: 0.17170281 | E41: 0.06242495 | F41: 0.1232 | G41: 0.1453988874
A42: =A$18 -> Suppy Regs/Valve stations | B42: 1.151 | C42: 2.39688143 | D42: 1.48674014 | E42: 0.92333971 | F42: 1.0872 | G42: 1.283097974
A43: =A$19 -> Meters | B43: 2.851 | C43: 2.778192155 | D43: 3.31807853 | E43: 3.72039689 | F43: 4.1693 | G43: 6.435821779
A44: =A$20 -> Land and buildings | B44: 0 | C44: 0 | D44: 0 | E44: 0 | F44: 0 | G44: 0
A45: =A$21 -> IT | B45: 0.763 | C45: 0.78295608 | D45: 1.17010174 | E45: 6.04069925 | F45: 23.49134 | G45: 0.3293391188
A46: =A$22 -> SCADA | B46: 0.203 | C46: 0.09942994 | D46: 0.0801379 | E46: 0.00399688 | F46: 0.069 | G46: 0.2503196125
A47: =A$23 -> Other | B47: -0.003 | C47: 0 | D47: 0 | E47: 0.1781037 | F47: 0.121 | G47: 0
B48: =SUM(B39:B47) -> 68.696 | C48: 34.29692267 | D48: 12.24173041 | E48: 36.02109686 | F48: 60.14321757 | G48: 45.60706923
A50: Proceeds from Disposals $m (Nominal)
A51: =A$15 -> Transmission and distribution | B51: ='[1]AER RFM Capex - Prov Adjusted'!N41 -> 0 | C51: ='[1]AER RFM Capex - Prov Adjusted'!O41 -> 0 | D51: ='[1]AER RFM Capex - Prov Adjusted'!P41 -> 0 | E51: ='[1]AER RFM Capex - Prov Adjusted'!Q41 -> 0 | F51: ='[1]AER RFM Capex - Prov Adjusted'!R41 -> 0 | G51: 0
A52: =A$16 -> Services | B52: ='[1]AER RFM Capex - Prov Adjusted'!N42 -> 0 | C52: ='[1]AER RFM Capex - Prov Adjusted'!O42 -> 0 | D52: ='[1]AER RFM Capex - Prov Adjusted'!P42 -> 0 | E52: ='[1]AER RFM Capex - Prov Adjusted'!Q42 -> 0 | F52: ='[1]AER RFM Capex - Prov Adjusted'!R42 -> 0 | G52: 0
A53: =A$17 -> Cathodic Protection | B53: ='[1]AER RFM Capex - Prov Adjusted'!N43 -> 0 | C53: ='[1]AER RFM Capex - Prov Adjusted'!O43 -> 0 | D53: ='[1]AER RFM Capex - Prov Adjusted'!P43 -> 0 | E53: ='[1]AER RFM Capex - Prov Adjusted'!Q43 -> 0 | F53: ='[1]AER RFM Capex - Prov Adjusted'!R43 -> 0 | G53: 0
A54: =A$18 -> Suppy Regs/Valve stations | B54: ='[1]AER RFM Capex - Prov Adjusted'!N44 -> 0 | C54: ='[1]AER RFM Capex - Prov Adjusted'!O44 -> 0 | D54: ='[1]AER RFM Capex - Prov Adjusted'!P44 -> 0 | E54: ='[1]AER RFM Capex - Prov Adjusted'!Q44 -> 0 | F54: ='[1]AER RFM Capex - Prov Adjusted'!R44 -> 0 | G54: 0
A55: =A$19 -> Meters | B55: ='[1]AER RFM Capex - Prov Adjusted'!N45 -> 0 | C55: ='[1]AER RFM Capex - Prov Adjusted'!O45 -> 0 | D55: ='[1]AER RFM Capex - Prov Adjusted'!P45 -> 0 | E55: ='[1]AER RFM Capex - Prov Adjusted'!Q45 -> 0 | F55: ='[1]AER RFM Capex - Prov Adjusted'!R45 -> 0 | G55: 0
A56: =A$20 -> Land and buildings | B56: ='[1]AER RFM Capex - Prov Adjusted'!N46 -> 0 | C56: ='[1]AER RFM Capex - Prov Adjusted'!O46 -> 0 | D56: ='[1]AER RFM Capex - Prov Adjusted'!P46 -> 0 | E56: ='[1]AER RFM Capex - Prov Adjusted'!Q46 -> 0 | F56: ='[1]AER RFM Capex - Prov Adjusted'!R46 -> 0 | G56: 0
A57: =A$21 -> IT | B57: ='[1]AER RFM Capex - Prov Adjusted'!N47 -> 0 | C57: ='[1]AER RFM Capex - Prov Adjusted'!O47 -> 0 | D57: ='[1]AER RFM Capex - Prov Adjusted'!P47 -> 0 | E57: ='[1]AER RFM Capex - Prov Adjusted'!Q47 -> 0 | F57: ='[1]AER RFM Capex - Prov Adjusted'!R47 -> 0 | G57: 0
A58: =A$22 -> SCADA | B58: ='[1]AER RFM Capex - Prov Adjusted'!N48 -> 0 | C58: ='[1]AER RFM Capex - Prov Adjusted'!O48 -> 0 | D58: ='[1]AER RFM Capex - Prov Adjusted'!P48 -> 0 | E58: ='[1]AER RFM Capex - Prov Adjusted'!Q48 -> 0 | F58: ='[1]AER RFM Capex - Prov Adjusted'!R48 -> 0 | G58: 0
A59: =A$23 -> Other | B59: ='[1]AER RFM Capex - Prov Adjusted'!N49 -> 0 | C59: ='[1]AER RFM Capex - Prov Adjusted'!O49 -> 0 | D59: ='[1]AER RFM Capex - Prov Adjusted'!P49 -> 0 | E59: ='[1]AER RFM Capex - Prov Adjusted'!Q49 -> 0 | F59: ='[1]AER RFM Capex - Prov Adjusted'!R49 -> 0 | G59: 0
B60: =SUM(B51:B59) -> 0 | C60: 0 | D60: 0 | E60: 0 | F60: 0 | G60: 0
A62: Gas Extensions - Amounts Rolled into RAB 1/1/2008
A63: $m (Nominal)
A64: =A$15 -> Transmission and distribution | B64: =SUM('GAAR 2008-12 Data Inputs'!C147:F148,'GAAR 2008-12 Data Inputs'!H149)*$L$9/M$9 -> 20.22589282
B65: =SUM(B64:B64) -> 20.22589282
A67: Forecast Depreciation write offs | B67: 2013 | C67: 2014 | D67: 2015 | E67: 2016 | F67: 2017
A68: Pipeworks Writeoff (Mains) | B68: 0 | C68: 0 | D68: 0 | E68: 0 | F68: 0
A69: Pipeworks Writeoff (Services) | B69: 0 | C69: 0 | D69: 0 | E69: 0 | F69: 0
A71: TAX Additions
A72: Gross Capex
A73: ($m Nominal) | B73: 2007 | C73: 2008 | D73: 2009 | E73: 2010 | F73: 2011 | G73: 2012
A74: Mains & Services | B74: ='[1]AER RFM Capex - Prov Adjusted'!N56 -> 68.812 | C74: ='[1]AER RFM Capex - Prov Adjusted'!O56 -> 33.78989103 | D74: ='[1]AER RFM Capex - Prov Adjusted'!P56 -> 33.01757126 | E74: ='[1]AER RFM Capex - Prov Adjusted'!Q56 -> 27.36785028 | F74: ='[1]AER RFM Capex - Prov Adjusted'!R56 -> 33.204 | G74: ='BM Capex 2012 adjust for Growth'!B20 -> 40.61703759
A75: Meters Domestic | B75: ='[1]AER RFM Capex - Prov Adjusted'!N57 -> 1.923 | C75: ='[1]AER RFM Capex - Prov Adjusted'!O57 -> 1.417893252 | D75: ='[1]AER RFM Capex - Prov Adjusted'!P57 -> 1.63402667 | E75: ='[1]AER RFM Capex - Prov Adjusted'!Q57 -> 3.0511132 | F75: ='[1]AER RFM Capex - Prov Adjusted'!R57 -> 3.229 | G75: ='BM Capex 2012 adjust for Growth'!B21 -> 4.632252777
A76: Meters Industrial & Commercial | C76: ='[1]AER RFM Capex - Prov Adjusted'!O58 -> 0.3626588777 | D76: ='[1]AER RFM Capex - Prov Adjusted'!P58 -> 0.4179399805 | E76: ='[1]AER RFM Capex - Prov Adjusted'!Q58 -> 0.66928369 | F76: ='[1]AER RFM Capex - Prov Adjusted'!R58 -> 0.937 | G76: ='BM Capex 2012 adjust for Growth'!B22 -> 1.803569002
A77: Land & Buildings | B77: ='[1]AER RFM Capex - Prov Adjusted'!N59 -> 0 | C77: ='[1]AER RFM Capex - Prov Adjusted'!O59 -> 0 | D77: ='[1]AER RFM Capex - Prov Adjusted'!P59 -> 0 | E77: ='[1]AER RFM Capex - Prov Adjusted'!Q59 -> 0 | F77: ='[1]AER RFM Capex - Prov Adjusted'!R59 -> 0.09713016 | G77: ='BM Capex 2012 adjust for Growth'!B23 -> 0
A78: Other Assets | B78: ='[1]AER RFM Capex - Prov Adjusted'!N60 -> 0.966 | C78: ='[1]AER RFM Capex - Prov Adjusted'!O60 -> 0.88238602 | D78: ='[1]AER RFM Capex - Prov Adjusted'!P60 -> 1.25023964 | E78: ='[1]AER RFM Capex - Prov Adjusted'!Q60 -> 7.20856449 | F78: ='[1]AER RFM Capex - Prov Adjusted'!R60 -> 24.799 | G78: ='BM Capex 2012 adjust for Growth'!B24 -> 0.5796587313
A79: Repairs | B79: ='[1]AER RFM Capex - Prov Adjusted'!N61 -> 0 | C79: ='[1]AER RFM Capex - Prov Adjusted'!O61 -> 0 | D79: ='[1]AER RFM Capex - Prov Adjusted'!P61 -> 0 | E79: ='[1]AER RFM Capex - Prov Adjusted'!Q61 -> 0 | F79: ='[1]AER RFM Capex - Prov Adjusted'!R61 -> 0 | G79: ='BM Capex 2012 adjust for Growth'!B25 -> 0
B80: =SUM(B74:B79) -> 71.701 | C80: 36.45282918 | D80: 36.31977755 | E80: 38.29681166 | F80: 62.26613016 | G80: 47.6325181
A81: Check to RAB Gross capex | B81: =ABS(B80-B24) -> 0 | C81: 0 | D81: 2.131628207e-14 | E81: 1.421085472e-14 | F81: 0.00030984 | G81: 2.131628207e-14

Sheet Regulatory Depn
C1: Check | D1: =SUM(C30,C31,C46,C88,C103,C119,C134,C149,C164,C179,C194,C209,C227,C242) -> 6.662448371e-13
A4: CPI | B4: 1997-03-01 | C4: 1997-09-01 | D4: 1998-09-30 | E4: 1999-09-30 | F4: 2000-09-30 | G4: 2001-09-30 | H4: 2002-09-30 | I4: 2003-09-30 | J4: 2004-09-30 | K4: 2005-09-30 | L4: 2006-09-30 | M4: 2007-09-30 | N4: 2008-09-30 | O4: 2009-09-30 | P4: 2010-09-30 | Q4: 2011-09-30
A5: CPI Index | B5: ='Actual Data Inputs'!B4 -> 120.5 | C5: ='Actual Data Inputs'!C4 -> 119.7 | D5: ='Actual Data Inputs'!D4 -> 121.3 | E5: ='Actual Data Inputs'!E4 -> 123.4 | F5: ='Actual Data Inputs'!F4 -> 130.9 | G5: ='Actual Data Inputs'!G4 -> 134.2 | H5: ='Actual Data Inputs'!H4 -> 138.5 | I5: ='Actual Data Inputs'!I4 -> 142.1 | J5: ='Actual Data Inputs'!J4 -> 145.4 | K5: ='Actual Data Inputs'!K4 -> 149.8 | L5: ='Actual Data Inputs'!L4 -> 155.7 | M5: ='Actual Data Inputs'!M4 -> 158.6 | N5: ='Actual Data Inputs'!N4 -> 166.5 | O5: ='Actual Data Inputs'!O4 -> 168.6 | P5: ='Actual Data Inputs'!P4 -> 173.3 | Q5: ='Actual Data Inputs'!Q4 -> 179.4
C7: 1997 | D7: 1998 | E7: 1999 | F7: 2000 | G7: 2001 | H7: 2002 | I7: 2003 | J7: 2004 | K7: 2005 | L7: 2006 | M7: 2007 | N7: 2008 | O7: 2009 | P7: 2010 | Q7: 2011 | R7: 2012
A9: CPI p.a. | D9: =C5/B5-1 -> -0.006639004149 | E9: =D5/C5-1 -> 0.01336675021 | F9: 0.01731244847 | G9: 0.06077795786 | H9: 0.02521008403 | I9: 0.03204172876 | J9: 0.02599277978 | K9: 0.02322308234 | L9: 0.03026134801 | M9: 0.0393858478 | N9: =M5/L5-1 -> 0.01862556198 | O9: =N5/M5-1 -> 0.04981084489 | P9: =O5/N5-1 -> 0.01261261261 | Q9: =P5/O5-1 -> 0.02787663108 | R9: =Q5/P5-1 -> 0.03519907675
A10: Escalator : Nominal $ to Real $ 2012 | C10: =D10*(1+D9) -> 1.48879668 | D10: 1.498746867 | E10: 1.478977741 | F10: 1.453808752 | G10: 1.370511841 | H10: 1.33681073 | I10: 1.295306859 | J10: 1.262491203 | K10: 1.233837689 | L10: 1.197596796 | M10: =N10*(1+N9) -> 1.1522158 | N10: =O10*(1+O9) -> 1.131147541 | O10: =P10*(1+P9) -> 1.077477477 | P10: =Q10*(1+Q9) -> 1.06405694 | Q10: =R10*(1+R9) -> 1.035199077 | R10: 1
C14: Year Counter | D14: 1 | E14: =D14+1 -> 2 | F14: =E14+1 -> 3 | G14: 4 | H14: 5 | I14: 6 | J14: 7 | K14: 8 | L14: 9 | M14: 10
B16: Remaining | C16: OAV | D16: SL Depn $m (Real 2012) =====> | N16: OAV | O16: Rem Life | P16: SL Depn $m (Real 2012) =====>
B17: Life | C17: 2003 | D17: =C17 -> 2003 | E17: =D17+1 -> 2004 | F17: 2005 | G17: 2006 | H17: 2007 | I17: 2008 | J17: 2009 | K17: 2010 | L17: 2011 | M17: 2012 | N17: =$P17 -> 2013 | O17: =$P17 -> 2013 | P17: =M17+1 -> 2013 | Q17: 2014 | R17: 2015 | S17: 2016 | T17: 2017
A18: Opening Asset value
A19: Transmission and Distribution | B19: 38 | C19: 442.0304587 | D19: =$C19/$B19 -> 11.63238049 | E19: =MIN($C19/$B19,$C19-SUM($D19:D19)) -> 11.63238049 | F19: =MIN($C19/$B19,$C19-SUM($D19:E19)) -> 11.63238049 | G19: =MIN($C19/$B19,$C19-SUM($D19:F19)) -> 11.63238049 | H19: =MIN($C19/$B19,$C19-SUM($D19:G19)) -> 11.63238049 | I19: =MIN(($C19-SUM($D20:H20))/$B19,$C19-SUM($D19:H20)) -> 11.24618807 | J19: =MIN(($C19-SUM($D20:I20))/$B19,$C19-SUM($D19:I20)) -> 11.13479072 | K19: =MIN(($C19-SUM($D20:J20))/$B19,$C19-SUM($D19:J20)) -> 11.02732786 | L19: =MIN(($C19-SUM($D20:K20))/$B19,$C19-SUM($D19:K20)) -> 10.92043166 | M19: =MIN(($C19-SUM($D20:L20))/$B19,$C19-SUM($D19:L20)) -> 10.81697952 | N19: =C19-SUM(D19:M20) -> 293.90906 | O19: =MAX(B19-M$14,0) -> 28 | P19: =N19/O19 -> 10.49675214 | Q19: =MIN($N19-SUM($P19:P20),($N19-SUM($P20:P20))/$O19) -> 10.49675214 | R19: =MIN($N19-SUM($P19:Q20),($N19-SUM($P20:Q20))/$O19) -> 10.49675214 | S19: =MIN($N19-SUM($P19:R20),($N19-SUM($P20:R20))/$O19) -> 10.49675214 | T19: =MIN($N19-SUM($P19:S20),($N19-SUM($P20:S20))/$O19) -> 10.49675214
A20: Pipeworks Writeoff (Mains) | B20: 5 | C20: 0 | D20: 2.450756988 | E20: 2.867722068 | F20: 2.91749592 | G20: 3.271127133 | H20: 3.168209944 | I20: 4.23309937 | J20: 4.083588786 | K20: 4.06205529 | L20: 3.931181535 | M20: 3.828541353 | P20: ='Actual Data Inputs'!B68 -> 0 | Q20: ='Actual Data Inputs'!C68 -> 0 | R20: ='Actual Data Inputs'!D68 -> 0 | S20: ='Actual Data Inputs'!E68 -> 0 | T20: ='Actual Data Inputs'!F68 -> 0
A21: Services | B21: 38 | C21: 430.5732593 | D21: =$C21/$B21 -> 11.33087524 | E21: =MIN($C21/$B21,$C21-SUM($D21:D21)) -> 11.33087524 | F21: =MIN($C21/$B21,$C21-SUM($D21:E21)) -> 11.33087524 | G21: =MIN($C21/$B21,$C21-SUM($D21:F21)) -> 11.33087524 | H21: =MIN($C21/$B21,$C21-SUM($D21:G21)) -> 11.33087524 | I21: =MIN(($C21-SUM($D22:H22))/$B21,$C21-SUM($D21:H22)) -> 10.93839931 | J21: =MIN(($C21-SUM($D22:I22))/$B21,$C21-SUM($D21:I22)) -> 10.82642401 | K21: =MIN(($C21-SUM($D22:J22))/$B21,$C21-SUM($D21:J22)) -> 10.71444871 | L21: =MIN(($C21-SUM($D22:K22))/$B21,$C21-SUM($D21:K22)) -> 10.60247341 | M21: =MIN(($C21-SUM($D22:L22))/$B21,$C21-SUM($D21:L22)) -> 10.49049811 | N21: =C21-SUM(D21:M22) -> 284.157247 | O21: =MAX(B21-M$14,0) -> 28 | P21: =N21/O21 -> 10.14847311 | Q21: =MIN($N21-SUM($P21:P22),($N21-SUM($P22:P22))/$O21) -> 10.14847311 | R21: =MIN($N21-SUM($P21:Q22),($N21-SUM($P22:Q22))/$O21) -> 10.14847311 | S21: =MIN($N21-SUM($P21:R22),($N21-SUM($P22:R22))/$O21) -> 10.14847311 | T21: =MIN($N21-SUM($P21:S22),($N21-SUM($P22:S22))/$O21) -> 10.14847311
A22: Pipeworks Writeoff (Services) | B22: 5 | C22: 0 | D22: 2.477933352 | E22: 2.894895448 | F22: 2.944664043 | G22: 3.298296292 | H22: 3.298296292 | I22: 4.255061415 | J22: 4.255061415 | K22: 4.255061415 | L22: 4.255061415 | M22: 4.255061415 | P22: ='Actual Data Inputs'!B69 -> 0 | Q22: ='Actual Data Inputs'!C69 -> 0 | R22: ='Actual Data Inputs'!D69 -> 0 | S22: ='Actual Data Inputs'!E69 -> 0 | T22: ='Actual Data Inputs'!F69 -> 0
A23: CP | B23: 38 | C23: 0 | D23: =$C23/$B23 -> 0 | E23: =MIN($C23/$B23,$C23-SUM($D23:D23)) -> 0 | F23: =MIN($C23/$B23,$C23-SUM($D23:E23)) -> 0 | G23: =MIN($C23/$B23,$C23-SUM($D23:F23)) -> 0 | H23: =MIN($C23/$B23,$C23-SUM($D23:G23)) -> 0 | I23: =MIN($C23/$B23,$C23-SUM($D23:H23)) -> 0 | J23: =MIN($C23/$B23,$C23-SUM($D23:I23)) -> 0 | K23: =MIN($C23/$B23,$C23-SUM($D23:J23)) -> 0 | L23: =MIN($C23/$B23,$C23-SUM($D23:K23)) -> 0 | M23: =MIN($C23/$B23,$C23-SUM($D23:L23)) -> 0 | N23: =C23-SUM(D23:M23) -> 0 | O23: =MAX(B23-M$14,0) -> 28 | P23: =N23/O23 -> 0 | Q23: =MIN($N23/$O23,$N23-SUM($P23:P23)) -> 0 | R23: =MIN($N23/$O23,$N23-SUM($P23:Q23)) -> 0 | S23: =MIN($N23/$O23,$N23-SUM($P23:R23)) -> 0 | T23: =MIN($N23/$O23,$N23-SUM($P23:S23)) -> 0
A24: Supply Regs / Valve Stations | B24: 19 | C24: 17.44752138 | D24: 0.9182905991 | E24: =MIN($C24/$B24,$C24-SUM($D24:D24)) -> 0.9182905991 | F24: =MIN($C24/$B24,$C24-SUM($D24:E24)) -> 0.9182905991 | G24: =MIN($C24/$B24,$C24-SUM($D24:F24)) -> 0.9182905991 | H24: =MIN($C24/$B24,$C24-SUM($D24:G24)) -> 0.9182905991 | I24: =MIN($C24/$B24,$C24-SUM($D24:H24)) -> 0.9182905991 | J24: =MIN($C24/$B24,$C24-SUM($D24:I24)) -> 0.9182905991 | K24: =MIN($C24/$B24,$C24-SUM($D24:J24)) -> 0.9182905991 | L24: =MIN($C24/$B24,$C24-SUM($D24:K24)) -> 0.9182905991 | M24: =MIN($C24/$B24,$C24-SUM($D24:L24)) -> 0.9182905991 | N24: =C24-SUM(D24:M24) -> 8.264615392 | O24: 9 | P24: 0.9182905991 | Q24: =MIN($N24/$O24,$N24-SUM($P24:P24)) -> 0.9182905991 | R24: =MIN($N24/$O24,$N24-SUM($P24:Q24)) -> 0.9182905991 | S24: =MIN($N24/$O24,$N24-SUM($P24:R24)) -> 0.9182905991 | T24: =MIN($N24/$O24,$N24-SUM($P24:S24)) -> 0.9182905991
A25: Meters | B25: 18 | C25: 143.1338841 | D25: 7.951882451 | E25: =MIN($C25/$B25,$C25-SUM($D25:D25)) -> 7.951882451 | F25: =MIN($C25/$B25,$C25-SUM($D25:E25)) -> 7.951882451 | G25: =MIN($C25/$B25,$C25-SUM($D25:F25)) -> 7.951882451 | H25: =MIN($C25/$B25,$C25-SUM($D25:G25)) -> 7.951882451 | I25: =MIN($C25/$B25,$C25-SUM($D25:H25)) -> 7.951882451 | J25: =MIN($C25/$B25,$C25-SUM($D25:I25)) -> 7.951882451 | K25: =MIN($C25/$B25,$C25-SUM($D25:J25)) -> 7.951882451 | L25: =MIN($C25/$B25,$C25-SUM($D25:K25)) -> 7.951882451 | M25: =MIN($C25/$B25,$C25-SUM($D25:L25)) -> 7.951882451 | N25: 63.61505961 | O25: 8 | P25: 7.951882451 | Q25: =MIN($N25/$O25,$N25-SUM($P25:P25)) -> 7.951882451 | R25: =MIN($N25/$O25,$N25-SUM($P25:Q25)) -> 7.951882451 | S25: =MIN($N25/$O25,$N25-SUM($P25:R25)) -> 7.951882451 | T25: =MIN($N25/$O25,$N25-SUM($P25:S25)) -> 7.951882451
A26: SCADA | B26: 7 | C26: 3.916341496 | D26: 0.5594773566 | E26: =MIN($C26/$B26,$C26-SUM($D26:D26)) -> 0.5594773566 | F26: =MIN($C26/$B26,$C26-SUM($D26:E26)) -> 0.5594773566 | G26: =MIN($C26/$B26,$C26-SUM($D26:F26)) -> 0.5594773566 | H26: =MIN($C26/$B26,$C26-SUM($D26:G26)) -> 0.5594773566 | I26: =MIN($C26/$B26,$C26-SUM($D26:H26)) -> 0.5594773566 | J26: =MIN($C26/$B26,$C26-SUM($D26:I26)) -> 0.5594773566 | K26: =MIN($C26/$B26,$C26-SUM($D26:J26)) -> 4.440892099e-16 | L26: =MIN($C26/$B26,$C26-SUM($D26:K26)) -> 0 | M26: =MIN($C26/$B26,$C26-SUM($D26:L26)) -> 0 | N26: 0 | O26: 0
A27: Computer Equipment | B27: 5 | C27: 25.3968007 | D27: 5.07936014 | E27: =MIN($C27/$B27,$C27-SUM($D27:D27)) -> 5.07936014 | F27: =MIN($C27/$B27,$C27-SUM($D27:E27)) -> 5.07936014 | G27: =MIN($C27/$B27,$C27-SUM($D27:F27)) -> 5.07936014 | H27: =MIN($C27/$B27,$C27-SUM($D27:G27)) -> 5.07936014 | I27: =MIN($C27/$B27,$C27-SUM($D27:H27)) -> 0 | J27: =MIN($C27/$B27,$C27-SUM($D27:I27)) -> 0 | K27: =MIN($C27/$B27,$C27-SUM($D27:J27)) -> 0 | L27: =MIN($C27/$B27,$C27-SUM($D27:K27)) -> 0 | M27: =MIN($C27/$B27,$C27-SUM($D27:L27)) -> 0 | N27: 0 | O27: 0
A28: Other Assets | B28: 7 | C28: 2.821781562 | D28: 0.4031116518 | E28: =MIN($C28/$B28,$C28-SUM($D28:D28)) -> 0.4031116518 | F28: =MIN($C28/$B28,$C28-SUM($D28:E28)) -> 0.4031116518 | G28: =MIN($C28/$B28,$C28-SUM($D28:F28)) -> 0.4031116518 | H28: =MIN($C28/$B28,$C28-SUM($D28:G28)) -> 0.4031116518 | I28: =MIN($C28/$B28,$C28-SUM($D28:H28)) -> 0.4031116518 | J28: =MIN($C28/$B28,$C28-SUM($D28:I28)) -> 0.4031116518 | K28: =MIN($C28/$B28,$C28-SUM($D28:J28)) -> 0 | L28: =MIN($C28/$B28,$C28-SUM($D28:K28)) -> 0 | M28: =MIN($C28/$B28,$C28-SUM($D28:L28)) -> 0 | N28: 0 | O28: 0
A29: SL Depreciation | C29: =SUM(C19:C28) -> 1065.320047 | D29: 42.80406827 | E29: 43.63799545 | F29: 43.7375379 | G29: 44.44480136 | H29: 44.34188417 | I29: 40.50551023 | J29: 40.13262699 | K29: 38.92906632 | L29: 38.57932107 | M29: 38.26125345 | N29: 649.945982 | P29: =SUM(P19:P28) -> 29.5153983 | Q29: 29.5153983 | R29: 29.5153983 | S29: 29.5153983 | T29: 29.5153983
A30: WDV | B30: Check | C30: =ABS(N30) -> 1.136868377e-13 | D30: =C29-D29 -> 1022.515979 | E30: =D30-E29 -> 978.8779835 | F30: 935.1404456 | G30: 890.6956443 | H30: 846.3537601 | I30: 805.8482499 | J30: 765.7156229 | K30: 726.7865566 | L30: 688.2072355 | M30: 649.945982 | N30: =ABS(N29-M30) -> 1.136868377e-13 | P30: =N29-P29 -> 620.4305837 | Q30: =P30-Q29 -> 590.9151854 | R30: =Q30-R29 -> 561.3997871 | S30: 531.8843888 | T30: 502.3689905
A31: Check to GAAR 2008-12 | C31: =ABS(C29-'GAAR 2008-12 Data Inputs'!G13*$L$10) -> 0
D34: GAAR 2008-12 : Actuals 2003-06, Forecasts 2007 | I34: GAAR 2008-12 : Forecasts 2008-12
A35: Capex Expenditure - Decision (Real $ 2012) | D35: =D$17 -> 2003 | E35: =E$17 -> 2004 | F35: 2005 | G35: 2006 | H35: 2007 | I35: 2008 | J35: 2009 | K35: 2010 | L35: 2011 | M35: 2012
A36: Transmission and Distribution | D36: 11.07764138 | E36: 19.94604878 | F36: 25.34346162 | G36: 29.31446172 | H36: 86.93898438 | I36: 36.94727515 | J36: 41.90694676 | K36: 49.42045362 | L36: 42.74190882 | M36: 41.86777493
A37: Services | D37: 11.96184675 | E37: 5.438478806 | F37: 5.657392572 | G37: 6.543861226 | H37: 9.042486581 | I37: 0 | J37: 0 | K37: 0 | L37: 0 | M37: 0
A38: CP | D38: 0.07970174656 | E38: 0.09918762139 | F38: 0.07905444842 | G38: 0.09144165499 | H38: 0.1263565821 | I38: 0 | J38: 0 | K38: 0 | L38: 0 | M38: 0
A39: Supply Regs / Valve Stations | D39: 1.739149868 | E39: 2.589022273 | F39: 1.226889949 | G39: 1.419133897 | H39: 1.960998067 | I39: 0 | J39: 0 | K39: 0 | L39: 0 | M39: 0
A40: Meters | D40: 4.113743863 | E40: 4.397414673 | F40: 3.56393523 | G40: 4.122375682 | H40: 5.696411568 | I40: 5.568779548 | J40: 5.287828879 | K40: 4.868662835 | L40: 5.070798358 | M40: 5.008173478
A41: Land & Buildings | D41: 0 | E41: 0 | F41: 0 | G41: 0 | H41: 0 | I41: 0 | J41: 0 | K41: 0 | L41: 0 | M41: 0
A42: SCADA | D42: 0.9674717267 | E42: 0.3381898311 | F42: 0.1187531761 | G42: 0.1373608592 | H42: 0.1898089955 | I42: 1.051547232 | J42: 0.8255115241 | K42: 0.8148024176 | L42: 0.8982911505 | M42: 0.2503196125
A43: Computer Equipment | D43: 3.915412124 | E43: 6.056780086 | F43: 1.622854374 | G43: 0.6896048096 | H43: 1.37177947 | I43: 3.467042724 | J43: 26.14353805 | K43: 0.3293391188 | L43: 0.6287383178 | M43: 0.3293391188
A44: Other Assets | D44: 0.008322838787 | E44: 0.1597000873 | F44: 0 | G44: 0 | H44: 0 | I44: 0 | J44: 0 | K44: 0 | L44: 0 | M44: 0
D45: =SUM(D36:D44) -> 33.8632903 | E45: 39.02482216 | F45: 37.61234137 | G45: 42.31823985 | H45: 105.3268256 | I45: 47.03464465 | J45: 74.16382521 | K45: 55.43325799 | L45: 49.33973664 | M45: 47.45560714
A46: Check to GAAR 2008-12 | C46: =SUM(D46:M46) -> 6.394884622e-14 | D46: =ABS(SUM('GAAR 2008-12 Data Inputs'!G14,-'GAAR 2008-12 Data Inputs'!G15,-'GAAR 2008-12 Data Inputs'!G16)*$L$10-D45) -> 7.105427358e-15 | E46: =ABS(SUM('GAAR 2008-12 Data Inputs'!H14,-'GAAR 2008-12 Data Inputs'!H15,-'GAAR 2008-12 Data Inputs'!H16)*$L$10-E45) -> 0 | F46: =ABS(SUM('GAAR 2008-12 Data Inputs'!I14,-'GAAR 2008-12 Data Inputs'!I15,-'GAAR 2008-12 Data Inputs'!I16)*$L$10-F45) -> 7.105427358e-15 | G46: =ABS(SUM('GAAR 2008-12 Data Inputs'!J14,-'GAAR 2008-12 Data Inputs'!J15,-'GAAR 2008-12 Data Inputs'!J16)*$L$10-G45) -> 0 | H46: =ABS(SUM('GAAR 2008-12 Data Inputs'!K14,-'GAAR 2008-12 Data Inputs'!K15,-'GAAR 2008-12 Data Inputs'!K16,'GAAR 2008-12 Data Inputs'!K19)*$L$10-H45) -> 1.421085472e-14 | I46: =ABS(SUM('GAAR 2008-12 Data Inputs'!L14,-'GAAR 2008-12 Data Inputs'!L15,-'GAAR 2008-12 Data Inputs'!L16)*$L$10-I45) -> 1.421085472e-14 | J46: =ABS(SUM('GAAR 2008-12 Data Inputs'!M14,-'GAAR 2008-12 Data Inputs'!M15,-'GAAR 2008-12 Data Inputs'!M16)*$L$10-J45) -> 0 | K46: =ABS(SUM('GAAR 2008-12 Data Inputs'!N14,-'GAAR 2008-12 Data Inputs'!N15,-'GAAR 2008-12 Data Inputs'!N16)*$L$10-K45) -> 1.421085472e-14 | L46: =ABS(SUM('GAAR 2008-12 Data Inputs'!O14,-'GAAR 2008-12 Data Inputs'!O15,-'GAAR 2008-12 Data Inputs'!O16)*$L$10-L45) -> 0 | M46: =ABS(SUM('GAAR 2008-12 Data Inputs'!P14,-'GAAR 2008-12 Data Inputs'!P15,-'GAAR 2008-12 Data Inputs'!P16)*$L$10-M45) -> 7.105427358e-15
D48: GAAR 2013-17 : Actuals 2003-11, Forecasts 2012
A49: Capex Expenditure - Actual (Real $ 2012) | D49: =D$17 -> 2003 | E49: =E$17 -> 2004 | F49: 2005 | G49: 2006 | H49: 2007 | I49: 2008 | J49: 2009 | K49: 2010 | L49: 2011 | M49: 2012
A50: Transmission and Distribution | D50: =D36 -> 11.07764138 | E50: 19.94604878 | F50: 25.34346162 | G50: 29.31446172 | H50: =('Actual Data Inputs'!B39-'Actual Data Inputs'!B51+'Actual Data Inputs'!B64)*'Actual Data Inputs'!M$9 -> 91.65518672 | I50: =('Actual Data Inputs'!C39-'Actual Data Inputs'!C51)*'Actual Data Inputs'!N$9 -> 23.16335111 | J50: =('Actual Data Inputs'!D39-'Actual Data Inputs'!D51)*'Actual Data Inputs'!O$9 -> -3.626693832 | K50: =('Actual Data Inputs'!E39-'Actual Data Inputs'!E51)*'Actual Data Inputs'!P$9 -> 16.90802383 | L50: =('Actual Data Inputs'!F39-'Actual Data Inputs'!F51)*'Actual Data Inputs'!Q$9 -> 21.55178636 | M50: =('Actual Data Inputs'!G39-'Actual Data Inputs'!G51)*'Actual Data Inputs'!R$9 -> 25.05060922
A51: Services | D51: 11.96184675 | E51: 5.438478806 | F51: 5.657392572 | G51: 6.543861226 | H51: =('Actual Data Inputs'!B40-'Actual Data Inputs'!B52)*'Actual Data Inputs'!M$9 -> 5.020204239 | I51: =('Actual Data Inputs'!C40-'Actual Data Inputs'!C52)*'Actual Data Inputs'!N$9 -> 8.660152932 | J51: =('Actual Data Inputs'!D40-'Actual Data Inputs'!D52)*'Actual Data Inputs'!O$9 -> 10.10768777 | K51: =('Actual Data Inputs'!E40-'Actual Data Inputs'!E52)*'Actual Data Inputs'!P$9 -> 9.79143705 | L51: =('Actual Data Inputs'!F40-'Actual Data Inputs'!F52)*'Actual Data Inputs'!Q$9 -> 10.62445516 | M51: =('Actual Data Inputs'!G40-'Actual Data Inputs'!G52)*'Actual Data Inputs'!R$9 -> 12.11248264
A52: CP | D52: 0.07970174656 | E52: 0.09918762139 | F52: 0.07905444842 | G52: 0.09144165499 | H52: =('Actual Data Inputs'!B41-'Actual Data Inputs'!B53)*'Actual Data Inputs'!M$9 -> 0.06106743738 | I52: =('Actual Data Inputs'!C41-'Actual Data Inputs'!C53)*'Actual Data Inputs'!N$9 -> 0.1194951615 | J52: =('Actual Data Inputs'!D41-'Actual Data Inputs'!D53)*'Actual Data Inputs'!O$9 -> 0.1850059106 | K52: =('Actual Data Inputs'!E41-'Actual Data Inputs'!E53)*'Actual Data Inputs'!P$9 -> 0.06642370125 | L52: =('Actual Data Inputs'!F41-'Actual Data Inputs'!F53)*'Actual Data Inputs'!Q$9 -> 0.1275365263 | M52: =('Actual Data Inputs'!G41-'Actual Data Inputs'!G53)*'Actual Data Inputs'!R$9 -> 0.1453988874
A53: Supply Regs / Valve Stations | D53: 1.739149868 | E53: 2.589022273 | F53: 1.226889949 | G53: 1.419133897 | H53: =('Actual Data Inputs'!B42-'Actual Data Inputs'!B54)*'Actual Data Inputs'!M$9 -> 1.326200385 | I53: =('Actual Data Inputs'!C42-'Actual Data Inputs'!C54)*'Actual Data Inputs'!N$9 -> 2.711226536 | J53: =('Actual Data Inputs'!D42-'Actual Data Inputs'!D54)*'Actual Data Inputs'!O$9 -> 1.601929016 | K53: =('Actual Data Inputs'!E42-'Actual Data Inputs'!E54)*'Actual Data Inputs'!P$9 -> 0.9824860259 | L53: =('Actual Data Inputs'!F42-'Actual Data Inputs'!F54)*'Actual Data Inputs'!Q$9 -> 1.125468436 | M53: =('Actual Data Inputs'!G42-'Actual Data Inputs'!G54)*'Actual Data Inputs'!R$9 -> 1.283097974
A54: Meters | D54: 4.113743863 | E54: 4.397414673 | F54: 3.56393523 | G54: 4.122375682 | H54: =('Actual Data Inputs'!B43-'Actual Data Inputs'!B55)*'Actual Data Inputs'!M$9 -> 3.284967245 | I54: =('Actual Data Inputs'!C43-'Actual Data Inputs'!C55)*'Actual Data Inputs'!N$9 -> 3.142545225 | J54: =('Actual Data Inputs'!D43-'Actual Data Inputs'!D55)*'Actual Data Inputs'!O$9 -> 3.575154885 | K54: =('Actual Data Inputs'!E43-'Actual Data Inputs'!E55)*'Actual Data Inputs'!P$9 -> 3.958714129 | L54: =('Actual Data Inputs'!F43-'Actual Data Inputs'!F55)*'Actual Data Inputs'!Q$9 -> 4.316055511 | M54: =('Actual Data Inputs'!G43-'Actual Data Inputs'!G55)*'Actual Data Inputs'!R$9 -> 6.435821779
A55: Land & Buildings | D55: 0 | E55: 0 | F55: 0 | G55: 0 | H55: =('Actual Data Inputs'!B44-'Actual Data Inputs'!B56)*'Actual Data Inputs'!M$9 -> 0 | I55: =('Actual Data Inputs'!C44-'Actual Data Inputs'!C56)*'Actual Data Inputs'!N$9 -> 0 | J55: =('Actual Data Inputs'!D44-'Actual Data Inputs'!D56)*'Actual Data Inputs'!O$9 -> 0 | K55: =('Actual Data Inputs'!E44-'Actual Data Inputs'!E56)*'Actual Data Inputs'!P$9 -> 0 | L55: =('Actual Data Inputs'!F44-'Actual Data Inputs'!F56)*'Actual Data Inputs'!Q$9 -> 0 | M55: =('Actual Data Inputs'!G44-'Actual Data Inputs'!G56)*'Actual Data Inputs'!R$9 -> 0
A56: SCADA | D56: 0.9674717267 | E56: 0.3381898311 | F56: 0.1187531761 | G56: 0.1373608592 | H56: =('Actual Data Inputs'!B46-'Actual Data Inputs'!B58)*'Actual Data Inputs'!M$9 -> 0.2338998073 | I56: =('Actual Data Inputs'!C46-'Actual Data Inputs'!C58)*'Actual Data Inputs'!N$9 -> 0.1124699321 | J56: =('Actual Data Inputs'!D46-'Actual Data Inputs'!D58)*'Actual Data Inputs'!O$9 -> 0.08634678234 | K56: =('Actual Data Inputs'!E46-'Actual Data Inputs'!E58)*'Actual Data Inputs'!P$9 -> 0.0042529079 | L56: =('Actual Data Inputs'!F46-'Actual Data Inputs'!F58)*'Actual Data Inputs'!Q$9 -> 0.0714287363 | M56: =('Actual Data Inputs'!G46-'Actual Data Inputs'!G58)*'Actual Data Inputs'!R$9 -> 0.2503196125
A57: Computer Equipment | D57: 3.915412124 | E57: 6.056780086 | F57: 1.622854374 | G57: 0.6896048096 | H57: =('Actual Data Inputs'!B45-'Actual Data Inputs'!B57)*'Actual Data Inputs'!M$9 -> 0.8791406551 | I57: =('Actual Data Inputs'!C45-'Actual Data Inputs'!C57)*'Actual Data Inputs'!N$9 -> 0.8856388446 | J57: =('Actual Data Inputs'!D45-'Actual Data Inputs'!D57)*'Actual Data Inputs'!O$9 -> 1.260758271 | K57: =('Actual Data Inputs'!E45-'Actual Data Inputs'!E57)*'Actual Data Inputs'!P$9 -> 6.427647956 | L57: =('Actual Data Inputs'!F45-'Actual Data Inputs'!F57)*'Actual Data Inputs'!Q$9 -> 24.31821348 | M57: =('Actual Data Inputs'!G45-'Actual Data Inputs'!G57)*'Actual Data Inputs'!R$9 -> 0.3293391188
A58: Other Assets | D58: 0.008322838787 | E58: 0.1597000873 | F58: 0 | G58: 0 | H58: =('Actual Data Inputs'!B47-'Actual Data Inputs'!B59)*'Actual Data Inputs'!M$9 -> -0.003456647399 | I58: =('Actual Data Inputs'!C47-'Actual Data Inputs'!C59)*'Actual Data Inputs'!N$9 -> 0 | J58: =('Actual Data Inputs'!D47-'Actual Data Inputs'!D59)*'Actual Data Inputs'!O$9 -> 0 | K58: =('Actual Data Inputs'!E47-'Actual Data Inputs'!E59)*'Actual Data Inputs'!P$9 -> 0.1895124779 | L58: =('Actual Data Inputs'!F47-'Actual Data Inputs'!F59)*'Actual Data Inputs'!Q$9 -> 0.1252590883 | M58: =('Actual Data Inputs'!G47-'Actual Data Inputs'!G59)*'Actual Data Inputs'!R$9 -> 0
D59: =SUM(D50:D58) -> 33.8632903 | E59: 39.02482216 | F59: 37.61234137 | G59: 42.31823985 | H59: 102.4572098 | I59: 38.79487974 | J59: 13.1901888 | K59: 38.32849808 | L59: 62.2602033 | M59: 45.60706923
A63: Capex
A64: Economic Lives
A65: =A36 -> Transmission and Distribution | B65: 50
A66: Services | B66: 50
A67: CP | B67: 50
A68: Supply Regs / Valve Stations | B68: 50
A69: Meters | B69: 30
A70: Land & Buildings | B70: 50
A71: SCADA | B71: 7
A72: Computer Equipment | B72: 5
A73: Other Assets | B73: 10
A75: =A$65 -> Transmission and Distribution | D75: =D$17 -> 2003 | E75: =E$17 -> 2004 | F75: 2005 | G75: 2006 | H75: 2007 | I75: 2008 | J75: 2009 | K75: 2010 | L75: 2011 | M75: 2012 | N75: =$P75 -> 2013 | O75: =$P75 -> 2013 | P75: 2013 | Q75: 2014 | R75: 2015 | S75: 2016 | T75: 2017
A76: Decision Net Capex | B76: Eco Life | C76: Year | D76: =D$36 -> 11.07764138 | E76: =E$36 -> 19.94604878 | F76: 25.34346162 | G76: 29.31446172 | H76: 86.93898438 | I76: 36.94727515 | J76: 41.90694676 | K76: 49.42045362 | L76: 42.74190882 | M76: 41.86777493 | N76: OAV | O76: Rem Life
B77: =$B$65 -> 50 | C77: =D75 -> 2003 | D77: =($D$76*0.5)/$B77 -> 0.1107764138 | E77: =IF(ABS($D$76-SUM($D77:D77))<ABS($D$76/$B77),$D$76-SUM($D77:D77),$D$76/$B77) -> 0.2215528276 | F77: =IF(ABS($D$76-SUM($D77:E77))<ABS($D$76/$B77),$D$76-SUM($D77:E77),$D$76/$B77) -> 0.2215528276 | G77: =IF(ABS($D$76-SUM($D77:F77))<ABS($D$76/$B77),$D$76-SUM($D77:F77),$D$76/$B77) -> 0.2215528276 | H77: =IF(ABS($D$76-SUM($D77:G77))<ABS($D$76/$B77),$D$76-SUM($D77:G77),$D$76/$B77) -> 0.2215528276 | I77: =IF(ABS($D$76-SUM($D77:H77))<ABS($D$76/$B77),$D$76-SUM($D77:H77),$D$76/$B77) -> 0.2215528276 | J77: =IF(ABS($D$76-SUM($D77:I77))<ABS($D$76/$B77),$D$76-SUM($D77:I77),$D$76/$B77) -> 0.2215528276 | K77: =IF(ABS($D$76-SUM($D77:J77))<ABS($D$76/$B77),$D$76-SUM($D77:J77),$D$76/$B77) -> 0.2215528276 | L77: =IF(ABS($D$76-SUM($D77:K77))<ABS($D$76/$B77),$D$76-SUM($D77:K77),$D$76/$B77) -> 0.2215528276 | M77: =IF(ABS($D$76-SUM($D77:L77))<ABS($D$76/$B77),$D$76-SUM($D77:L77),$D$76/$B77) -> 0.2215528276 | N77: =D$50-SUM(D77:M77) -> 8.972889518 | O77: =IF(O78-1<0,0,O78-1) -> 40.5 | P77: =IF(O77<1,N77,N77/O77) -> 0.2215528276 | Q77: =IF($O77=0,0,IF(ABS($N77-SUM($P77:P77))<ABS($N77/$O77),$N77-SUM($P77:P77),$N77/$O77)) -> 0.2215528276 | R77: =IF($O77=0,0,IF(ABS($N77-SUM($P77:Q77))<ABS($N77/$O77),$N77-SUM($P77:Q77),$N77/$O77)) -> 0.2215528276 | S77: =IF($O77=0,0,IF(ABS($N77-SUM($P77:R77))<ABS($N77/$O77),$N77-SUM($P77:R77),$N77/$O77)) -> 0.2215528276 | T77: =IF($O77=0,0,IF(ABS($N77-SUM($P77:S77))<ABS($N77/$O77),$N77-SUM($P77:S77),$N77/$O77)) -> 0.2215528276
B78: =B77 -> 50 | C78: =E75 -> 2004 | E78: =($E$76*0.5)/$B78 -> 0.1994604878 | F78: =IF(ABS($E$76-SUM($D78:E78))<ABS($E$76/$B78),$E$76-SUM($D78:E78),$E$76/$B78) -> 0.3989209756 | G78: =IF(ABS($E$76-SUM($D78:F78))<ABS($E$76/$B78),$E$76-SUM($D78:F78),$E$76/$B78) -> 0.3989209756 | H78: =IF(ABS($E$76-SUM($D78:G78))<ABS($E$76/$B78),$E$76-SUM($D78:G78),$E$76/$B78) -> 0.3989209756 | I78: =IF(ABS($E$76-SUM($D78:H78))<ABS($E$76/$B78),$E$76-SUM($D78:H78),$E$76/$B78) -> 0.3989209756 | J78: =IF(ABS($E$76-SUM($D78:I78))<ABS($E$76/$B78),$E$76-SUM($D78:I78),$E$76/$B78) -> 0.3989209756 | K78: =IF(ABS($E$76-SUM($D78:J78))<ABS($E$76/$B78),$E$76-SUM($D78:J78),$E$76/$B78) -> 0.3989209756 | L78: =IF(ABS($E$76-SUM($D78:K78))<ABS($E$76/$B78),$E$76-SUM($D78:K78),$E$76/$B78) -> 0.3989209756 | M78: =IF(ABS($E$76-SUM($D78:L78))<ABS($E$76/$B78),$E$76-SUM($D78:L78),$E$76/$B78) -> 0.3989209756 | N78: =E$50-SUM(D78:M78) -> 16.55522049 | O78: 41.5 | P78: =IF(O78<1,N78,N78/O78) -> 0.3989209756 | Q78: =IF($O78=0,0,IF(ABS($N78-SUM($P78:P78))<ABS($N78/$O78),$N78-SUM($P78:P78),$N78/$O78)) -> 0.3989209756 | R78: =IF($O78=0,0,IF(ABS($N78-SUM($P78:Q78))<ABS($N78/$O78),$N78-SUM($P78:Q78),$N78/$O78)) -> 0.3989209756 | S78: =IF($O78=0,0,IF(ABS($N78-SUM($P78:R78))<ABS($N78/$O78),$N78-SUM($P78:R78),$N78/$O78)) -> 0.3989209756 | T78: =IF($O78=0,0,IF(ABS($N78-SUM($P78:S78))<ABS($N78/$O78),$N78-SUM($P78:S78),$N78/$O78)) -> 0.3989209756
B79: 50 | C79: =F75 -> 2005 | F79: =($F$76*0.5)/$B79 -> 0.2534346162 | G79: =IF(ABS($F$76-SUM($D79:F79))<ABS($F$76/$B79),$F$76-SUM($D79:F79),$F$76/$B79) -> 0.5068692324 | H79: =IF(ABS($F$76-SUM($D79:G79))<ABS($F$76/$B79),$F$76-SUM($D79:G79),$F$76/$B79) -> 0.5068692324 | I79: =IF(ABS($F$76-SUM($D79:H79))<ABS($F$76/$B79),$F$76-SUM($D79:H79),$F$76/$B79) -> 0.5068692324 | J79: =IF(ABS($F$76-SUM($D79:I79))<ABS($F$76/$B79),$F$76-SUM($D79:I79),$F$76/$B79) -> 0.5068692324 | K79: =IF(ABS($F$76-SUM($D79:J79))<ABS($F$76/$B79),$F$76-SUM($D79:J79),$F$76/$B79) -> 0.5068692324 | L79: =IF(ABS($F$76-SUM($D79:K79))<ABS($F$76/$B79),$F$76-SUM($D79:K79),$F$76/$B79) -> 0.5068692324 | M79: =IF(ABS($F$76-SUM($D79:L79))<ABS($F$76/$B79),$F$76-SUM($D79:L79),$F$76/$B79) -> 0.5068692324 | N79: =F$50-SUM(D79:M79) -> 21.54194238 | O79: 42.5 | P79: 0.5068692324 | Q79: =IF($O79=0,0,IF(ABS($N79-SUM($P79:P79))<ABS($N79/$O79),$N79-SUM($P79:P79),$N79/$O79)) -> 0.5068692324 | R79: =IF($O79=0,0,IF(ABS($N79-SUM($P79:Q79))<ABS($N79/$O79),$N79-SUM($P79:Q79),$N79/$O79)) -> 0.5068692324 | S79: =IF($O79=0,0,IF(ABS($N79-SUM($P79:R79))<ABS($N79/$O79),$N79-SUM($P79:R79),$N79/$O79)) -> 0.5068692324 | T79: =IF($O79=0,0,IF(ABS($N79-SUM($P79:S79))<ABS($N79/$O79),$N79-SUM($P79:S79),$N79/$O79)) -> 0.5068692324
B80: 50 | C80: =G75 -> 2006 | G80: =($G$76*0.5)/$B80 -> 0.2931446172 | H80: =IF(ABS($G$76-SUM($D80:G80))<ABS($G$76/$B80),$G$76-SUM($D80:G80),$G$76/$B80) -> 0.5862892344 | I80: =IF(ABS($G$76-SUM($D80:H80))<ABS($G$76/$B80),$G$76-SUM($D80:H80),$G$76/$B80) -> 0.5862892344 | J80: =IF(ABS($G$76-SUM($D80:I80))<ABS($G$76/$B80),$G$76-SUM($D80:I80),$G$76/$B80) -> 0.5862892344 | K80: =IF(ABS($G$76-SUM($D80:J80))<ABS($G$76/$B80),$G$76-SUM($D80:J80),$G$76/$B80) -> 0.5862892344 | L80: =IF(ABS($G$76-SUM($D80:K80))<ABS($G$76/$B80),$G$76-SUM($D80:K80),$G$76/$B80) -> 0.5862892344 | M80: =IF(ABS($G$76-SUM($D80:L80))<ABS($G$76/$B80),$G$76-SUM($D80:L80),$G$76/$B80) -> 0.5862892344 | N80: =G$50-SUM(D80:M80) -> 25.5035817 | O80: 43.5 | P80: 0.5862892344 | Q80: =IF($O80=0,0,IF(ABS($N80-SUM($P80:P80))<ABS($N80/$O80),$N80-SUM($P80:P80),$N80/$O80)) -> 0.5862892344 | R80: =IF($O80=0,0,IF(ABS($N80-SUM($P80:Q80))<ABS($N80/$O80),$N80-SUM($P80:Q80),$N80/$O80)) -> 0.5862892344 | S80: =IF($O80=0,0,IF(ABS($N80-SUM($P80:R80))<ABS($N80/$O80),$N80-SUM($P80:R80),$N80/$O80)) -> 0.5862892344 | T80: =IF($O80=0,0,IF(ABS($N80-SUM($P80:S80))<ABS($N80/$O80),$N80-SUM($P80:S80),$N80/$O80)) -> 0.5862892344
B81: 50 | C81: =H75 -> 2007 | H81: =($H$76*0.5)/$B81 -> 0.8693898438 | I81: =IF(ABS($H$76-SUM($D81:H81))<ABS($H$76/$B81),$H$76-SUM($D81:H81),$H$76/$B81) -> 1.738779688 | J81: =IF(ABS($H$76-SUM($D81:I81))<ABS($H$76/$B81),$H$76-SUM($D81:I81),$H$76/$B81) -> 1.738779688 | K81: =IF(ABS($H$76-SUM($D81:J81))<ABS($H$76/$B81),$H$76-SUM($D81:J81),$H$76/$B81) -> 1.738779688 | L81: =IF(ABS($H$76-SUM($D81:K81))<ABS($H$76/$B81),$H$76-SUM($D81:K81),$H$76/$B81) -> 1.738779688 | M81: =IF(ABS($H$76-SUM($D81:L81))<ABS($H$76/$B81),$H$76-SUM($D81:L81),$H$76/$B81) -> 1.738779688 | N81: =H$50-SUM(D81:M81) -> 82.09189844 | O81: 44.5 | P81: 1.844761763 | Q81: =IF($O81=0,0,IF(ABS($N81-SUM($P81:P81))<ABS($N81/$O81),$N81-SUM($P81:P81),$N81/$O81)) -> 1.844761763 | R81: =IF($O81=0,0,IF(ABS($N81-SUM($P81:Q81))<ABS($N81/$O81),$N81-SUM($P81:Q81),$N81/$O81)) -> 1.844761763 | S81: =IF($O81=0,0,IF(ABS($N81-SUM($P81:R81))<ABS($N81/$O81),$N81-SUM($P81:R81),$N81/$O81)) -> 1.844761763 | T81: =IF($O81=0,0,IF(ABS($N81-SUM($P81:S81))<ABS($N81/$O81),$N81-SUM($P81:S81),$N81/$O81)) -> 1.844761763
B82: 50 | C82: =I75 -> 2008 | I82: =($I$76*0.5)/$B82 -> 0.3694727515 | J82: =IF(ABS($I$76-SUM($D82:I82))<ABS($I$76/$B82),$I$76-SUM($D82:I82),$I$76/$B82) -> 0.738945503 | K82: =IF(ABS($I$76-SUM($D82:J82))<ABS($I$76/$B82),$I$76-SUM($D82:J82),$I$76/$B82) -> 0.738945503 | L82: =IF(ABS($I$76-SUM($D82:K82))<ABS($I$76/$B82),$I$76-SUM($D82:K82),$I$76/$B82) -> 0.738945503 | M82: =IF(ABS($I$76-SUM($D82:L82))<ABS($I$76/$B82),$I$76-SUM($D82:L82),$I$76/$B82) -> 0.738945503 | N82: =I$50-SUM(D82:M82) -> 19.83809634 | O82: 45.5 | P82: 0.4360021174 | Q82: =IF($O82=0,0,IF(ABS($N82-SUM($P82:P82))<ABS($N82/$O82),$N82-SUM($P82:P82),$N82/$O82)) -> 0.4360021174 | R82: =IF($O82=0,0,IF(ABS($N82-SUM($P82:Q82))<ABS($N82/$O82),$N82-SUM($P82:Q82),$N82/$O82)) -> 0.4360021174 | S82: =IF($O82=0,0,IF(ABS($N82-SUM($P82:R82))<ABS($N82/$O82),$N82-SUM($P82:R82),$N82/$O82)) -> 0.4360021174 | T82: =IF($O82=0,0,IF(ABS($N82-SUM($P82:S82))<ABS($N82/$O82),$N82-SUM($P82:S82),$N82/$O82)) -> 0.4360021174
B83: 50 | C83: =J75 -> 2009 | J83: =($J$76*0.5)/$B83 -> 0.4190694676 | K83: =IF(ABS($J$76-SUM($D83:J83))<ABS($J$76/$B83),$J$76-SUM($D83:J83),$J$76/$B83) -> 0.8381389352 | L83: =IF(ABS($J$76-SUM($D83:K83))<ABS($J$76/$B83),$J$76-SUM($D83:K83),$J$76/$B83) -> 0.8381389352 | M83: =IF(ABS($J$76-SUM($D83:L83))<ABS($J$76/$B83),$J$76-SUM($D83:L83),$J$76/$B83) -> 0.8381389352 | N83: =J$50-SUM(D83:M83) -> -6.560180106 | O83: 46.5 | P83: -0.1410791421 | Q83: =IF($O83=0,0,IF(ABS($N83-SUM($P83:P83))<ABS($N83/$O83),$N83-SUM($P83:P83),$N83/$O83)) -> -0.1410791421 | R83: =IF($O83=0,0,IF(ABS($N83-SUM($P83:Q83))<ABS($N83/$O83),$N83-SUM($P83:Q83),$N83/$O83)) -> -0.1410791421 | S83: =IF($O83=0,0,IF(ABS($N83-SUM($P83:R83))<ABS($N83/$O83),$N83-SUM($P83:R83),$N83/$O83)) -> -0.1410791421 | T83: =IF($O83=0,0,IF(ABS($N83-SUM($P83:S83))<ABS($N83/$O83),$N83-SUM($P83:S83),$N83/$O83)) -> -0.1410791421
B84: 50 | C84: =K75 -> 2010 | K84: =($K$76*0.5)/$B84 -> 0.4942045362 | L84: =IF(ABS($K$76-SUM($D84:K84))<ABS($K$76/$B84),$K$76-SUM($D84:K84),$K$76/$B84) -> 0.9884090723 | M84: =IF(ABS($K$76-SUM($D84:L84))<ABS($K$76/$B84),$K$76-SUM($D84:L84),$K$76/$B84) -> 0.9884090723 | N84: =K$50-SUM(D84:M84) -> 14.43700115 | O84: 47.5 | P84: 0.3039368664 | Q84: =IF($O84=0,0,IF(ABS($N84-SUM($P84:P84))<ABS($N84/$O84),$N84-SUM($P84:P84),$N84/$O84)) -> 0.3039368664 | R84: =IF($O84=0,0,IF(ABS($N84-SUM($P84:Q84))<ABS($N84/$O84),$N84-SUM($P84:Q84),$N84/$O84)) -> 0.3039368664 | S84: =IF($O84=0,0,IF(ABS($N84-SUM($P84:R84))<ABS($N84/$O84),$N84-SUM($P84:R84),$N84/$O84)) -> 0.3039368664 | T84: =IF($O84=0,0,IF(ABS($N84-SUM($P84:S84))<ABS($N84/$O84),$N84-SUM($P84:S84),$N84/$O84)) -> 0.3039368664
B85: 50 | C85: =L75 -> 2011 | L85: =($L$76*0.5)/$B85 -> 0.4274190882 | M85: =IF(ABS($L$76-SUM($D85:L85))<ABS($L$76/$B85),$L$76-SUM($D85:L85),$L$76/$B85) -> 0.8548381764 | N85: =L$50-SUM(D85:M85) -> 20.26952909 | O85: =IF(O86-1<0,0,O86-1) -> 48.5 | P85: 0.4179284349 | Q85: =IF($O85=0,0,IF(ABS($N85-SUM($P85:P85))<ABS($N85/$O85),$N85-SUM($P85:P85),$N85/$O85)) -> 0.4179284349 | R85: =IF($O85=0,0,IF(ABS($N85-SUM($P85:Q85))<ABS($N85/$O85),$N85-SUM($P85:Q85),$N85/$O85)) -> 0.4179284349 | S85: =IF($O85=0,0,IF(ABS($N85-SUM($P85:R85))<ABS($N85/$O85),$N85-SUM($P85:R85),$N85/$O85)) -> 0.4179284349 | T85: =IF($O85=0,0,IF(ABS($N85-SUM($P85:S85))<ABS($N85/$O85),$N85-SUM($P85:S85),$N85/$O85)) -> 0.4179284349
B86: 50 | C86: =M75 -> 2012 | M86: =($M$76*0.5)/$B86 -> 0.4186777493 | N86: =M$50-SUM(D86:M86) -> 24.63193147 | O86: =B77-0.5 -> 49.5 | P86: 0.4976147771 | Q86: =IF($O86=0,0,IF(ABS($N86-SUM($P86:P86))<ABS($N86/$O86),$N86-SUM($P86:P86),$N86/$O86)) -> 0.4976147771 | R86: =IF($O86=0,0,IF(ABS($N86-SUM($P86:Q86))<ABS($N86/$O86),$N86-SUM($P86:Q86),$N86/$O86)) -> 0.4976147771 | S86: =IF($O86=0,0,IF(ABS($N86-SUM($P86:R86))<ABS($N86/$O86),$N86-SUM($P86:R86),$N86/$O86)) -> 0.4976147771 | T86: =IF($O86=0,0,IF(ABS($N86-SUM($P86:S86))<ABS($N86/$O86),$N86-SUM($P86:S86),$N86/$O86)) -> 0.4976147771
A87: SL Depreciation | D87: =SUM(D77:D86) -> 0.1107764138 | E87: 0.4210133154 | F87: 0.8739084194 | G87: 1.420487653 | H87: 2.583022114 | I87: 3.821884709 | J87: 4.610426928 | K87: 5.523700932 | L87: 6.445324556 | M87: 7.291421394 | N87: 227.2819105 | P87: =SUM(P77:P86) -> 5.072797086 | Q87: 5.072797086 | R87: 5.072797086 | S87: 5.072797086 | T87: 5.072797086
A88: Actual WDV | B88: Check | C88: =ABS(N88) -> 2.842170943e-14 | D88: =D76-D87 -> 10.96686497 | E88: =D88+E76-E87 -> 30.49190043 | F88: =E88+F76-F87 -> 54.96145363 | G88: =F88+G76-G87 -> 82.8554277 | H88: =G88+H$50-H87 -> 171.9275923 | I88: =H88+I$50-I87 -> 191.2690587 | J88: 183.0319379 | K88: 194.4162608 | L88: 209.5227226 | M88: 227.2819105 | N88: =ABS(N87-M88) -> 2.842170943e-14 | P88: =N87-P87 -> 222.2091134 | Q88: =P88-Q87 -> 217.1363163 | R88: =Q88-R87 -> 212.0635192 | S88: 206.9907221 | T88: 201.917925
A90: =A$66 -> Services | D90: =D$17 -> 2003 | E90: =E$17 -> 2004 | F90: 2005 | G90: 2006 | H90: 2007 | I90: 2008 | J90: 2009 | K90: 2010 | L90: 2011 | M90: 2012 | N90: =$P90 -> 2013 | O90: =$P90 -> 2013 | P90: =P$17 -> 2013 | Q90: 2014 | R90: 2015 | S90: 2016 | T90: 2017
A91: Decision Net Capex | B91: Eco Life | C91: Year | D91: =D$37 -> 11.96184675 | E91: =E$37 -> 5.438478806 | F91: 5.657392572 | G91: 6.543861226 | H91: 9.042486581 | I91: 0 | J91: 0 | K91: 0 | L91: 0 | M91: 0 | N91: OAV | O91: Rem Life
B92: =$B$66 -> 50 | C92: =D90 -> 2003 | D92: =($D$91*0.5)/$B92 -> 0.1196184675 | E92: =IF(ABS($D$91-SUM($D92:D92))<ABS($D$91/$B92),$D$91-SUM($D92:D92),$D$91/$B92) -> 0.2392369351 | F92: =IF(ABS($D$91-SUM($D92:E92))<ABS($D$91/$B92),$D$91-SUM($D92:E92),$D$91/$B92) -> 0.2392369351 | G92: =IF(ABS($D$91-SUM($D92:F92))<ABS($D$91/$B92),$D$91-SUM($D92:F92),$D$91/$B92) -> 0.2392369351 | H92: =IF(ABS($D$91-SUM($D92:G92))<ABS($D$91/$B92),$D$91-SUM($D92:G92),$D$91/$B92) -> 0.2392369351 | I92: =IF(ABS($D$91-SUM($D92:H92))<ABS($D$91/$B92),$D$91-SUM($D92:H92),$D$91/$B92) -> 0.2392369351 | J92: =IF(ABS($D$91-SUM($D92:I92))<ABS($D$91/$B92),$D$91-SUM($D92:I92),$D$91/$B92) -> 0.2392369351 | K92: =IF(ABS($D$91-SUM($D92:J92))<ABS($D$91/$B92),$D$91-SUM($D92:J92),$D$91/$B92) -> 0.2392369351 | L92: =IF(ABS($D$91-SUM($D92:K92))<ABS($D$91/$B92),$D$91-SUM($D92:K92),$D$91/$B92) -> 0.2392369351 | M92: =IF(ABS($D$91-SUM($D92:L92))<ABS($D$91/$B92),$D$91-SUM($D92:L92),$D$91/$B92) -> 0.2392369351 | N92: =D$51-SUM(D92:M92) -> 9.68909587 | O92: =IF(O93-1<0,0,O93-1) -> 40.5 | P92: =IF(O92<1,N92,N92/O92) -> 0.2392369351 | Q92: =IF($O92=0,0,IF(ABS($N92-SUM($P92:P92))<ABS($N92/$O92),$N92-SUM($P92:P92),$N92/$O92)) -> 0.2392369351 | R92: =IF($O92=0,0,IF(ABS($N92-SUM($P92:Q92))<ABS($N92/$O92),$N92-SUM($P92:Q92),$N92/$O92)) -> 0.2392369351 | S92: =IF($O92=0,0,IF(ABS($N92-SUM($P92:R92))<ABS($N92/$O92),$N92-SUM($P92:R92),$N92/$O92)) -> 0.2392369351 | T92: =IF($O92=0,0,IF(ABS($N92-SUM($P92:S92))<ABS($N92/$O92),$N92-SUM($P92:S92),$N92/$O92)) -> 0.2392369351
B93: =B92 -> 50 | C93: =E90 -> 2004 | E93: =($E$91*0.5)/$B93 -> 0.05438478806 | F93: =IF(ABS($E$91-SUM($D93:E93))<ABS($E$91/$B93),$E$91-SUM($D93:E93),$E$91/$B93) -> 0.1087695761 | G93: =IF(ABS($E$91-SUM($D93:F93))<ABS($E$91/$B93),$E$91-SUM($D93:F93),$E$91/$B93) -> 0.1087695761 | H93: =IF(ABS($E$91-SUM($D93:G93))<ABS($E$91/$B93),$E$91-SUM($D93:G93),$E$91/$B93) -> 0.1087695761 | I93: =IF(ABS($E$91-SUM($D93:H93))<ABS($E$91/$B93),$E$91-SUM($D93:H93),$E$91/$B93) -> 0.1087695761 | J93: =IF(ABS($E$91-SUM($D93:I93))<ABS($E$91/$B93),$E$91-SUM($D93:I93),$E$91/$B93) -> 0.1087695761 | K93: =IF(ABS($E$91-SUM($D93:J93))<ABS($E$91/$B93),$E$91-SUM($D93:J93),$E$91/$B93) -> 0.1087695761 | L93: =IF(ABS($E$91-SUM($D93:K93))<ABS($E$91/$B93),$E$91-SUM($D93:K93),$E$91/$B93) -> 0.1087695761 | M93: =IF(ABS($E$91-SUM($D93:L93))<ABS($E$91/$B93),$E$91-SUM($D93:L93),$E$91/$B93) -> 0.1087695761 | N93: =E$51-SUM(D93:M93) -> 4.513937409 | O93: 41.5 | P93: =IF(O93<1,N93,N93/O93) -> 0.1087695761 | Q93: =IF($O93=0,0,IF(ABS($N93-SUM($P93:P93))<ABS($N93/$O93),$N93-SUM($P93:P93),$N93/$O93)) -> 0.1087695761 | R93: =IF($O93=0,0,IF(ABS($N93-SUM($P93:Q93))<ABS($N93/$O93),$N93-SUM($P93:Q93),$N93/$O93)) -> 0.1087695761 | S93: =IF($O93=0,0,IF(ABS($N93-SUM($P93:R93))<ABS($N93/$O93),$N93-SUM($P93:R93),$N93/$O93)) -> 0.1087695761 | T93: =IF($O93=0,0,IF(ABS($N93-SUM($P93:S93))<ABS($N93/$O93),$N93-SUM($P93:S93),$N93/$O93)) -> 0.1087695761
B94: 50 | C94: =F90 -> 2005 | F94: =($F$91*0.5)/$B94 -> 0.05657392572 | G94: =IF(ABS($F$91-SUM($D94:F94))<ABS($F$91/$B94),$F$91-SUM($D94:F94),$F$91/$B94) -> 0.1131478514 | H94: =IF(ABS($F$91-SUM($D94:G94))<ABS($F$91/$B94),$F$91-SUM($D94:G94),$F$91/$B94) -> 0.1131478514 | I94: =IF(ABS($F$91-SUM($D94:H94))<ABS($F$91/$B94),$F$91-SUM($D94:H94),$F$91/$B94) -> 0.1131478514 | J94: =IF(ABS($F$91-SUM($D94:I94))<ABS($F$91/$B94),$F$91-SUM($D94:I94),$F$91/$B94) -> 0.1131478514 | K94: =IF(ABS($F$91-SUM($D94:J94))<ABS($F$91/$B94),$F$91-SUM($D94:J94),$F$91/$B94) -> 0.1131478514 | L94: =IF(ABS($F$91-SUM($D94:K94))<ABS($F$91/$B94),$F$91-SUM($D94:K94),$F$91/$B94) -> 0.1131478514 | M94: =IF(ABS($F$91-SUM($D94:L94))<ABS($F$91/$B94),$F$91-SUM($D94:L94),$F$91/$B94) -> 0.1131478514 | N94: =F$51-SUM(D94:M94) -> 4.808783686 | O94: 42.5 | P94: 0.1131478514 | Q94: =IF($O94=0,0,IF(ABS($N94-SUM($P94:P94))<ABS($N94/$O94),$N94-SUM($P94:P94),$N94/$O94)) -> 0.1131478514 | R94: =IF($O94=0,0,IF(ABS($N94-SUM($P94:Q94))<ABS($N94/$O94),$N94-SUM($P94:Q94),$N94/$O94)) -> 0.1131478514 | S94: =IF($O94=0,0,IF(ABS($N94-SUM($P94:R94))<ABS($N94/$O94),$N94-SUM($P94:R94),$N94/$O94)) -> 0.1131478514 | T94: =IF($O94=0,0,IF(ABS($N94-SUM($P94:S94))<ABS($N94/$O94),$N94-SUM($P94:S94),$N94/$O94)) -> 0.1131478514
B95: 50 | C95: =G90 -> 2006 | G95: =($G$91*0.5)/$B95 -> 0.06543861226 | H95: =IF(ABS($G$91-SUM($D95:G95))<ABS($G$91/$B95),$G$91-SUM($D95:G95),$G$91/$B95) -> 0.1308772245 | I95: =IF(ABS($G$91-SUM($D95:H95))<ABS($G$91/$B95),$G$91-SUM($D95:H95),$G$91/$B95) -> 0.1308772245 | J95: =IF(ABS($G$91-SUM($D95:I95))<ABS($G$91/$B95),$G$91-SUM($D95:I95),$G$91/$B95) -> 0.1308772245 | K95: =IF(ABS($G$91-SUM($D95:J95))<ABS($G$91/$B95),$G$91-SUM($D95:J95),$G$91/$B95) -> 0.1308772245 | L95: =IF(ABS($G$91-SUM($D95:K95))<ABS($G$91/$B95),$G$91-SUM($D95:K95),$G$91/$B95) -> 0.1308772245 | M95: =IF(ABS($G$91-SUM($D95:L95))<ABS($G$91/$B95),$G$91-SUM($D95:L95),$G$91/$B95) -> 0.1308772245 | N95: =G$51-SUM(D95:M95) -> 5.693159266 | O95: 43.5 | P95: 0.1308772245 | Q95: =IF($O95=0,0,IF(ABS($N95-SUM($P95:P95))<ABS($N95/$O95),$N95-SUM($P95:P95),$N95/$O95)) -> 0.1308772245 | R95: =IF($O95=0,0,IF(ABS($N95-SUM($P95:Q95))<ABS($N95/$O95),$N95-SUM($P95:Q95),$N95/$O95)) -> 0.1308772245 | S95: =IF($O95=0,0,IF(ABS($N95-SUM($P95:R95))<ABS($N95/$O95),$N95-SUM($P95:R95),$N95/$O95)) -> 0.1308772245 | T95: =IF($O95=0,0,IF(ABS($N95-SUM($P95:S95))<ABS($N95/$O95),$N95-SUM($P95:S95),$N95/$O95)) -> 0.1308772245
B96: 50 | C96: =H90 -> 2007 | H96: =($H$91*0.5)/$B96 -> 0.09042486581 | I96: =IF(ABS($H$91-SUM($D96:H96))<ABS($H$91/$B96),$H$91-SUM($D96:H96),$H$91/$B96) -> 0.1808497316 | J96: =IF(ABS($H$91-SUM($D96:I96))<ABS($H$91/$B96),$H$91-SUM($D96:I96),$H$91/$B96) -> 0.1808497316 | K96: =IF(ABS($H$91-SUM($D96:J96))<ABS($H$91/$B96),$H$91-SUM($D96:J96),$H$91/$B96) -> 0.1808497316 | L96: =IF(ABS($H$91-SUM($D96:K96))<ABS($H$91/$B96),$H$91-SUM($D96:K96),$H$91/$B96) -> 0.1808497316 | M96: =IF(ABS($H$91-SUM($D96:L96))<ABS($H$91/$B96),$H$91-SUM($D96:L96),$H$91/$B96) -> 0.1808497316 | N96: =H$51-SUM(D96:M96) -> 4.025530715 | O96: 44.5 | P96: 0.09046136438 | Q96: =IF($O96=0,0,IF(ABS($N96-SUM($P96:P96))<ABS($N96/$O96),$N96-SUM($P96:P96),$N96/$O96)) -> 0.09046136438 | R96: =IF($O96=0,0,IF(ABS($N96-SUM($P96:Q96))<ABS($N96/$O96),$N96-SUM($P96:Q96),$N96/$O96)) -> 0.09046136438 | S96: =IF($O96=0,0,IF(ABS($N96-SUM($P96:R96))<ABS($N96/$O96),$N96-SUM($P96:R96),$N96/$O96)) -> 0.09046136438 | T96: =IF($O96=0,0,IF(ABS($N96-SUM($P96:S96))<ABS($N96/$O96),$N96-SUM($P96:S96),$N96/$O96)) -> 0.09046136438
B97: 50 | C97: =I90 -> 2008 | I97: =($I$91*0.5)/$B97 -> 0 | J97: =IF(ABS($I$91-SUM($D97:I97))<ABS($I$91/$B97),$I$91-SUM($D97:I97),$I$91/$B97) -> 0 | K97: =IF(ABS($I$91-SUM($D97:J97))<ABS($I$91/$B97),$I$91-SUM($D97:J97),$I$91/$B97) -> 0 | L97: =IF(ABS($I$91-SUM($D97:K97))<ABS($I$91/$B97),$I$91-SUM($D97:K97),$I$91/$B97) -> 0 | M97: =IF(ABS($I$91-SUM($D97:L97))<ABS($I$91/$B97),$I$91-SUM($D97:L97),$I$91/$B97) -> 0 | N97: =I$51-SUM(D97:M97) -> 8.660152932 | O97: 45.5 | P97: 0.1903330315 | Q97: =IF($O97=0,0,IF(ABS($N97-SUM($P97:P97))<ABS($N97/$O97),$N97-SUM($P97:P97),$N97/$O97)) -> 0.1903330315 | R97: =IF($O97=0,0,IF(ABS($N97-SUM($P97:Q97))<ABS($N97/$O97),$N97-SUM($P97:Q97),$N97/$O97)) -> 0.1903330315 | S97: =IF($O97=0,0,IF(ABS($N97-SUM($P97:R97))<ABS($N97/$O97),$N97-SUM($P97:R97),$N97/$O97)) -> 0.1903330315 | T97: =IF($O97=0,0,IF(ABS($N97-SUM($P97:S97))<ABS($N97/$O97),$N97-SUM($P97:S97),$N97/$O97)) -> 0.1903330315
B98: 50 | C98: =J90 -> 2009 | J98: =($J$91*0.5)/$B98 -> 0 | K98: =IF(ABS($J$91-SUM($D98:J98))<ABS($J$91/$B98),$J$91-SUM($D98:J98),$J$91/$B98) -> 0 | L98: =IF(ABS($J$91-SUM($D98:K98))<ABS($J$91/$B98),$J$91-SUM($D98:K98),$J$91/$B98) -> 0 | M98: =IF(ABS($J$91-SUM($D98:L98))<ABS($J$91/$B98),$J$91-SUM($D98:L98),$J$91/$B98) -> 0 | N98: =J$51-SUM(D98:M98) -> 10.10768777 | O98: 46.5 | P98: 0.2173696294 | Q98: =IF($O98=0,0,IF(ABS($N98-SUM($P98:P98))<ABS($N98/$O98),$N98-SUM($P98:P98),$N98/$O98)) -> 0.2173696294 | R98: =IF($O98=0,0,IF(ABS($N98-SUM($P98:Q98))<ABS($N98/$O98),$N98-SUM($P98:Q98),$N98/$O98)) -> 0.2173696294 | S98: =IF($O98=0,0,IF(ABS($N98-SUM($P98:R98))<ABS($N98/$O98),$N98-SUM($P98:R98),$N98/$O98)) -> 0.2173696294 | T98: =IF($O98=0,0,IF(ABS($N98-SUM($P98:S98))<ABS($N98/$O98),$N98-SUM($P98:S98),$N98/$O98)) -> 0.2173696294
B99: 50 | C99: =K90 -> 2010 | K99: =($K$91*0.5)/$B99 -> 0 | L99: =IF(ABS($K$91-SUM($D99:K99))<ABS($K$91/$B99),$K$91-SUM($D99:K99),$K$91/$B99) -> 0 | M99: =IF(ABS($K$91-SUM($D99:L99))<ABS($K$91/$B99),$K$91-SUM($D99:L99),$K$91/$B99) -> 0 | N99: =K$51-SUM(D99:M99) -> 9.79143705 | O99: 47.5 | P99: 0.2061355168 | Q99: =IF($O99=0,0,IF(ABS($N99-SUM($P99:P99))<ABS($N99/$O99),$N99-SUM($P99:P99),$N99/$O99)) -> 0.2061355168 | R99: =IF($O99=0,0,IF(ABS($N99-SUM($P99:Q99))<ABS($N99/$O99),$N99-SUM($P99:Q99),$N99/$O99)) -> 0.2061355168 | S99: =IF($O99=0,0,IF(ABS($N99-SUM($P99:R99))<ABS($N99/$O99),$N99-SUM($P99:R99),$N99/$O99)) -> 0.2061355168 | T99: =IF($O99=0,0,IF(ABS($N99-SUM($P99:S99))<ABS($N99/$O99),$N99-SUM($P99:S99),$N99/$O99)) -> 0.2061355168
B100: 50 | C100: =L90 -> 2011 | L100: =($L$91*0.5)/$B100 -> 0 | M100: =IF(ABS($L$91-SUM($D100:L100))<ABS($L$91/$B100),$L$91-SUM($D100:L100),$L$91/$B100) -> 0 | N100: =L$51-SUM(D100:M100) -> 10.62445516 | O100: =IF(O101-1<0,0,O101-1) -> 48.5 | P100: 0.2190609312 | Q100: =IF($O100=0,0,IF(ABS($N100-SUM($P100:P100))<ABS($N100/$O100),$N100-SUM($P100:P100),$N100/$O100)) -> 0.2190609312 | R100: =IF($O100=0,0,IF(ABS($N100-SUM($P100:Q100))<ABS($N100/$O100),$N100-SUM($P100:Q100),$N100/$O100)) -> 0.2190609312 | S100: =IF($O100=0,0,IF(ABS($N100-SUM($P100:R100))<ABS($N100/$O100),$N100-SUM($P100:R100),$N100/$O100)) -> 0.2190609312 | T100: =IF($O100=0,0,IF(ABS($N100-SUM($P100:S100))<ABS($N100/$O100),$N100-SUM($P100:S100),$N100/$O100)) -> 0.2190609312
B101: 50 | C101: =M90 -> 2012 | M101: =($M$91*0.5)/$B101 -> 0 | N101: =M$51-SUM(D101:M101) -> 12.11248264 | O101: =B92-0.5 -> 49.5 | P101: 0.2446966191 | Q101: =IF($O101=0,0,IF(ABS($N101-SUM($P101:P101))<ABS($N101/$O101),$N101-SUM($P101:P101),$N101/$O101)) -> 0.2446966191 | R101: =IF($O101=0,0,IF(ABS($N101-SUM($P101:Q101))<ABS($N101/$O101),$N101-SUM($P101:Q101),$N101/$O101)) -> 0.2446966191 | S101: =IF($O101=0,0,IF(ABS($N101-SUM($P101:R101))<ABS($N101/$O101),$N101-SUM($P101:R101),$N101/$O101)) -> 0.2446966191 | T101: =IF($O101=0,0,IF(ABS($N101-SUM($P101:S101))<ABS($N101/$O101),$N101-SUM($P101:S101),$N101/$O101)) -> 0.2446966191
A102: SL Depreciation | D102: =SUM(D92:D101) -> 0.1196184675 | E102: 0.2936217231 | F102: 0.4045804369 | G102: 0.5265929749 | H102: 0.682456453 | I102: 0.7728813188 | J102: 0.7728813188 | K102: 0.7728813188 | L102: 0.7728813188 | M102: 0.7728813188 | N102: 80.0267225 | P102: =SUM(P92:P101) -> 1.76008868 | Q102: 1.76008868 | R102: 1.76008868 | S102: 1.76008868 | T102: 1.76008868
A103: Actual WDV | B103: Check | C103: =ABS(N103) -> 0 | D103: =D91-D102 -> 11.84222829 | E103: =D103+E91-E102 -> 16.98708537 | F103: =E103+F91-F102 -> 22.2398975 | G103: =F103+G91-G102 -> 28.25716576 | H103: =G103+H$51-H102 -> 32.59491354 | I103: =H103+I$51-I102 -> 40.48218515 | J103: 49.8169916 | K103: 58.83554733 | L103: 68.68712118 | M103: 80.0267225 | N103: =ABS(N102-M103) -> 0 | P103: =N102-P102 -> 78.26663382 | Q103: =P103-Q102 -> 76.50654515 | R103: =Q103-R102 -> 74.74645647 | S103: 72.98636779 | T103: 71.22627911
A106: =A$67 -> CP | D106: =D$17 -> 2003 | E106: =E$17 -> 2004 | F106: 2005 | G106: 2006 | H106: 2007 | I106: 2008 | J106: 2009 | K106: 2010 | L106: 2011 | M106: 2012 | N106: =$P106 -> 2013 | O106: =$P106 -> 2013 | P106: =P$17 -> 2013 | Q106: 2014 | R106: 2015 | S106: 2016 | T106: 2017
A107: Decision Net Capex | B107: Eco Life | C107: Year | D107: =D$38 -> 0.07970174656 | E107: =E$38 -> 0.09918762139 | F107: 0.07905444842 | G107: 0.09144165499 | H107: 0.1263565821 | I107: 0 | J107: 0 | K107: 0 | L107: 0 | M107: 0 | N107: OAV | O107: Rem Life
B108: =$B$67 -> 50 | C108: =D106 -> 2003 | D108: =($D$107*0.5)/$B108 -> 0.0007970174656 | E108: =IF(ABS($D$107-SUM($D108:D108))<ABS($D$107/$B108),$D$107-SUM($D108:D108),$D$107/$B108) -> 0.001594034931 | F108: =IF(ABS($D$107-SUM($D108:E108))<ABS($D$107/$B108),$D$107-SUM($D108:E108),$D$107/$B108) -> 0.001594034931 | G108: =IF(ABS($D$107-SUM($D108:F108))<ABS($D$107/$B108),$D$107-SUM($D108:F108),$D$107/$B108) -> 0.001594034931 | H108: =IF(ABS($D$107-SUM($D108:G108))<ABS($D$107/$B108),$D$107-SUM($D108:G108),$D$107/$B108) -> 0.001594034931 | I108: =IF(ABS($D$107-SUM($D108:H108))<ABS($D$107/$B108),$D$107-SUM($D108:H108),$D$107/$B108) -> 0.001594034931 | J108: =IF(ABS($D$107-SUM($D108:I108))<ABS($D$107/$B108),$D$107-SUM($D108:I108),$D$107/$B108) -> 0.001594034931 | K108: =IF(ABS($D$107-SUM($D108:J108))<ABS($D$107/$B108),$D$107-SUM($D108:J108),$D$107/$B108) -> 0.001594034931 | L108: =IF(ABS($D$107-SUM($D108:K108))<ABS($D$107/$B108),$D$107-SUM($D108:K108),$D$107/$B108) -> 0.001594034931 | M108: =IF(ABS($D$107-SUM($D108:L108))<ABS($D$107/$B108),$D$107-SUM($D108:L108),$D$107/$B108) -> 0.001594034931 | N108: =D$52-SUM(D108:M108) -> 0.06455841471 | O108: =IF(O109-1<0,0,O109-1) -> 40.5 | P108: =IF(O108<1,N108,N108/O108) -> 0.001594034931 | Q108: =IF($O108=0,0,IF(ABS($N108-SUM($P108:P108))<ABS($N108/$O108),$N108-SUM($P108:P108),$N108/$O108)) -> 0.001594034931 | R108: =IF($O108=0,0,IF(ABS($N108-SUM($P108:Q108))<ABS($N108/$O108),$N108-SUM($P108:Q108),$N108/$O108)) -> 0.001594034931 | S108: =IF($O108=0,0,IF(ABS($N108-SUM($P108:R108))<ABS($N108/$O108),$N108-SUM($P108:R108),$N108/$O108)) -> 0.001594034931 | T108: =IF($O108=0,0,IF(ABS($N108-SUM($P108:S108))<ABS($N108/$O108),$N108-SUM($P108:S108),$N108/$O108)) -> 0.001594034931
B109: =B108 -> 50 | C109: =E106 -> 2004 | E109: =($E$107*0.5)/$B109 -> 0.0009918762139 | F109: =IF(ABS($E$107-SUM($D109:E109))<ABS($E$107/$B109),$E$107-SUM($D109:E109),$E$107/$B109) -> 0.001983752428 | G109: =IF(ABS($E$107-SUM($D109:F109))<ABS($E$107/$B109),$E$107-SUM($D109:F109),$E$107/$B109) -> 0.001983752428 | H109: =IF(ABS($E$107-SUM($D109:G109))<ABS($E$107/$B109),$E$107-SUM($D109:G109),$E$107/$B109) -> 0.001983752428 | I109: =IF(ABS($E$107-SUM($D109:H109))<ABS($E$107/$B109),$E$107-SUM($D109:H109),$E$107/$B109) -> 0.001983752428 | J109: =IF(ABS($E$107-SUM($D109:I109))<ABS($E$107/$B109),$E$107-SUM($D109:I109),$E$107/$B109) -> 0.001983752428 | K109: =IF(ABS($E$107-SUM($D109:J109))<ABS($E$107/$B109),$E$107-SUM($D109:J109),$E$107/$B109) -> 0.001983752428 | L109: =IF(ABS($E$107-SUM($D109:K109))<ABS($E$107/$B109),$E$107-SUM($D109:K109),$E$107/$B109) -> 0.001983752428 | M109: =IF(ABS($E$107-SUM($D109:L109))<ABS($E$107/$B109),$E$107-SUM($D109:L109),$E$107/$B109) -> 0.001983752428 | N109: =E$52-SUM(D109:M109) -> 0.08232572576 | O109: 41.5 | P109: =IF(O109<1,N109,N109/O109) -> 0.001983752428 | Q109: =IF($O109=0,0,IF(ABS($N109-SUM($P109:P109))<ABS($N109/$O109),$N109-SUM($P109:P109),$N109/$O109)) -> 0.001983752428 | R109: =IF($O109=0,0,IF(ABS($N109-SUM($P109:Q109))<ABS($N109/$O109),$N109-SUM($P109:Q109),$N109/$O109)) -> 0.001983752428 | S109: =IF($O109=0,0,IF(ABS($N109-SUM($P109:R109))<ABS($N109/$O109),$N109-SUM($P109:R109),$N109/$O109)) -> 0.001983752428 | T109: =IF($O109=0,0,IF(ABS($N109-SUM($P109:S109))<ABS($N109/$O109),$N109-SUM($P109:S109),$N109/$O109)) -> 0.001983752428
B110: 50 | C110: =F106 -> 2005 | F110: =($F$107*0.5)/$B110 -> 0.0007905444842 | G110: =IF(ABS($F$107-SUM($D110:F110))<ABS($F$107/$B110),$F$107-SUM($D110:F110),$F$107/$B110) -> 0.001581088968 | H110: =IF(ABS($F$107-SUM($D110:G110))<ABS($F$107/$B110),$F$107-SUM($D110:G110),$F$107/$B110) -> 0.001581088968 | I110: =IF(ABS($F$107-SUM($D110:H110))<ABS($F$107/$B110),$F$107-SUM($D110:H110),$F$107/$B110) -> 0.001581088968 | J110: =IF(ABS($F$107-SUM($D110:I110))<ABS($F$107/$B110),$F$107-SUM($D110:I110),$F$107/$B110) -> 0.001581088968 | K110: =IF(ABS($F$107-SUM($D110:J110))<ABS($F$107/$B110),$F$107-SUM($D110:J110),$F$107/$B110) -> 0.001581088968 | L110: =IF(ABS($F$107-SUM($D110:K110))<ABS($F$107/$B110),$F$107-SUM($D110:K110),$F$107/$B110) -> 0.001581088968 | M110: =IF(ABS($F$107-SUM($D110:L110))<ABS($F$107/$B110),$F$107-SUM($D110:L110),$F$107/$B110) -> 0.001581088968 | N110: =F$52-SUM(D110:M110) -> 0.06719628116 | O110: 42.5 | P110: 0.001581088968 | Q110: =IF($O110=0,0,IF(ABS($N110-SUM($P110:P110))<ABS($N110/$O110),$N110-SUM($P110:P110),$N110/$O110)) -> 0.001581088968 | R110: =IF($O110=0,0,IF(ABS($N110-SUM($P110:Q110))<ABS($N110/$O110),$N110-SUM($P110:Q110),$N110/$O110)) -> 0.001581088968 | S110: =IF($O110=0,0,IF(ABS($N110-SUM($P110:R110))<ABS($N110/$O110),$N110-SUM($P110:R110),$N110/$O110)) -> 0.001581088968 | T110: =IF($O110=0,0,IF(ABS($N110-SUM($P110:S110))<ABS($N110/$O110),$N110-SUM($P110:S110),$N110/$O110)) -> 0.001581088968
B111: 50 | C111: =G106 -> 2006 | G111: =($G$107*0.5)/$B111 -> 0.0009144165499 | H111: =IF(ABS($G$107-SUM($D111:G111))<ABS($G$107/$B111),$G$107-SUM($D111:G111),$G$107/$B111) -> 0.0018288331 | I111: =IF(ABS($G$107-SUM($D111:H111))<ABS($G$107/$B111),$G$107-SUM($D111:H111),$G$107/$B111) -> 0.0018288331 | J111: =IF(ABS($G$107-SUM($D111:I111))<ABS($G$107/$B111),$G$107-SUM($D111:I111),$G$107/$B111) -> 0.0018288331 | K111: =IF(ABS($G$107-SUM($D111:J111))<ABS($G$107/$B111),$G$107-SUM($D111:J111),$G$107/$B111) -> 0.0018288331 | L111: =IF(ABS($G$107-SUM($D111:K111))<ABS($G$107/$B111),$G$107-SUM($D111:K111),$G$107/$B111) -> 0.0018288331 | M111: =IF(ABS($G$107-SUM($D111:L111))<ABS($G$107/$B111),$G$107-SUM($D111:L111),$G$107/$B111) -> 0.0018288331 | N111: =G$52-SUM(D111:M111) -> 0.07955423984 | O111: 43.5 | P111: 0.0018288331 | Q111: =IF($O111=0,0,IF(ABS($N111-SUM($P111:P111))<ABS($N111/$O111),$N111-SUM($P111:P111),$N111/$O111)) -> 0.0018288331 | R111: =IF($O111=0,0,IF(ABS($N111-SUM($P111:Q111))<ABS($N111/$O111),$N111-SUM($P111:Q111),$N111/$O111)) -> 0.0018288331 | S111: =IF($O111=0,0,IF(ABS($N111-SUM($P111:R111))<ABS($N111/$O111),$N111-SUM($P111:R111),$N111/$O111)) -> 0.0018288331 | T111: =IF($O111=0,0,IF(ABS($N111-SUM($P111:S111))<ABS($N111/$O111),$N111-SUM($P111:S111),$N111/$O111)) -> 0.0018288331
B112: 50 | C112: =H106 -> 2007 | H112: =($H$107*0.5)/$B112 -> 0.001263565821 | I112: =IF(ABS($H$107-SUM($D112:H112))<ABS($H$107/$B112),$H$107-SUM($D112:H112),$H$107/$B112) -> 0.002527131642 | J112: =IF(ABS($H$107-SUM($D112:I112))<ABS($H$107/$B112),$H$107-SUM($D112:I112),$H$107/$B112) -> 0.002527131642 | K112: =IF(ABS($H$107-SUM($D112:J112))<ABS($H$107/$B112),$H$107-SUM($D112:J112),$H$107/$B112) -> 0.002527131642 | L112: =IF(ABS($H$107-SUM($D112:K112))<ABS($H$107/$B112),$H$107-SUM($D112:K112),$H$107/$B112) -> 0.002527131642 | M112: =IF(ABS($H$107-SUM($D112:L112))<ABS($H$107/$B112),$H$107-SUM($D112:L112),$H$107/$B112) -> 0.002527131642 | N112: =H$52-SUM(D112:M112) -> 0.04716821335 | O112: 44.5 | P112: 0.001059959851 | Q112: =IF($O112=0,0,IF(ABS($N112-SUM($P112:P112))<ABS($N112/$O112),$N112-SUM($P112:P112),$N112/$O112)) -> 0.001059959851 | R112: =IF($O112=0,0,IF(ABS($N112-SUM($P112:Q112))<ABS($N112/$O112),$N112-SUM($P112:Q112),$N112/$O112)) -> 0.001059959851 | S112: =IF($O112=0,0,IF(ABS($N112-SUM($P112:R112))<ABS($N112/$O112),$N112-SUM($P112:R112),$N112/$O112)) -> 0.001059959851 | T112: =IF($O112=0,0,IF(ABS($N112-SUM($P112:S112))<ABS($N112/$O112),$N112-SUM($P112:S112),$N112/$O112)) -> 0.001059959851
B113: 50 | C113: =I106 -> 2008 | I113: =($I$107*0.5)/$B113 -> 0 | J113: =IF(ABS($I$107-SUM($D113:I113))<ABS($I$107/$B113),$I$107-SUM($D113:I113),$I$107/$B113) -> 0 | K113: =IF(ABS($I$107-SUM($D113:J113))<ABS($I$107/$B113),$I$107-SUM($D113:J113),$I$107/$B113) -> 0 | L113: =IF(ABS($I$107-SUM($D113:K113))<ABS($I$107/$B113),$I$107-SUM($D113:K113),$I$107/$B113) -> 0 | M113: =IF(ABS($I$107-SUM($D113:L113))<ABS($I$107/$B113),$I$107-SUM($D113:L113),$I$107/$B113) -> 0 | N113: =I$52-SUM(D113:M113) -> 0.1194951615 | O113: 45.5 | P113: 0.002626267285 | Q113: =IF($O113=0,0,IF(ABS($N113-SUM($P113:P113))<ABS($N113/$O113),$N113-SUM($P113:P113),$N113/$O113)) -> 0.002626267285 | R113: =IF($O113=0,0,IF(ABS($N113-SUM($P113:Q113))<ABS($N113/$O113),$N113-SUM($P113:Q113),$N113/$O113)) -> 0.002626267285 | S113: =IF($O113=0,0,IF(ABS($N113-SUM($P113:R113))<ABS($N113/$O113),$N113-SUM($P113:R113),$N113/$O113)) -> 0.002626267285 | T113: =IF($O113=0,0,IF(ABS($N113-SUM($P113:S113))<ABS($N113/$O113),$N113-SUM($P113:S113),$N113/$O113)) -> 0.002626267285
B114: 50 | C114: =J106 -> 2009 | J114: =($J$107*0.5)/$B114 -> 0 | K114: =IF(ABS($J$107-SUM($D114:J114))<ABS($J$107/$B114),$J$107-SUM($D114:J114),$J$107/$B114) -> 0 | L114: =IF(ABS($J$107-SUM($D114:K114))<ABS($J$107/$B114),$J$107-SUM($D114:K114),$J$107/$B114) -> 0 | M114: =IF(ABS($J$107-SUM($D114:L114))<ABS($J$107/$B114),$J$107-SUM($D114:L114),$J$107/$B114) -> 0 | N114: =J$52-SUM(D114:M114) -> 0.1850059106 | O114: 46.5 | P114: 0.003978621733 | Q114: =IF($O114=0,0,IF(ABS($N114-SUM($P114:P114))<ABS($N114/$O114),$N114-SUM($P114:P114),$N114/$O114)) -> 0.003978621733 | R114: =IF($O114=0,0,IF(ABS($N114-SUM($P114:Q114))<ABS($N114/$O114),$N114-SUM($P114:Q114),$N114/$O114)) -> 0.003978621733 | S114: =IF($O114=0,0,IF(ABS($N114-SUM($P114:R114))<ABS($N114/$O114),$N114-SUM($P114:R114),$N114/$O114)) -> 0.003978621733 | T114: =IF($O114=0,0,IF(ABS($N114-SUM($P114:S114))<ABS($N114/$O114),$N114-SUM($P114:S114),$N114/$O114)) -> 0.003978621733
B115: 50 | C115: =K106 -> 2010 | K115: =($K$107*0.5)/$B115 -> 0 | L115: =IF(ABS($K$107-SUM($D115:K115))<ABS($K$107/$B115),$K$107-SUM($D115:K115),$K$107/$B115) -> 0 | M115: =IF(ABS($K$107-SUM($D115:L115))<ABS($K$107/$B115),$K$107-SUM($D115:L115),$K$107/$B115) -> 0 | N115: =K$52-SUM(D115:M115) -> 0.06642370125 | O115: 47.5 | P115: 0.00139839371 | Q115: =IF($O115=0,0,IF(ABS($N115-SUM($P115:P115))<ABS($N115/$O115),$N115-SUM($P115:P115),$N115/$O115)) -> 0.00139839371 | R115: =IF($O115=0,0,IF(ABS($N115-SUM($P115:Q115))<ABS($N115/$O115),$N115-SUM($P115:Q115),$N115/$O115)) -> 0.00139839371 | S115: =IF($O115=0,0,IF(ABS($N115-SUM($P115:R115))<ABS($N115/$O115),$N115-SUM($P115:R115),$N115/$O115)) -> 0.00139839371 | T115: =IF($O115=0,0,IF(ABS($N115-SUM($P115:S115))<ABS($N115/$O115),$N115-SUM($P115:S115),$N115/$O115)) -> 0.00139839371
B116: 50 | C116: =L106 -> 2011 | L116: =($L$107*0.5)/$B116 -> 0 | M116: =IF(ABS($L$107-SUM($D116:L116))<ABS($L$107/$B116),$L$107-SUM($D116:L116),$L$107/$B116) -> 0 | N116: =L$52-SUM(D116:M116) -> 0.1275365263 | O116: =IF(O117-1<0,0,O117-1) -> 48.5 | P116: 0.002629619098 | Q116: =IF($O116=0,0,IF(ABS($N116-SUM($P116:P116))<ABS($N116/$O116),$N116-SUM($P116:P116),$N116/$O116)) -> 0.002629619098 | R116: =IF($O116=0,0,IF(ABS($N116-SUM($P116:Q116))<ABS($N116/$O116),$N116-SUM($P116:Q116),$N116/$O116)) -> 0.002629619098 | S116: =IF($O116=0,0,IF(ABS($N116-SUM($P116:R116))<ABS($N116/$O116),$N116-SUM($P116:R116),$N116/$O116)) -> 0.002629619098 | T116: =IF($O116=0,0,IF(ABS($N116-SUM($P116:S116))<ABS($N116/$O116),$N116-SUM($P116:S116),$N116/$O116)) -> 0.002629619098
B117: 50 | C117: =M106 -> 2012 | M117: =($M$107*0.5)/$B117 -> 0 | N117: =M$52-SUM(D117:M117) -> 0.1453988874 | O117: =B108-0.5 -> 49.5 | P117: 0.002937351262 | Q117: =IF($O117=0,0,IF(ABS($N117-SUM($P117:P117))<ABS($N117/$O117),$N117-SUM($P117:P117),$N117/$O117)) -> 0.002937351262 | R117: =IF($O117=0,0,IF(ABS($N117-SUM($P117:Q117))<ABS($N117/$O117),$N117-SUM($P117:Q117),$N117/$O117)) -> 0.002937351262 | S117: =IF($O117=0,0,IF(ABS($N117-SUM($P117:R117))<ABS($N117/$O117),$N117-SUM($P117:R117),$N117/$O117)) -> 0.002937351262 | T117: =IF($O117=0,0,IF(ABS($N117-SUM($P117:S117))<ABS($N117/$O117),$N117-SUM($P117:S117),$N117/$O117)) -> 0.002937351262
A118: SL Depreciation | D118: =SUM(D108:D117) -> 0.0007970174656 | E118: 0.002585911145 | F118: 0.004368331843 | G118: 0.006073292877 | H118: 0.008251275248 | I118: 0.009514841069 | J118: 0.009514841069 | K118: 0.009514841069 | L118: 0.009514841069 | M118: 0.009514841069 | N118: 0.9846630618 | P118: =SUM(P108:P117) -> 0.02161792237 | Q118: 0.02161792237 | R118: 0.02161792237 | S118: 0.02161792237 | T118: 0.02161792237
A119: Actual WDV | B119: Check | C119: =ABS(N119) -> 1.110223025e-16 | D119: =D107-D118 -> 0.07890472909 | E119: =D119+E107-E118 -> 0.1755064393 | F119: =E119+F107-F118 -> 0.2501925559 | G119: =F119+G107-G118 -> 0.335560918 | H119: =G119+H$52-H118 -> 0.3883770802 | I119: =H119+I$52-I118 -> 0.4983574006 | J119: 0.6738484701 | K119: 0.7307573303 | L119: 0.8487790155 | M119: 0.9846630618 | N119: =ABS(N118-M119) -> 1.110223025e-16 | P119: =N118-P118 -> 0.9630451395 | Q119: =P119-Q118 -> 0.9414272171 | R119: =Q119-R118 -> 0.9198092947 | S119: 0.8981913724 | T119: 0.87657345
A121: =A$68 -> Supply Regs / Valve Stations | D121: =D$17 -> 2003 | E121: =E$17 -> 2004 | F121: 2005 | G121: 2006 | H121: 2007 | I121: 2008 | J121: 2009 | K121: 2010 | L121: 2011 | M121: 2012 | N121: =$P121 -> 2013 | O121: =$P121 -> 2013 | P121: =P$17 -> 2013 | Q121: 2014 | R121: 2015 | S121: 2016 | T121: 2017
A122: Decision Net Capex | B122: Eco Life | C122: Year | D122: =D$39 -> 1.739149868 | E122: =E$39 -> 2.589022273 | F122: 1.226889949 | G122: 1.419133897 | H122: 1.960998067 | I122: 0 | J122: 0 | K122: 0 | L122: 0 | M122: 0 | N122: OAV | O122: Rem Life
B123: =$B$68 -> 50 | C123: =D121 -> 2003 | D123: =($D$122*0.5)/$B123 -> 0.01739149868 | E123: =IF(ABS($D$122-SUM($D123:D123))<ABS($D$122/$B123),$D$122-SUM($D123:D123),$D$122/$B123) -> 0.03478299737 | F123: =IF(ABS($D$122-SUM($D123:E123))<ABS($D$122/$B123),$D$122-SUM($D123:E123),$D$122/$B123) -> 0.03478299737 | G123: =IF(ABS($D$122-SUM($D123:F123))<ABS($D$122/$B123),$D$122-SUM($D123:F123),$D$122/$B123) -> 0.03478299737 | H123: =IF(ABS($D$122-SUM($D123:G123))<ABS($D$122/$B123),$D$122-SUM($D123:G123),$D$122/$B123) -> 0.03478299737 | I123: =IF(ABS($D$122-SUM($D123:H123))<ABS($D$122/$B123),$D$122-SUM($D123:H123),$D$122/$B123) -> 0.03478299737 | J123: =IF(ABS($D$122-SUM($D123:I123))<ABS($D$122/$B123),$D$122-SUM($D123:I123),$D$122/$B123) -> 0.03478299737 | K123: =IF(ABS($D$122-SUM($D123:J123))<ABS($D$122/$B123),$D$122-SUM($D123:J123),$D$122/$B123) -> 0.03478299737 | L123: =IF(ABS($D$122-SUM($D123:K123))<ABS($D$122/$B123),$D$122-SUM($D123:K123),$D$122/$B123) -> 0.03478299737 | M123: =IF(ABS($D$122-SUM($D123:L123))<ABS($D$122/$B123),$D$122-SUM($D123:L123),$D$122/$B123) -> 0.03478299737 | N123: =D$53-SUM(D123:M123) -> 1.408711393 | O123: =IF(O124-1<0,0,O124-1) -> 40.5 | P123: =IF(O123<1,N123,N123/O123) -> 0.03478299737 | Q123: =IF($O123=0,0,IF(ABS($N123-SUM($P123:P123))<ABS($N123/$O123),$N123-SUM($P123:P123),$N123/$O123)) -> 0.03478299737 | R123: =IF($O123=0,0,IF(ABS($N123-SUM($P123:Q123))<ABS($N123/$O123),$N123-SUM($P123:Q123),$N123/$O123)) -> 0.03478299737 | S123: =IF($O123=0,0,IF(ABS($N123-SUM($P123:R123))<ABS($N123/$O123),$N123-SUM($P123:R123),$N123/$O123)) -> 0.03478299737 | T123: =IF($O123=0,0,IF(ABS($N123-SUM($P123:S123))<ABS($N123/$O123),$N123-SUM($P123:S123),$N123/$O123)) -> 0.03478299737
B124: =B123 -> 50 | C124: =E121 -> 2004 | E124: =($E$122*0.5)/$B124 -> 0.02589022273 | F124: =IF(ABS($E$122-SUM($D124:E124))<ABS($E$122/$B124),$E$122-SUM($D124:E124),$E$122/$B124) -> 0.05178044546 | G124: =IF(ABS($E$122-SUM($D124:F124))<ABS($E$122/$B124),$E$122-SUM($D124:F124),$E$122/$B124) -> 0.05178044546 | H124: =IF(ABS($E$122-SUM($D124:G124))<ABS($E$122/$B124),$E$122-SUM($D124:G124),$E$122/$B124) -> 0.05178044546 | I124: =IF(ABS($E$122-SUM($D124:H124))<ABS($E$122/$B124),$E$122-SUM($D124:H124),$E$122/$B124) -> 0.05178044546 | J124: =IF(ABS($E$122-SUM($D124:I124))<ABS($E$122/$B124),$E$122-SUM($D124:I124),$E$122/$B124) -> 0.05178044546 | K124: =IF(ABS($E$122-SUM($D124:J124))<ABS($E$122/$B124),$E$122-SUM($D124:J124),$E$122/$B124) -> 0.05178044546 | L124: =IF(ABS($E$122-SUM($D124:K124))<ABS($E$122/$B124),$E$122-SUM($D124:K124),$E$122/$B124) -> 0.05178044546 | M124: =IF(ABS($E$122-SUM($D124:L124))<ABS($E$122/$B124),$E$122-SUM($D124:L124),$E$122/$B124) -> 0.05178044546 | N124: =E$53-SUM(D124:M124) -> 2.148888487 | O124: 41.5 | P124: =IF(O124<1,N124,N124/O124) -> 0.05178044546 | Q124: =IF($O124=0,0,IF(ABS($N124-SUM($P124:P124))<ABS($N124/$O124),$N124-SUM($P124:P124),$N124/$O124)) -> 0.05178044546 | R124: =IF($O124=0,0,IF(ABS($N124-SUM($P124:Q124))<ABS($N124/$O124),$N124-SUM($P124:Q124),$N124/$O124)) -> 0.05178044546 | S124: =IF($O124=0,0,IF(ABS($N124-SUM($P124:R124))<ABS($N124/$O124),$N124-SUM($P124:R124),$N124/$O124)) -> 0.05178044546 | T124: =IF($O124=0,0,IF(ABS($N124-SUM($P124:S124))<ABS($N124/$O124),$N124-SUM($P124:S124),$N124/$O124)) -> 0.05178044546
B125: 50 | C125: =F121 -> 2005 | F125: =($F$122*0.5)/$B125 -> 0.01226889949 | G125: =IF(ABS($F$122-SUM($D125:F125))<ABS($F$122/$B125),$F$122-SUM($D125:F125),$F$122/$B125) -> 0.02453779898 | H125: =IF(ABS($F$122-SUM($D125:G125))<ABS($F$122/$B125),$F$122-SUM($D125:G125),$F$122/$B125) -> 0.02453779898 | I125: =IF(ABS($F$122-SUM($D125:H125))<ABS($F$122/$B125),$F$122-SUM($D125:H125),$F$122/$B125) -> 0.02453779898 | J125: =IF(ABS($F$122-SUM($D125:I125))<ABS($F$122/$B125),$F$122-SUM($D125:I125),$F$122/$B125) -> 0.02453779898 | K125: =IF(ABS($F$122-SUM($D125:J125))<ABS($F$122/$B125),$F$122-SUM($D125:J125),$F$122/$B125) -> 0.02453779898 | L125: =IF(ABS($F$122-SUM($D125:K125))<ABS($F$122/$B125),$F$122-SUM($D125:K125),$F$122/$B125) -> 0.02453779898 | M125: =IF(ABS($F$122-SUM($D125:L125))<ABS($F$122/$B125),$F$122-SUM($D125:L125),$F$122/$B125) -> 0.02453779898 | N125: =F$53-SUM(D125:M125) -> 1.042856457 | O125: 42.5 | P125: 0.02453779898 | Q125: =IF($O125=0,0,IF(ABS($N125-SUM($P125:P125))<ABS($N125/$O125),$N125-SUM($P125:P125),$N125/$O125)) -> 0.02453779898 | R125: =IF($O125=0,0,IF(ABS($N125-SUM($P125:Q125))<ABS($N125/$O125),$N125-SUM($P125:Q125),$N125/$O125)) -> 0.02453779898 | S125: =IF($O125=0,0,IF(ABS($N125-SUM($P125:R125))<ABS($N125/$O125),$N125-SUM($P125:R125),$N125/$O125)) -> 0.02453779898 | T125: =IF($O125=0,0,IF(ABS($N125-SUM($P125:S125))<ABS($N125/$O125),$N125-SUM($P125:S125),$N125/$O125)) -> 0.02453779898
B126: 50 | C126: =G121 -> 2006 | G126: =($G$122*0.5)/$B126 -> 0.01419133897 | H126: =IF(ABS($G$122-SUM($D126:G126))<ABS($G$122/$B126),$G$122-SUM($D126:G126),$G$122/$B126) -> 0.02838267793 | I126: =IF(ABS($G$122-SUM($D126:H126))<ABS($G$122/$B126),$G$122-SUM($D126:H126),$G$122/$B126) -> 0.02838267793 | J126: =IF(ABS($G$122-SUM($D126:I126))<ABS($G$122/$B126),$G$122-SUM($D126:I126),$G$122/$B126) -> 0.02838267793 | K126: =IF(ABS($G$122-SUM($D126:J126))<ABS($G$122/$B126),$G$122-SUM($D126:J126),$G$122/$B126) -> 0.02838267793 | L126: =IF(ABS($G$122-SUM($D126:K126))<ABS($G$122/$B126),$G$122-SUM($D126:K126),$G$122/$B126) -> 0.02838267793 | M126: =IF(ABS($G$122-SUM($D126:L126))<ABS($G$122/$B126),$G$122-SUM($D126:L126),$G$122/$B126) -> 0.02838267793 | N126: =G$53-SUM(D126:M126) -> 1.23464649 | O126: 43.5 | P126: 0.02838267793 | Q126: =IF($O126=0,0,IF(ABS($N126-SUM($P126:P126))<ABS($N126/$O126),$N126-SUM($P126:P126),$N126/$O126)) -> 0.02838267793 | R126: =IF($O126=0,0,IF(ABS($N126-SUM($P126:Q126))<ABS($N126/$O126),$N126-SUM($P126:Q126),$N126/$O126)) -> 0.02838267793 | S126: =IF($O126=0,0,IF(ABS($N126-SUM($P126:R126))<ABS($N126/$O126),$N126-SUM($P126:R126),$N126/$O126)) -> 0.02838267793 | T126: =IF($O126=0,0,IF(ABS($N126-SUM($P126:S126))<ABS($N126/$O126),$N126-SUM($P126:S126),$N126/$O126)) -> 0.02838267793
B127: 50 | C127: =H121 -> 2007 | H127: =($H$122*0.5)/$B127 -> 0.01960998067 | I127: =IF(ABS($H$122-SUM($D127:H127))<ABS($H$122/$B127),$H$122-SUM($D127:H127),$H$122/$B127) -> 0.03921996135 | J127: =IF(ABS($H$122-SUM($D127:I127))<ABS($H$122/$B127),$H$122-SUM($D127:I127),$H$122/$B127) -> 0.03921996135 | K127: =IF(ABS($H$122-SUM($D127:J127))<ABS($H$122/$B127),$H$122-SUM($D127:J127),$H$122/$B127) -> 0.03921996135 | L127: =IF(ABS($H$122-SUM($D127:K127))<ABS($H$122/$B127),$H$122-SUM($D127:K127),$H$122/$B127) -> 0.03921996135 | M127: =IF(ABS($H$122-SUM($D127:L127))<ABS($H$122/$B127),$H$122-SUM($D127:L127),$H$122/$B127) -> 0.03921996135 | N127: =H$53-SUM(D127:M127) -> 1.110490598 | O127: 44.5 | P127: 0.0249548449 | Q127: =IF($O127=0,0,IF(ABS($N127-SUM($P127:P127))<ABS($N127/$O127),$N127-SUM($P127:P127),$N127/$O127)) -> 0.0249548449 | R127: =IF($O127=0,0,IF(ABS($N127-SUM($P127:Q127))<ABS($N127/$O127),$N127-SUM($P127:Q127),$N127/$O127)) -> 0.0249548449 | S127: =IF($O127=0,0,IF(ABS($N127-SUM($P127:R127))<ABS($N127/$O127),$N127-SUM($P127:R127),$N127/$O127)) -> 0.0249548449 | T127: =IF($O127=0,0,IF(ABS($N127-SUM($P127:S127))<ABS($N127/$O127),$N127-SUM($P127:S127),$N127/$O127)) -> 0.0249548449
B128: 50 | C128: =I121 -> 2008 | I128: =($I$122*0.5)/$B128 -> 0 | J128: =IF(ABS($I$122-SUM($D128:I128))<ABS($I$122/$B128),$I$122-SUM($D128:I128),$I$122/$B128) -> 0 | K128: =IF(ABS($I$122-SUM($D128:J128))<ABS($I$122/$B128),$I$122-SUM($D128:J128),$I$122/$B128) -> 0 | L128: =IF(ABS($I$122-SUM($D128:K128))<ABS($I$122/$B128),$I$122-SUM($D128:K128),$I$122/$B128) -> 0 | M128: =IF(ABS($I$122-SUM($D128:L128))<ABS($I$122/$B128),$I$122-SUM($D128:L128),$I$122/$B128) -> 0 | N128: =I$53-SUM(D128:M128) -> 2.711226536 | O128: 45.5 | P128: 0.05958739639 | Q128: =IF($O128=0,0,IF(ABS($N128-SUM($P128:P128))<ABS($N128/$O128),$N128-SUM($P128:P128),$N128/$O128)) -> 0.05958739639 | R128: =IF($O128=0,0,IF(ABS($N128-SUM($P128:Q128))<ABS($N128/$O128),$N128-SUM($P128:Q128),$N128/$O128)) -> 0.05958739639 | S128: =IF($O128=0,0,IF(ABS($N128-SUM($P128:R128))<ABS($N128/$O128),$N128-SUM($P128:R128),$N128/$O128)) -> 0.05958739639 | T128: =IF($O128=0,0,IF(ABS($N128-SUM($P128:S128))<ABS($N128/$O128),$N128-SUM($P128:S128),$N128/$O128)) -> 0.05958739639
B129: 50 | C129: =J121 -> 2009 | J129: =($J$122*0.5)/$B129 -> 0 | K129: =IF(ABS($J$122-SUM($D129:J129))<ABS($J$122/$B129),$J$122-SUM($D129:J129),$J$122/$B129) -> 0 | L129: =IF(ABS($J$122-SUM($D129:K129))<ABS($J$122/$B129),$J$122-SUM($D129:K129),$J$122/$B129) -> 0 | M129: =IF(ABS($J$122-SUM($D129:L129))<ABS($J$122/$B129),$J$122-SUM($D129:L129),$J$122/$B129) -> 0 | N129: =J$53-SUM(D129:M129) -> 1.601929016 | O129: 46.5 | P129: 0.03445008636 | Q129: =IF($O129=0,0,IF(ABS($N129-SUM($P129:P129))<ABS($N129/$O129),$N129-SUM($P129:P129),$N129/$O129)) -> 0.03445008636 | R129: =IF($O129=0,0,IF(ABS($N129-SUM($P129:Q129))<ABS($N129/$O129),$N129-SUM($P129:Q129),$N129/$O129)) -> 0.03445008636 | S129: =IF($O129=0,0,IF(ABS($N129-SUM($P129:R129))<ABS($N129/$O129),$N129-SUM($P129:R129),$N129/$O129)) -> 0.03445008636 | T129: =IF($O129=0,0,IF(ABS($N129-SUM($P129:S129))<ABS($N129/$O129),$N129-SUM($P129:S129),$N129/$O129)) -> 0.03445008636
B130: 50 | C130: =K121 -> 2010 | K130: =($K$122*0.5)/$B130 -> 0 | L130: =IF(ABS($K$122-SUM($D130:K130))<ABS($K$122/$B130),$K$122-SUM($D130:K130),$K$122/$B130) -> 0 | M130: =IF(ABS($K$122-SUM($D130:L130))<ABS($K$122/$B130),$K$122-SUM($D130:L130),$K$122/$B130) -> 0 | N130: =K$53-SUM(D130:M130) -> 0.9824860259 | O130: 47.5 | P130: 0.02068391634 | Q130: =IF($O130=0,0,IF(ABS($N130-SUM($P130:P130))<ABS($N130/$O130),$N130-SUM($P130:P130),$N130/$O130)) -> 0.02068391634 | R130: =IF($O130=0,0,IF(ABS($N130-SUM($P130:Q130))<ABS($N130/$O130),$N130-SUM($P130:Q130),$N130/$O130)) -> 0.02068391634 | S130: =IF($O130=0,0,IF(ABS($N130-SUM($P130:R130))<ABS($N130/$O130),$N130-SUM($P130:R130),$N130/$O130)) -> 0.02068391634 | T130: =IF($O130=0,0,IF(ABS($N130-SUM($P130:S130))<ABS($N130/$O130),$N130-SUM($P130:S130),$N130/$O130)) -> 0.02068391634
B131: 50 | C131: =L121 -> 2011 | L131: =($L$122*0.5)/$B131 -> 0 | M131: =IF(ABS($L$122-SUM($D131:L131))<ABS($L$122/$B131),$L$122-SUM($D131:L131),$L$122/$B131) -> 0 | N131: =L$53-SUM(D131:M131) -> 1.125468436 | O131: =IF(O132-1<0,0,O132-1) -> 48.5 | P131: 0.02320553477 | Q131: =IF($O131=0,0,IF(ABS($N131-SUM($P131:P131))<ABS($N131/$O131),$N131-SUM($P131:P131),$N131/$O131)) -> 0.02320553477 | R131: =IF($O131=0,0,IF(ABS($N131-SUM($P131:Q131))<ABS($N131/$O131),$N131-SUM($P131:Q131),$N131/$O131)) -> 0.02320553477 | S131: =IF($O131=0,0,IF(ABS($N131-SUM($P131:R131))<ABS($N131/$O131),$N131-SUM($P131:R131),$N131/$O131)) -> 0.02320553477 | T131: =IF($O131=0,0,IF(ABS($N131-SUM($P131:S131))<ABS($N131/$O131),$N131-SUM($P131:S131),$N131/$O131)) -> 0.02320553477
B132: 50 | C132: =M121 -> 2012 | M132: =($M$122*0.5)/$B132 -> 0 | N132: =M$53-SUM(D132:M132) -> 1.283097974 | O132: =B123-0.5 -> 49.5 | P132: 0.0259211712 | Q132: =IF($O132=0,0,IF(ABS($N132-SUM($P132:P132))<ABS($N132/$O132),$N132-SUM($P132:P132),$N132/$O132)) -> 0.0259211712 | R132: =IF($O132=0,0,IF(ABS($N132-SUM($P132:Q132))<ABS($N132/$O132),$N132-SUM($P132:Q132),$N132/$O132)) -> 0.0259211712 | S132: =IF($O132=0,0,IF(ABS($N132-SUM($P132:R132))<ABS($N132/$O132),$N132-SUM($P132:R132),$N132/$O132)) -> 0.0259211712 | T132: =IF($O132=0,0,IF(ABS($N132-SUM($P132:S132))<ABS($N132/$O132),$N132-SUM($P132:S132),$N132/$O132)) -> 0.0259211712
A133: SL Depreciation | D133: =SUM(D123:D132) -> 0.01739149868 | E133: 0.0606732201 | F133: 0.09883234232 | G133: 0.1252925808 | H133: 0.1590939004 | I133: 0.1787038811 | J133: 0.1787038811 | K133: 0.1787038811 | L133: 0.1787038811 | M133: 0.1787038811 | N133: 14.64980141 | P133: =SUM(P123:P132) -> 0.3282868697 | Q133: 0.3282868697 | R133: 0.3282868697 | S133: 0.3282868697 | T133: 0.3282868697
A134: Actual WDV | B134: Check | C134: =ABS(N134) -> 3.552713679e-15 | D134: =D122-D133 -> 1.72175837 | E134: =D134+E122-E133 -> 4.250107423 | F134: =E134+F122-F133 -> 5.378165029 | G134: =F134+G122-G133 -> 6.672006345 | H134: =G134+H$53-H133 -> 7.83911283 | I134: =H134+I$53-I133 -> 10.37163548 | J134: 11.79486062 | K134: 12.59864276 | L134: 13.54540732 | M134: 14.64980141 | N134: =ABS(N133-M134) -> 3.552713679e-15 | P134: =N133-P133 -> 14.32151454 | Q134: =P134-Q133 -> 13.99322767 | R134: =Q134-R133 -> 13.6649408 | S134: 13.33665393 | T134: 13.00836706
A136: =A$69 -> Meters | D136: =D$17 -> 2003 | E136: =E$17 -> 2004 | F136: 2005 | G136: 2006 | H136: 2007 | I136: 2008 | J136: 2009 | K136: 2010 | L136: 2011 | M136: 2012 | N136: =$P136 -> 2013 | O136: =$P136 -> 2013 | P136: =P$17 -> 2013 | Q136: 2014 | R136: 2015 | S136: 2016 | T136: 2017
A137: Decision Net Capex | B137: Eco Life | C137: Year | D137: =D$40 -> 4.113743863 | E137: =E$40 -> 4.397414673 | F137: 3.56393523 | G137: 4.122375682 | H137: 5.696411568 | I137: 5.568779548 | J137: 5.287828879 | K137: 4.868662835 | L137: 5.070798358 | M137: 5.008173478 | N137: OAV | O137: Rem Life
B138: =$B$69 -> 30 | C138: =D136 -> 2003 | D138: =($D$137*0.5)/$B138 -> 0.06856239772 | E138: =IF(ABS($D$137-SUM($D138:D138))<ABS($D$137/$B138),$D$137-SUM($D138:D138),$D$137/$B138) -> 0.1371247954 | F138: =IF(ABS($D$137-SUM($D138:E138))<ABS($D$137/$B138),$D$137-SUM($D138:E138),$D$137/$B138) -> 0.1371247954 | G138: =IF(ABS($D$137-SUM($D138:F138))<ABS($D$137/$B138),$D$137-SUM($D138:F138),$D$137/$B138) -> 0.1371247954 | H138: =IF(ABS($D$137-SUM($D138:G138))<ABS($D$137/$B138),$D$137-SUM($D138:G138),$D$137/$B138) -> 0.1371247954 | I138: =IF(ABS($D$137-SUM($D138:H138))<ABS($D$137/$B138),$D$137-SUM($D138:H138),$D$137/$B138) -> 0.1371247954 | J138: =IF(ABS($D$137-SUM($D138:I138))<ABS($D$137/$B138),$D$137-SUM($D138:I138),$D$137/$B138) -> 0.1371247954 | K138: =IF(ABS($D$137-SUM($D138:J138))<ABS($D$137/$B138),$D$137-SUM($D138:J138),$D$137/$B138) -> 0.1371247954 | L138: =IF(ABS($D$137-SUM($D138:K138))<ABS($D$137/$B138),$D$137-SUM($D138:K138),$D$137/$B138) -> 0.1371247954 | M138: =IF(ABS($D$137-SUM($D138:L138))<ABS($D$137/$B138),$D$137-SUM($D138:L138),$D$137/$B138) -> 0.1371247954 | N138: =D$54-SUM(D138:M138) -> 2.811058306 | O138: =IF(O139-1<0,0,O139-1) -> 20.5 | P138: =IF(O138<1,N138,N138/O138) -> 0.1371247954 | Q138: =IF($O138=0,0,IF(ABS($N138-SUM($P138:P138))<ABS($N138/$O138),$N138-SUM($P138:P138),$N138/$O138)) -> 0.1371247954 | R138: =IF($O138=0,0,IF(ABS($N138-SUM($P138:Q138))<ABS($N138/$O138),$N138-SUM($P138:Q138),$N138/$O138)) -> 0.1371247954 | S138: =IF($O138=0,0,IF(ABS($N138-SUM($P138:R138))<ABS($N138/$O138),$N138-SUM($P138:R138),$N138/$O138)) -> 0.1371247954 | T138: =IF($O138=0,0,IF(ABS($N138-SUM($P138:S138))<ABS($N138/$O138),$N138-SUM($P138:S138),$N138/$O138)) -> 0.1371247954
B139: =B138 -> 30 | C139: =E136 -> 2004 | E139: =($E$137*0.5)/$B139 -> 0.07329024455 | F139: =IF(ABS($E$137-SUM($D139:E139))<ABS($E$137/$B139),$E$137-SUM($D139:E139),$E$137/$B139) -> 0.1465804891 | G139: =IF(ABS($E$137-SUM($D139:F139))<ABS($E$137/$B139),$E$137-SUM($D139:F139),$E$137/$B139) -> 0.1465804891 | H139: =IF(ABS($E$137-SUM($D139:G139))<ABS($E$137/$B139),$E$137-SUM($D139:G139),$E$137/$B139) -> 0.1465804891 | I139: =IF(ABS($E$137-SUM($D139:H139))<ABS($E$137/$B139),$E$137-SUM($D139:H139),$E$137/$B139) -> 0.1465804891 | J139: =IF(ABS($E$137-SUM($D139:I139))<ABS($E$137/$B139),$E$137-SUM($D139:I139),$E$137/$B139) -> 0.1465804891 | K139: =IF(ABS($E$137-SUM($D139:J139))<ABS($E$137/$B139),$E$137-SUM($D139:J139),$E$137/$B139) -> 0.1465804891 | L139: =IF(ABS($E$137-SUM($D139:K139))<ABS($E$137/$B139),$E$137-SUM($D139:K139),$E$137/$B139) -> 0.1465804891 | M139: =IF(ABS($E$137-SUM($D139:L139))<ABS($E$137/$B139),$E$137-SUM($D139:L139),$E$137/$B139) -> 0.1465804891 | N139: =E$54-SUM(D139:M139) -> 3.151480515 | O139: 21.5 | P139: =IF(O139<1,N139,N139/O139) -> 0.1465804891 | Q139: =IF($O139=0,0,IF(ABS($N139-SUM($P139:P139))<ABS($N139/$O139),$N139-SUM($P139:P139),$N139/$O139)) -> 0.1465804891 | R139: =IF($O139=0,0,IF(ABS($N139-SUM($P139:Q139))<ABS($N139/$O139),$N139-SUM($P139:Q139),$N139/$O139)) -> 0.1465804891 | S139: =IF($O139=0,0,IF(ABS($N139-SUM($P139:R139))<ABS($N139/$O139),$N139-SUM($P139:R139),$N139/$O139)) -> 0.1465804891 | T139: =IF($O139=0,0,IF(ABS($N139-SUM($P139:S139))<ABS($N139/$O139),$N139-SUM($P139:S139),$N139/$O139)) -> 0.1465804891
B140: 30 | C140: =F136 -> 2005 | F140: =($F$137*0.5)/$B140 -> 0.0593989205 | G140: =IF(ABS($F$137-SUM($D140:F140))<ABS($F$137/$B140),$F$137-SUM($D140:F140),$F$137/$B140) -> 0.118797841 | H140: =IF(ABS($F$137-SUM($D140:G140))<ABS($F$137/$B140),$F$137-SUM($D140:G140),$F$137/$B140) -> 0.118797841 | I140: =IF(ABS($F$137-SUM($D140:H140))<ABS($F$137/$B140),$F$137-SUM($D140:H140),$F$137/$B140) -> 0.118797841 | J140: =IF(ABS($F$137-SUM($D140:I140))<ABS($F$137/$B140),$F$137-SUM($D140:I140),$F$137/$B140) -> 0.118797841 | K140: =IF(ABS($F$137-SUM($D140:J140))<ABS($F$137/$B140),$F$137-SUM($D140:J140),$F$137/$B140) -> 0.118797841 | L140: =IF(ABS($F$137-SUM($D140:K140))<ABS($F$137/$B140),$F$137-SUM($D140:K140),$F$137/$B140) -> 0.118797841 | M140: =IF(ABS($F$137-SUM($D140:L140))<ABS($F$137/$B140),$F$137-SUM($D140:L140),$F$137/$B140) -> 0.118797841 | N140: =F$54-SUM(D140:M140) -> 2.672951422 | O140: 22.5 | P140: 0.118797841 | Q140: =IF($O140=0,0,IF(ABS($N140-SUM($P140:P140))<ABS($N140/$O140),$N140-SUM($P140:P140),$N140/$O140)) -> 0.118797841 | R140: =IF($O140=0,0,IF(ABS($N140-SUM($P140:Q140))<ABS($N140/$O140),$N140-SUM($P140:Q140),$N140/$O140)) -> 0.118797841 | S140: =IF($O140=0,0,IF(ABS($N140-SUM($P140:R140))<ABS($N140/$O140),$N140-SUM($P140:R140),$N140/$O140)) -> 0.118797841 | T140: =IF($O140=0,0,IF(ABS($N140-SUM($P140:S140))<ABS($N140/$O140),$N140-SUM($P140:S140),$N140/$O140)) -> 0.118797841
B141: 30 | C141: =G136 -> 2006 | G141: =($G$137*0.5)/$B141 -> 0.06870626136 | H141: =IF(ABS($G$137-SUM($D141:G141))<ABS($G$137/$B141),$G$137-SUM($D141:G141),$G$137/$B141) -> 0.1374125227 | I141: =IF(ABS($G$137-SUM($D141:H141))<ABS($G$137/$B141),$G$137-SUM($D141:H141),$G$137/$B141) -> 0.1374125227 | J141: =IF(ABS($G$137-SUM($D141:I141))<ABS($G$137/$B141),$G$137-SUM($D141:I141),$G$137/$B141) -> 0.1374125227 | K141: =IF(ABS($G$137-SUM($D141:J141))<ABS($G$137/$B141),$G$137-SUM($D141:J141),$G$137/$B141) -> 0.1374125227 | L141: =IF(ABS($G$137-SUM($D141:K141))<ABS($G$137/$B141),$G$137-SUM($D141:K141),$G$137/$B141) -> 0.1374125227 | M141: =IF(ABS($G$137-SUM($D141:L141))<ABS($G$137/$B141),$G$137-SUM($D141:L141),$G$137/$B141) -> 0.1374125227 | N141: =G$54-SUM(D141:M141) -> 3.229194284 | O141: 23.5 | P141: 0.1374125227 | Q141: =IF($O141=0,0,IF(ABS($N141-SUM($P141:P141))<ABS($N141/$O141),$N141-SUM($P141:P141),$N141/$O141)) -> 0.1374125227 | R141: =IF($O141=0,0,IF(ABS($N141-SUM($P141:Q141))<ABS($N141/$O141),$N141-SUM($P141:Q141),$N141/$O141)) -> 0.1374125227 | S141: =IF($O141=0,0,IF(ABS($N141-SUM($P141:R141))<ABS($N141/$O141),$N141-SUM($P141:R141),$N141/$O141)) -> 0.1374125227 | T141: =IF($O141=0,0,IF(ABS($N141-SUM($P141:S141))<ABS($N141/$O141),$N141-SUM($P141:S141),$N141/$O141)) -> 0.1374125227
B142: 30 | C142: =H136 -> 2007 | H142: =($H$137*0.5)/$B142 -> 0.09494019279 | I142: =IF(ABS($H$137-SUM($D142:H142))<ABS($H$137/$B142),$H$137-SUM($D142:H142),$H$137/$B142) -> 0.1898803856 | J142: =IF(ABS($H$137-SUM($D142:I142))<ABS($H$137/$B142),$H$137-SUM($D142:I142),$H$137/$B142) -> 0.1898803856 | K142: =IF(ABS($H$137-SUM($D142:J142))<ABS($H$137/$B142),$H$137-SUM($D142:J142),$H$137/$B142) -> 0.1898803856 | L142: =IF(ABS($H$137-SUM($D142:K142))<ABS($H$137/$B142),$H$137-SUM($D142:K142),$H$137/$B142) -> 0.1898803856 | M142: =IF(ABS($H$137-SUM($D142:L142))<ABS($H$137/$B142),$H$137-SUM($D142:L142),$H$137/$B142) -> 0.1898803856 | N142: =H$54-SUM(D142:M142) -> 2.240625124 | O142: 24.5 | P142: 0.09145408669 | Q142: =IF($O142=0,0,IF(ABS($N142-SUM($P142:P142))<ABS($N142/$O142),$N142-SUM($P142:P142),$N142/$O142)) -> 0.09145408669 | R142: =IF($O142=0,0,IF(ABS($N142-SUM($P142:Q142))<ABS($N142/$O142),$N142-SUM($P142:Q142),$N142/$O142)) -> 0.09145408669 | S142: =IF($O142=0,0,IF(ABS($N142-SUM($P142:R142))<ABS($N142/$O142),$N142-SUM($P142:R142),$N142/$O142)) -> 0.09145408669 | T142: =IF($O142=0,0,IF(ABS($N142-SUM($P142:S142))<ABS($N142/$O142),$N142-SUM($P142:S142),$N142/$O142)) -> 0.09145408669
B143: 30 | C143: =I136 -> 2008 | I143: =($I$137*0.5)/$B143 -> 0.09281299246 | J143: =IF(ABS($I$137-SUM($D143:I143))<ABS($I$137/$B143),$I$137-SUM($D143:I143),$I$137/$B143) -> 0.1856259849 | K143: =IF(ABS($I$137-SUM($D143:J143))<ABS($I$137/$B143),$I$137-SUM($D143:J143),$I$137/$B143) -> 0.1856259849 | L143: =IF(ABS($I$137-SUM($D143:K143))<ABS($I$137/$B143),$I$137-SUM($D143:K143),$I$137/$B143) -> 0.1856259849 | M143: =IF(ABS($I$137-SUM($D143:L143))<ABS($I$137/$B143),$I$137-SUM($D143:L143),$I$137/$B143) -> 0.1856259849 | N143: =I$54-SUM(D143:M143) -> 2.307228292 | O143: 25.5 | P143: 0.09047954088 | Q143: =IF($O143=0,0,IF(ABS($N143-SUM($P143:P143))<ABS($N143/$O143),$N143-SUM($P143:P143),$N143/$O143)) -> 0.09047954088 | R143: =IF($O143=0,0,IF(ABS($N143-SUM($P143:Q143))<ABS($N143/$O143),$N143-SUM($P143:Q143),$N143/$O143)) -> 0.09047954088 | S143: =IF($O143=0,0,IF(ABS($N143-SUM($P143:R143))<ABS($N143/$O143),$N143-SUM($P143:R143),$N143/$O143)) -> 0.09047954088 | T143: =IF($O143=0,0,IF(ABS($N143-SUM($P143:S143))<ABS($N143/$O143),$N143-SUM($P143:S143),$N143/$O143)) -> 0.09047954088
B144: 30 | C144: =J136 -> 2009 | J144: =($J$137*0.5)/$B144 -> 0.08813048131 | K144: =IF(ABS($J$137-SUM($D144:J144))<ABS($J$137/$B144),$J$137-SUM($D144:J144),$J$137/$B144) -> 0.1762609626 | L144: =IF(ABS($J$137-SUM($D144:K144))<ABS($J$137/$B144),$J$137-SUM($D144:K144),$J$137/$B144) -> 0.1762609626 | M144: =IF(ABS($J$137-SUM($D144:L144))<ABS($J$137/$B144),$J$137-SUM($D144:L144),$J$137/$B144) -> 0.1762609626 | N144: =J$54-SUM(D144:M144) -> 2.958241515 | O144: 26.5 | P144: 0.1116317553 | Q144: =IF($O144=0,0,IF(ABS($N144-SUM($P144:P144))<ABS($N144/$O144),$N144-SUM($P144:P144),$N144/$O144)) -> 0.1116317553 | R144: =IF($O144=0,0,IF(ABS($N144-SUM($P144:Q144))<ABS($N144/$O144),$N144-SUM($P144:Q144),$N144/$O144)) -> 0.1116317553 | S144: =IF($O144=0,0,IF(ABS($N144-SUM($P144:R144))<ABS($N144/$O144),$N144-SUM($P144:R144),$N144/$O144)) -> 0.1116317553 | T144: =IF($O144=0,0,IF(ABS($N144-SUM($P144:S144))<ABS($N144/$O144),$N144-SUM($P144:S144),$N144/$O144)) -> 0.1116317553
B145: 30 | C145: =K136 -> 2010 | K145: =($K$137*0.5)/$B145 -> 0.08114438059 | L145: =IF(ABS($K$137-SUM($D145:K145))<ABS($K$137/$B145),$K$137-SUM($D145:K145),$K$137/$B145) -> 0.1622887612 | M145: =IF(ABS($K$137-SUM($D145:L145))<ABS($K$137/$B145),$K$137-SUM($D145:L145),$K$137/$B145) -> 0.1622887612 | N145: =K$54-SUM(D145:M145) -> 3.552992226 | O145: 27.5 | P145: 0.1291997173 | Q145: =IF($O145=0,0,IF(ABS($N145-SUM($P145:P145))<ABS($N145/$O145),$N145-SUM($P145:P145),$N145/$O145)) -> 0.1291997173 | R145: =IF($O145=0,0,IF(ABS($N145-SUM($P145:Q145))<ABS($N145/$O145),$N145-SUM($P145:Q145),$N145/$O145)) -> 0.1291997173 | S145: =IF($O145=0,0,IF(ABS($N145-SUM($P145:R145))<ABS($N145/$O145),$N145-SUM($P145:R145),$N145/$O145)) -> 0.1291997173 | T145: =IF($O145=0,0,IF(ABS($N145-SUM($P145:S145))<ABS($N145/$O145),$N145-SUM($P145:S145),$N145/$O145)) -> 0.1291997173
B146: 30 | C146: =L136 -> 2011 | L146: =($L$137*0.5)/$B146 -> 0.08451330596 | M146: =IF(ABS($L$137-SUM($D146:L146))<ABS($L$137/$B146),$L$137-SUM($D146:L146),$L$137/$B146) -> 0.1690266119 | N146: =L$54-SUM(D146:M146) -> 4.062515593 | O146: =IF(O147-1<0,0,O147-1) -> 28.5 | P146: 0.1425444068 | Q146: =IF($O146=0,0,IF(ABS($N146-SUM($P146:P146))<ABS($N146/$O146),$N146-SUM($P146:P146),$N146/$O146)) -> 0.1425444068 | R146: =IF($O146=0,0,IF(ABS($N146-SUM($P146:Q146))<ABS($N146/$O146),$N146-SUM($P146:Q146),$N146/$O146)) -> 0.1425444068 | S146: =IF($O146=0,0,IF(ABS($N146-SUM($P146:R146))<ABS($N146/$O146),$N146-SUM($P146:R146),$N146/$O146)) -> 0.1425444068 | T146: =IF($O146=0,0,IF(ABS($N146-SUM($P146:S146))<ABS($N146/$O146),$N146-SUM($P146:S146),$N146/$O146)) -> 0.1425444068
B147: 30 | C147: =M136 -> 2012 | M147: =($M$137*0.5)/$B147 -> 0.08346955796 | N147: =M$54-SUM(D147:M147) -> 6.352352221 | O147: =B138-0.5 -> 29.5 | P147: 0.2153339736 | Q147: =IF($O147=0,0,IF(ABS($N147-SUM($P147:P147))<ABS($N147/$O147),$N147-SUM($P147:P147),$N147/$O147)) -> 0.2153339736 | R147: =IF($O147=0,0,IF(ABS($N147-SUM($P147:Q147))<ABS($N147/$O147),$N147-SUM($P147:Q147),$N147/$O147)) -> 0.2153339736 | S147: =IF($O147=0,0,IF(ABS($N147-SUM($P147:R147))<ABS($N147/$O147),$N147-SUM($P147:R147),$N147/$O147)) -> 0.2153339736 | T147: =IF($O147=0,0,IF(ABS($N147-SUM($P147:S147))<ABS($N147/$O147),$N147-SUM($P147:S147),$N147/$O147)) -> 0.2153339736
A148: SL Depreciation | D148: =SUM(D138:D147) -> 0.06856239772 | E148: 0.21041504 | F148: 0.343104205 | G148: 0.4712093869 | H148: 0.634855841 | I148: 0.8226090263 | J148: 1.0035525 | K148: 1.172827362 | L148: 1.338485049 | M148: 1.506467912 | N148: 33.3386395 | P148: =SUM(P138:P147) -> 1.320559129 | Q148: 1.320559129 | R148: 1.320559129 | S148: 1.320559129 | T148: 1.320559129
A149: Actual WDV | B149: Check | C149: =ABS(N149) -> 7.105427358e-15 | D149: =D137-D148 -> 4.045181465 | E149: =D149+E137-E148 -> 8.232181098 | F149: =E149+F137-F148 -> 11.45301212 | G149: =F149+G137-G148 -> 15.10417842 | H149: =G149+H$54-H148 -> 17.75428982 | I149: =H149+I$54-I148 -> 20.07422602 | J149: 22.6458284 | K149: 25.43171517 | L149: 28.40928563 | M149: 33.3386395 | N149: =ABS(N148-M149) -> 7.105427358e-15 | P149: =N148-P148 -> 32.01808037 | Q149: =P149-Q148 -> 30.69752124 | R149: =Q149-R148 -> 29.37696211 | S149: 28.05640298 | T149: 26.73584386
A151: =A$70 -> Land & Buildings | D151: =D$17 -> 2003 | E151: =E$17 -> 2004 | F151: 2005 | G151: 2006 | H151: 2007 | I151: 2008 | J151: 2009 | K151: 2010 | L151: 2011 | M151: 2012 | N151: =$P151 -> 2013 | O151: =$P151 -> 2013 | P151: =P$17 -> 2013 | Q151: 2014 | R151: 2015 | S151: 2016 | T151: 2017
A152: Decision Net Capex | B152: Eco Life | C152: Year | D152: =D$41 -> 0 | E152: =E$41 -> 0 | F152: 0 | G152: 0 | H152: 0 | I152: 0 | J152: 0 | K152: 0 | L152: 0 | M152: 0 | N152: OAV | O152: Rem Life
B153: =$B$70 -> 50 | C153: =D151 -> 2003 | D153: =($D$152*0.5)/$B153 -> 0 | E153: =IF(ABS($D$152-SUM($D153:D153))<ABS($D$152/$B153),$D$152-SUM($D153:D153),$D$152/$B153) -> 0 | F153: =IF(ABS($D$152-SUM($D153:E153))<ABS($D$152/$B153),$D$152-SUM($D153:E153),$D$152/$B153) -> 0 | G153: =IF(ABS($D$152-SUM($D153:F153))<ABS($D$152/$B153),$D$152-SUM($D153:F153),$D$152/$B153) -> 0 | H153: =IF(ABS($D$152-SUM($D153:G153))<ABS($D$152/$B153),$D$152-SUM($D153:G153),$D$152/$B153) -> 0 | I153: =IF(ABS($D$152-SUM($D153:H153))<ABS($D$152/$B153),$D$152-SUM($D153:H153),$D$152/$B153) -> 0 | J153: =IF(ABS($D$152-SUM($D153:I153))<ABS($D$152/$B153),$D$152-SUM($D153:I153),$D$152/$B153) -> 0 | K153: =IF(ABS($D$152-SUM($D153:J153))<ABS($D$152/$B153),$D$152-SUM($D153:J153),$D$152/$B153) -> 0 | L153: =IF(ABS($D$152-SUM($D153:K153))<ABS($D$152/$B153),$D$152-SUM($D153:K153),$D$152/$B153) -> 0 | M153: =IF(ABS($D$152-SUM($D153:L153))<ABS($D$152/$B153),$D$152-SUM($D153:L153),$D$152/$B153) -> 0 | N153: =D$55-SUM(D153:M153) -> 0 | O153: =IF(O154-1<0,0,O154-1) -> 40.5 | P153: =IF(O153<1,N153,N153/O153) -> 0 | Q153: =IF($O153=0,0,IF(ABS($N153-SUM($P153:P153))<ABS($N153/$O153),$N153-SUM($P153:P153),$N153/$O153)) -> 0 | R153: =IF($O153=0,0,IF(ABS($N153-SUM($P153:Q153))<ABS($N153/$O153),$N153-SUM($P153:Q153),$N153/$O153)) -> 0 | S153: =IF($O153=0,0,IF(ABS($N153-SUM($P153:R153))<ABS($N153/$O153),$N153-SUM($P153:R153),$N153/$O153)) -> 0 | T153: =IF($O153=0,0,IF(ABS($N153-SUM($P153:S153))<ABS($N153/$O153),$N153-SUM($P153:S153),$N153/$O153)) -> 0
B154: =B153 -> 50 | C154: =E151 -> 2004 | E154: =($E$152*0.5)/$B154 -> 0 | F154: =IF(ABS($E$152-SUM($D154:E154))<ABS($E$152/$B154),$E$152-SUM($D154:E154),$E$152/$B154) -> 0 | G154: =IF(ABS($E$152-SUM($D154:F154))<ABS($E$152/$B154),$E$152-SUM($D154:F154),$E$152/$B154) -> 0 | H154: =IF(ABS($E$152-SUM($D154:G154))<ABS($E$152/$B154),$E$152-SUM($D154:G154),$E$152/$B154) -> 0 | I154: =IF(ABS($E$152-SUM($D154:H154))<ABS($E$152/$B154),$E$152-SUM($D154:H154),$E$152/$B154) -> 0 | J154: =IF(ABS($E$152-SUM($D154:I154))<ABS($E$152/$B154),$E$152-SUM($D154:I154),$E$152/$B154) -> 0 | K154: =IF(ABS($E$152-SUM($D154:J154))<ABS($E$152/$B154),$E$152-SUM($D154:J154),$E$152/$B154) -> 0 | L154: =IF(ABS($E$152-SUM($D154:K154))<ABS($E$152/$B154),$E$152-SUM($D154:K154),$E$152/$B154) -> 0 | M154: =IF(ABS($E$152-SUM($D154:L154))<ABS($E$152/$B154),$E$152-SUM($D154:L154),$E$152/$B154) -> 0 | N154: =E$55-SUM(D154:M154) -> 0 | O154: 41.5 | P154: =IF(O154<1,N154,N154/O154) -> 0 | Q154: =IF($O154=0,0,IF(ABS($N154-SUM($P154:P154))<ABS($N154/$O154),$N154-SUM($P154:P154),$N154/$O154)) -> 0 | R154: =IF($O154=0,0,IF(ABS($N154-SUM($P154:Q154))<ABS($N154/$O154),$N154-SUM($P154:Q154),$N154/$O154)) -> 0 | S154: =IF($O154=0,0,IF(ABS($N154-SUM($P154:R154))<ABS($N154/$O154),$N154-SUM($P154:R154),$N154/$O154)) -> 0 | T154: =IF($O154=0,0,IF(ABS($N154-SUM($P154:S154))<ABS($N154/$O154),$N154-SUM($P154:S154),$N154/$O154)) -> 0
B155: 50 | C155: =F151 -> 2005 | F155: =($F$152*0.5)/$B155 -> 0 | G155: =IF(ABS($F$152-SUM($D155:F155))<ABS($F$152/$B155),$F$152-SUM($D155:F155),$F$152/$B155) -> 0 | H155: =IF(ABS($F$152-SUM($D155:G155))<ABS($F$152/$B155),$F$152-SUM($D155:G155),$F$152/$B155) -> 0 | I155: =IF(ABS($F$152-SUM($D155:H155))<ABS($F$152/$B155),$F$152-SUM($D155:H155),$F$152/$B155) -> 0 | J155: =IF(ABS($F$152-SUM($D155:I155))<ABS($F$152/$B155),$F$152-SUM($D155:I155),$F$152/$B155) -> 0 | K155: =IF(ABS($F$152-SUM($D155:J155))<ABS($F$152/$B155),$F$152-SUM($D155:J155),$F$152/$B155) -> 0 | L155: =IF(ABS($F$152-SUM($D155:K155))<ABS($F$152/$B155),$F$152-SUM($D155:K155),$F$152/$B155) -> 0 | M155: =IF(ABS($F$152-SUM($D155:L155))<ABS($F$152/$B155),$F$152-SUM($D155:L155),$F$152/$B155) -> 0 | N155: =F$55-SUM(D155:M155) -> 0 | O155: 42.5 | P155: 0 | Q155: =IF($O155=0,0,IF(ABS($N155-SUM($P155:P155))<ABS($N155/$O155),$N155-SUM($P155:P155),$N155/$O155)) -> 0 | R155: =IF($O155=0,0,IF(ABS($N155-SUM($P155:Q155))<ABS($N155/$O155),$N155-SUM($P155:Q155),$N155/$O155)) -> 0 | S155: =IF($O155=0,0,IF(ABS($N155-SUM($P155:R155))<ABS($N155/$O155),$N155-SUM($P155:R155),$N155/$O155)) -> 0 | T155: =IF($O155=0,0,IF(ABS($N155-SUM($P155:S155))<ABS($N155/$O155),$N155-SUM($P155:S155),$N155/$O155)) -> 0
B156: 50 | C156: =G151 -> 2006 | G156: =($G$152*0.5)/$B156 -> 0 | H156: =IF(ABS($G$152-SUM($D156:G156))<ABS($G$152/$B156),$G$152-SUM($D156:G156),$G$152/$B156) -> 0 | I156: =IF(ABS($G$152-SUM($D156:H156))<ABS($G$152/$B156),$G$152-SUM($D156:H156),$G$152/$B156) -> 0 | J156: =IF(ABS($G$152-SUM($D156:I156))<ABS($G$152/$B156),$G$152-SUM($D156:I156),$G$152/$B156) -> 0 | K156: =IF(ABS($G$152-SUM($D156:J156))<ABS($G$152/$B156),$G$152-SUM($D156:J156),$G$152/$B156) -> 0 | L156: =IF(ABS($G$152-SUM($D156:K156))<ABS($G$152/$B156),$G$152-SUM($D156:K156),$G$152/$B156) -> 0 | M156: =IF(ABS($G$152-SUM($D156:L156))<ABS($G$152/$B156),$G$152-SUM($D156:L156),$G$152/$B156) -> 0 | N156: =G$55-SUM(D156:M156) -> 0 | O156: 43.5 | P156: 0 | Q156: =IF($O156=0,0,IF(ABS($N156-SUM($P156:P156))<ABS($N156/$O156),$N156-SUM($P156:P156),$N156/$O156)) -> 0 | R156: =IF($O156=0,0,IF(ABS($N156-SUM($P156:Q156))<ABS($N156/$O156),$N156-SUM($P156:Q156),$N156/$O156)) -> 0 | S156: =IF($O156=0,0,IF(ABS($N156-SUM($P156:R156))<ABS($N156/$O156),$N156-SUM($P156:R156),$N156/$O156)) -> 0 | T156: =IF($O156=0,0,IF(ABS($N156-SUM($P156:S156))<ABS($N156/$O156),$N156-SUM($P156:S156),$N156/$O156)) -> 0
B157: 50 | C157: =H151 -> 2007 | H157: =($H$152*0.5)/$B157 -> 0 | I157: =IF(ABS($H$152-SUM($D157:H157))<ABS($H$152/$B157),$H$152-SUM($D157:H157),$H$152/$B157) -> 0 | J157: =IF(ABS($H$152-SUM($D157:I157))<ABS($H$152/$B157),$H$152-SUM($D157:I157),$H$152/$B157) -> 0 | K157: =IF(ABS($H$152-SUM($D157:J157))<ABS($H$152/$B157),$H$152-SUM($D157:J157),$H$152/$B157) -> 0 | L157: =IF(ABS($H$152-SUM($D157:K157))<ABS($H$152/$B157),$H$152-SUM($D157:K157),$H$152/$B157) -> 0 | M157: =IF(ABS($H$152-SUM($D157:L157))<ABS($H$152/$B157),$H$152-SUM($D157:L157),$H$152/$B157) -> 0 | N157: =H$55-SUM(D157:M157) -> 0 | O157: 44.5 | P157: 0 | Q157: =IF($O157=0,0,IF(ABS($N157-SUM($P157:P157))<ABS($N157/$O157),$N157-SUM($P157:P157),$N157/$O157)) -> 0 | R157: =IF($O157=0,0,IF(ABS($N157-SUM($P157:Q157))<ABS($N157/$O157),$N157-SUM($P157:Q157),$N157/$O157)) -> 0 | S157: =IF($O157=0,0,IF(ABS($N157-SUM($P157:R157))<ABS($N157/$O157),$N157-SUM($P157:R157),$N157/$O157)) -> 0 | T157: =IF($O157=0,0,IF(ABS($N157-SUM($P157:S157))<ABS($N157/$O157),$N157-SUM($P157:S157),$N157/$O157)) -> 0
B158: 50 | C158: =I151 -> 2008 | I158: =($I$152*0.5)/$B158 -> 0 | J158: =IF(ABS($I$152-SUM($D158:I158))<ABS($I$152/$B158),$I$152-SUM($D158:I158),$I$152/$B158) -> 0 | K158: =IF(ABS($I$152-SUM($D158:J158))<ABS($I$152/$B158),$I$152-SUM($D158:J158),$I$152/$B158) -> 0 | L158: =IF(ABS($I$152-SUM($D158:K158))<ABS($I$152/$B158),$I$152-SUM($D158:K158),$I$152/$B158) -> 0 | M158: =IF(ABS($I$152-SUM($D158:L158))<ABS($I$152/$B158),$I$152-SUM($D158:L158),$I$152/$B158) -> 0 | N158: =I$55-SUM(D158:M158) -> 0 | O158: 45.5 | P158: 0 | Q158: =IF($O158=0,0,IF(ABS($N158-SUM($P158:P158))<ABS($N158/$O158),$N158-SUM($P158:P158),$N158/$O158)) -> 0 | R158: =IF($O158=0,0,IF(ABS($N158-SUM($P158:Q158))<ABS($N158/$O158),$N158-SUM($P158:Q158),$N158/$O158)) -> 0 | S158: =IF($O158=0,0,IF(ABS($N158-SUM($P158:R158))<ABS($N158/$O158),$N158-SUM($P158:R158),$N158/$O158)) -> 0 | T158: =IF($O158=0,0,IF(ABS($N158-SUM($P158:S158))<ABS($N158/$O158),$N158-SUM($P158:S158),$N158/$O158)) -> 0
B159: 50 | C159: =J151 -> 2009 | J159: =($J$152*0.5)/$B159 -> 0 | K159: =IF(ABS($J$152-SUM($D159:J159))<ABS($J$152/$B159),$J$152-SUM($D159:J159),$J$152/$B159) -> 0 | L159: =IF(ABS($J$152-SUM($D159:K159))<ABS($J$152/$B159),$J$152-SUM($D159:K159),$J$152/$B159) -> 0 | M159: =IF(ABS($J$152-SUM($D159:L159))<ABS($J$152/$B159),$J$152-SUM($D159:L159),$J$152/$B159) -> 0 | N159: =J$55-SUM(D159:M159) -> 0 | O159: 46.5 | P159: 0 | Q159: =IF($O159=0,0,IF(ABS($N159-SUM($P159:P159))<ABS($N159/$O159),$N159-SUM($P159:P159),$N159/$O159)) -> 0 | R159: =IF($O159=0,0,IF(ABS($N159-SUM($P159:Q159))<ABS($N159/$O159),$N159-SUM($P159:Q159),$N159/$O159)) -> 0 | S159: =IF($O159=0,0,IF(ABS($N159-SUM($P159:R159))<ABS($N159/$O159),$N159-SUM($P159:R159),$N159/$O159)) -> 0 | T159: =IF($O159=0,0,IF(ABS($N159-SUM($P159:S159))<ABS($N159/$O159),$N159-SUM($P159:S159),$N159/$O159)) -> 0
B160: 50 | C160: =K151 -> 2010 | K160: =($K$152*0.5)/$B160 -> 0 | L160: =IF(ABS($K$152-SUM($D160:K160))<ABS($K$152/$B160),$K$152-SUM($D160:K160),$K$152/$B160) -> 0 | M160: =IF(ABS($K$152-SUM($D160:L160))<ABS($K$152/$B160),$K$152-SUM($D160:L160),$K$152/$B160) -> 0 | N160: =K$55-SUM(D160:M160) -> 0 | O160: 47.5 | P160: 0 | Q160: =IF($O160=0,0,IF(ABS($N160-SUM($P160:P160))<ABS($N160/$O160),$N160-SUM($P160:P160),$N160/$O160)) -> 0 | R160: =IF($O160=0,0,IF(ABS($N160-SUM($P160:Q160))<ABS($N160/$O160),$N160-SUM($P160:Q160),$N160/$O160)) -> 0 | S160: =IF($O160=0,0,IF(ABS($N160-SUM($P160:R160))<ABS($N160/$O160),$N160-SUM($P160:R160),$N160/$O160)) -> 0 | T160: =IF($O160=0,0,IF(ABS($N160-SUM($P160:S160))<ABS($N160/$O160),$N160-SUM($P160:S160),$N160/$O160)) -> 0
B161: 50 | C161: =L151 -> 2011 | L161: =($L$152*0.5)/$B161 -> 0 | M161: =IF(ABS($L$152-SUM($D161:L161))<ABS($L$152/$B161),$L$152-SUM($D161:L161),$L$152/$B161) -> 0 | N161: =L$55-SUM(D161:M161) -> 0 | O161: =IF(O162-1<0,0,O162-1) -> 48.5 | P161: 0 | Q161: =IF($O161=0,0,IF(ABS($N161-SUM($P161:P161))<ABS($N161/$O161),$N161-SUM($P161:P161),$N161/$O161)) -> 0 | R161: =IF($O161=0,0,IF(ABS($N161-SUM($P161:Q161))<ABS($N161/$O161),$N161-SUM($P161:Q161),$N161/$O161)) -> 0 | S161: =IF($O161=0,0,IF(ABS($N161-SUM($P161:R161))<ABS($N161/$O161),$N161-SUM($P161:R161),$N161/$O161)) -> 0 | T161: =IF($O161=0,0,IF(ABS($N161-SUM($P161:S161))<ABS($N161/$O161),$N161-SUM($P161:S161),$N161/$O161)) -> 0
B162: 50 | C162: =M151 -> 2012 | M162: =($M$152*0.5)/$B162 -> 0 | N162: =M$55-SUM(D162:M162) -> 0 | O162: =B153-0.5 -> 49.5 | P162: 0 | Q162: =IF($O162=0,0,IF(ABS($N162-SUM($P162:P162))<ABS($N162/$O162),$N162-SUM($P162:P162),$N162/$O162)) -> 0 | R162: =IF($O162=0,0,IF(ABS($N162-SUM($P162:Q162))<ABS($N162/$O162),$N162-SUM($P162:Q162),$N162/$O162)) -> 0 | S162: =IF($O162=0,0,IF(ABS($N162-SUM($P162:R162))<ABS($N162/$O162),$N162-SUM($P162:R162),$N162/$O162)) -> 0 | T162: =IF($O162=0,0,IF(ABS($N162-SUM($P162:S162))<ABS($N162/$O162),$N162-SUM($P162:S162),$N162/$O162)) -> 0
A163: SL Depreciation | D163: =SUM(D153:D162) -> 0 | E163: 0 | F163: 0 | G163: 0 | H163: 0 | I163: 0 | J163: 0 | K163: 0 | L163: 0 | M163: 0 | N163: 0 | P163: =SUM(P153:P162) -> 0 | Q163: 0 | R163: 0 | S163: 0 | T163: 0
A164: Actual WDV | B164: Check | C164: =ABS(N164) -> 0 | D164: =D152-D163 -> 0 | E164: =D164+E152-E163 -> 0 | F164: =E164+F152-F163 -> 0 | G164: =F164+G152-G163 -> 0 | H164: =G164+H$55-H163 -> 0 | I164: =H164+I$55-I163 -> 0 | J164: 0 | K164: 0 | L164: 0 | M164: 0 | N164: =ABS(N163-M164) -> 0 | P164: =N163-P163 -> 0 | Q164: =P164-Q163 -> 0 | R164: =Q164-R163 -> 0 | S164: 0 | T164: 0
A166: =A$71 -> SCADA | D166: =D$17 -> 2003 | E166: =E$17 -> 2004 | F166: 2005 | G166: 2006 | H166: 2007 | I166: 2008 | J166: 2009 | K166: 2010 | L166: 2011 | M166: 2012 | N166: =$P166 -> 2013 | O166: =$P166 -> 2013 | P166: =P$17 -> 2013 | Q166: 2014 | R166: 2015 | S166: 2016 | T166: 2017
A167: Decision Net Capex | B167: Eco Life | C167: Year | D167: =D$42 -> 0.9674717267 | E167: =E$42 -> 0.3381898311 | F167: 0.1187531761 | G167: 0.1373608592 | H167: 0.1898089955 | I167: 1.051547232 | J167: 0.8255115241 | K167: 0.8148024176 | L167: 0.8982911505 | M167: 0.2503196125 | N167: OAV | O167: Rem Life
B168: =$B$71 -> 7 | C168: =D166 -> 2003 | D168: =($D$167*0.5)/$B168 -> 0.06910512333 | E168: =IF(ABS($D$167-SUM($D168:D168))<ABS($D$167/$B168),$D$167-SUM($D168:D168),$D$167/$B168) -> 0.1382102467 | F168: =IF(ABS($D$167-SUM($D168:E168))<ABS($D$167/$B168),$D$167-SUM($D168:E168),$D$167/$B168) -> 0.1382102467 | G168: =IF(ABS($D$167-SUM($D168:F168))<ABS($D$167/$B168),$D$167-SUM($D168:F168),$D$167/$B168) -> 0.1382102467 | H168: =IF(ABS($D$167-SUM($D168:G168))<ABS($D$167/$B168),$D$167-SUM($D168:G168),$D$167/$B168) -> 0.1382102467 | I168: =IF(ABS($D$167-SUM($D168:H168))<ABS($D$167/$B168),$D$167-SUM($D168:H168),$D$167/$B168) -> 0.1382102467 | J168: =IF(ABS($D$167-SUM($D168:I168))<ABS($D$167/$B168),$D$167-SUM($D168:I168),$D$167/$B168) -> 0.1382102467 | K168: =IF(ABS($D$167-SUM($D168:J168))<ABS($D$167/$B168),$D$167-SUM($D168:J168),$D$167/$B168) -> 0.06910512333 | L168: =IF(ABS($D$167-SUM($D168:K168))<ABS($D$167/$B168),$D$167-SUM($D168:K168),$D$167/$B168) -> 0 | M168: =IF(ABS($D$167-SUM($D168:L168))<ABS($D$167/$B168),$D$167-SUM($D168:L168),$D$167/$B168) -> 0 | N168: =D$56-SUM(D168:M168) -> 0 | O168: =IF(O169-1<0,0,O169-1) -> 0 | P168: =IF(O168<1,N168,N168/O168) -> 0 | Q168: =IF($O168=0,0,IF(ABS($N168-SUM($P168:P168))<ABS($N168/$O168),$N168-SUM($P168:P168),$N168/$O168)) -> 0 | R168: =IF($O168=0,0,IF(ABS($N168-SUM($P168:Q168))<ABS($N168/$O168),$N168-SUM($P168:Q168),$N168/$O168)) -> 0 | S168: =IF($O168=0,0,IF(ABS($N168-SUM($P168:R168))<ABS($N168/$O168),$N168-SUM($P168:R168),$N168/$O168)) -> 0 | T168: =IF($O168=0,0,IF(ABS($N168-SUM($P168:S168))<ABS($N168/$O168),$N168-SUM($P168:S168),$N168/$O168)) -> 0
B169: =B168 -> 7 | C169: =E166 -> 2004 | E169: =($E$167*0.5)/$B169 -> 0.02415641651 | F169: =IF(ABS($E$167-SUM($D169:E169))<ABS($E$167/$B169),$E$167-SUM($D169:E169),$E$167/$B169) -> 0.04831283301 | G169: =IF(ABS($E$167-SUM($D169:F169))<ABS($E$167/$B169),$E$167-SUM($D169:F169),$E$167/$B169) -> 0.04831283301 | H169: =IF(ABS($E$167-SUM($D169:G169))<ABS($E$167/$B169),$E$167-SUM($D169:G169),$E$167/$B169) -> 0.04831283301 | I169: =IF(ABS($E$167-SUM($D169:H169))<ABS($E$167/$B169),$E$167-SUM($D169:H169),$E$167/$B169) -> 0.04831283301 | J169: =IF(ABS($E$167-SUM($D169:I169))<ABS($E$167/$B169),$E$167-SUM($D169:I169),$E$167/$B169) -> 0.04831283301 | K169: =IF(ABS($E$167-SUM($D169:J169))<ABS($E$167/$B169),$E$167-SUM($D169:J169),$E$167/$B169) -> 0.04831283301 | L169: =IF(ABS($E$167-SUM($D169:K169))<ABS($E$167/$B169),$E$167-SUM($D169:K169),$E$167/$B169) -> 0.02415641651 | M169: =IF(ABS($E$167-SUM($D169:L169))<ABS($E$167/$B169),$E$167-SUM($D169:L169),$E$167/$B169) -> 0 | N169: =E$56-SUM(D169:M169) -> 0 | O169: 0 | P169: =IF(O169<1,N169,N169/O169) -> 0 | Q169: =IF($O169=0,0,IF(ABS($N169-SUM($P169:P169))<ABS($N169/$O169),$N169-SUM($P169:P169),$N169/$O169)) -> 0 | R169: =IF($O169=0,0,IF(ABS($N169-SUM($P169:Q169))<ABS($N169/$O169),$N169-SUM($P169:Q169),$N169/$O169)) -> 0 | S169: =IF($O169=0,0,IF(ABS($N169-SUM($P169:R169))<ABS($N169/$O169),$N169-SUM($P169:R169),$N169/$O169)) -> 0 | T169: =IF($O169=0,0,IF(ABS($N169-SUM($P169:S169))<ABS($N169/$O169),$N169-SUM($P169:S169),$N169/$O169)) -> 0
B170: 7 | C170: =F166 -> 2005 | F170: =($F$167*0.5)/$B170 -> 0.008482369719 | G170: =IF(ABS($F$167-SUM($D170:F170))<ABS($F$167/$B170),$F$167-SUM($D170:F170),$F$167/$B170) -> 0.01696473944 | H170: =IF(ABS($F$167-SUM($D170:G170))<ABS($F$167/$B170),$F$167-SUM($D170:G170),$F$167/$B170) -> 0.01696473944 | I170: =IF(ABS($F$167-SUM($D170:H170))<ABS($F$167/$B170),$F$167-SUM($D170:H170),$F$167/$B170) -> 0.01696473944 | J170: =IF(ABS($F$167-SUM($D170:I170))<ABS($F$167/$B170),$F$167-SUM($D170:I170),$F$167/$B170) -> 0.01696473944 | K170: =IF(ABS($F$167-SUM($D170:J170))<ABS($F$167/$B170),$F$167-SUM($D170:J170),$F$167/$B170) -> 0.01696473944 | L170: =IF(ABS($F$167-SUM($D170:K170))<ABS($F$167/$B170),$F$167-SUM($D170:K170),$F$167/$B170) -> 0.01696473944 | M170: =IF(ABS($F$167-SUM($D170:L170))<ABS($F$167/$B170),$F$167-SUM($D170:L170),$F$167/$B170) -> 0.008482369719 | N170: =F$56-SUM(D170:M170) -> 0 | O170: 0 | P170: 0 | Q170: =IF($O170=0,0,IF(ABS($N170-SUM($P170:P170))<ABS($N170/$O170),$N170-SUM($P170:P170),$N170/$O170)) -> 0 | R170: =IF($O170=0,0,IF(ABS($N170-SUM($P170:Q170))<ABS($N170/$O170),$N170-SUM($P170:Q170),$N170/$O170)) -> 0 | S170: =IF($O170=0,0,IF(ABS($N170-SUM($P170:R170))<ABS($N170/$O170),$N170-SUM($P170:R170),$N170/$O170)) -> 0 | T170: =IF($O170=0,0,IF(ABS($N170-SUM($P170:S170))<ABS($N170/$O170),$N170-SUM($P170:S170),$N170/$O170)) -> 0
B171: 7 | C171: =G166 -> 2006 | G171: =($G$167*0.5)/$B171 -> 0.00981148994 | H171: =IF(ABS($G$167-SUM($D171:G171))<ABS($G$167/$B171),$G$167-SUM($D171:G171),$G$167/$B171) -> 0.01962297988 | I171: =IF(ABS($G$167-SUM($D171:H171))<ABS($G$167/$B171),$G$167-SUM($D171:H171),$G$167/$B171) -> 0.01962297988 | J171: =IF(ABS($G$167-SUM($D171:I171))<ABS($G$167/$B171),$G$167-SUM($D171:I171),$G$167/$B171) -> 0.01962297988 | K171: =IF(ABS($G$167-SUM($D171:J171))<ABS($G$167/$B171),$G$167-SUM($D171:J171),$G$167/$B171) -> 0.01962297988 | L171: =IF(ABS($G$167-SUM($D171:K171))<ABS($G$167/$B171),$G$167-SUM($D171:K171),$G$167/$B171) -> 0.01962297988 | M171: =IF(ABS($G$167-SUM($D171:L171))<ABS($G$167/$B171),$G$167-SUM($D171:L171),$G$167/$B171) -> 0.01962297988 | N171: =G$56-SUM(D171:M171) -> 0.00981148994 | O171: 0.5 | P171: 0.00981148994 | Q171: =IF($O171=0,0,IF(ABS($N171-SUM($P171:P171))<ABS($N171/$O171),$N171-SUM($P171:P171),$N171/$O171)) -> 0 | R171: =IF($O171=0,0,IF(ABS($N171-SUM($P171:Q171))<ABS($N171/$O171),$N171-SUM($P171:Q171),$N171/$O171)) -> 0 | S171: =IF($O171=0,0,IF(ABS($N171-SUM($P171:R171))<ABS($N171/$O171),$N171-SUM($P171:R171),$N171/$O171)) -> 0 | T171: =IF($O171=0,0,IF(ABS($N171-SUM($P171:S171))<ABS($N171/$O171),$N171-SUM($P171:S171),$N171/$O171)) -> 0
B172: 7 | C172: =H166 -> 2007 | H172: =($H$167*0.5)/$B172 -> 0.01355778539 | I172: =IF(ABS($H$167-SUM($D172:H172))<ABS($H$167/$B172),$H$167-SUM($D172:H172),$H$167/$B172) -> 0.02711557078 | J172: =IF(ABS($H$167-SUM($D172:I172))<ABS($H$167/$B172),$H$167-SUM($D172:I172),$H$167/$B172) -> 0.02711557078 | K172: =IF(ABS($H$167-SUM($D172:J172))<ABS($H$167/$B172),$H$167-SUM($D172:J172),$H$167/$B172) -> 0.02711557078 | L172: =IF(ABS($H$167-SUM($D172:K172))<ABS($H$167/$B172),$H$167-SUM($D172:K172),$H$167/$B172) -> 0.02711557078 | M172: =IF(ABS($H$167-SUM($D172:L172))<ABS($H$167/$B172),$H$167-SUM($D172:L172),$H$167/$B172) -> 0.02711557078 | N172: =H$56-SUM(D172:M172) -> 0.08476416803 | O172: 1.5 | P172: 0.05650944536 | Q172: =IF($O172=0,0,IF(ABS($N172-SUM($P172:P172))<ABS($N172/$O172),$N172-SUM($P172:P172),$N172/$O172)) -> 0.02825472268 | R172: =IF($O172=0,0,IF(ABS($N172-SUM($P172:Q172))<ABS($N172/$O172),$N172-SUM($P172:Q172),$N172/$O172)) -> 0 | S172: =IF($O172=0,0,IF(ABS($N172-SUM($P172:R172))<ABS($N172/$O172),$N172-SUM($P172:R172),$N172/$O172)) -> 0 | T172: =IF($O172=0,0,IF(ABS($N172-SUM($P172:S172))<ABS($N172/$O172),$N172-SUM($P172:S172),$N172/$O172)) -> 0
B173: 7 | C173: =I166 -> 2008 | I173: =($I$167*0.5)/$B173 -> 0.07511051656 | J173: =IF(ABS($I$167-SUM($D173:I173))<ABS($I$167/$B173),$I$167-SUM($D173:I173),$I$167/$B173) -> 0.1502210331 | K173: =IF(ABS($I$167-SUM($D173:J173))<ABS($I$167/$B173),$I$167-SUM($D173:J173),$I$167/$B173) -> 0.1502210331 | L173: =IF(ABS($I$167-SUM($D173:K173))<ABS($I$167/$B173),$I$167-SUM($D173:K173),$I$167/$B173) -> 0.1502210331 | M173: =IF(ABS($I$167-SUM($D173:L173))<ABS($I$167/$B173),$I$167-SUM($D173:L173),$I$167/$B173) -> 0.1502210331 | N173: =I$56-SUM(D173:M173) -> -0.5635247169 | O173: 2.5 | P173: -0.2254098867 | Q173: =IF($O173=0,0,IF(ABS($N173-SUM($P173:P173))<ABS($N173/$O173),$N173-SUM($P173:P173),$N173/$O173)) -> -0.2254098867 | R173: =IF($O173=0,0,IF(ABS($N173-SUM($P173:Q173))<ABS($N173/$O173),$N173-SUM($P173:Q173),$N173/$O173)) -> -0.1127049434 | S173: =IF($O173=0,0,IF(ABS($N173-SUM($P173:R173))<ABS($N173/$O173),$N173-SUM($P173:R173),$N173/$O173)) -> 0 | T173: =IF($O173=0,0,IF(ABS($N173-SUM($P173:S173))<ABS($N173/$O173),$N173-SUM($P173:S173),$N173/$O173)) -> 0
B174: 7 | C174: =J166 -> 2009 | J174: =($J$167*0.5)/$B174 -> 0.05896510886 | K174: =IF(ABS($J$167-SUM($D174:J174))<ABS($J$167/$B174),$J$167-SUM($D174:J174),$J$167/$B174) -> 0.1179302177 | L174: =IF(ABS($J$167-SUM($D174:K174))<ABS($J$167/$B174),$J$167-SUM($D174:K174),$J$167/$B174) -> 0.1179302177 | M174: =IF(ABS($J$167-SUM($D174:L174))<ABS($J$167/$B174),$J$167-SUM($D174:L174),$J$167/$B174) -> 0.1179302177 | N174: =J$56-SUM(D174:M174) -> -0.3264089797 | O174: 3.5 | P174: -0.09325970848 | Q174: =IF($O174=0,0,IF(ABS($N174-SUM($P174:P174))<ABS($N174/$O174),$N174-SUM($P174:P174),$N174/$O174)) -> -0.09325970848 | R174: =IF($O174=0,0,IF(ABS($N174-SUM($P174:Q174))<ABS($N174/$O174),$N174-SUM($P174:Q174),$N174/$O174)) -> -0.09325970848 | S174: =IF($O174=0,0,IF(ABS($N174-SUM($P174:R174))<ABS($N174/$O174),$N174-SUM($P174:R174),$N174/$O174)) -> -0.04662985424 | T174: =IF($O174=0,0,IF(ABS($N174-SUM($P174:S174))<ABS($N174/$O174),$N174-SUM($P174:S174),$N174/$O174)) -> 0
B175: 7 | C175: =K166 -> 2010 | K175: =($K$167*0.5)/$B175 -> 0.05820017269 | L175: =IF(ABS($K$167-SUM($D175:K175))<ABS($K$167/$B175),$K$167-SUM($D175:K175),$K$167/$B175) -> 0.1164003454 | M175: =IF(ABS($K$167-SUM($D175:L175))<ABS($K$167/$B175),$K$167-SUM($D175:L175),$K$167/$B175) -> 0.1164003454 | N175: =K$56-SUM(D175:M175) -> -0.2867479555 | O175: 4.5 | P175: -0.0637217679 | Q175: =IF($O175=0,0,IF(ABS($N175-SUM($P175:P175))<ABS($N175/$O175),$N175-SUM($P175:P175),$N175/$O175)) -> -0.0637217679 | R175: =IF($O175=0,0,IF(ABS($N175-SUM($P175:Q175))<ABS($N175/$O175),$N175-SUM($P175:Q175),$N175/$O175)) -> -0.0637217679 | S175: =IF($O175=0,0,IF(ABS($N175-SUM($P175:R175))<ABS($N175/$O175),$N175-SUM($P175:R175),$N175/$O175)) -> -0.0637217679 | T175: =IF($O175=0,0,IF(ABS($N175-SUM($P175:S175))<ABS($N175/$O175),$N175-SUM($P175:S175),$N175/$O175)) -> -0.03186088395
B176: 7 | C176: =L166 -> 2011 | L176: =($L$167*0.5)/$B176 -> 0.06416365361 | M176: =IF(ABS($L$167-SUM($D176:L176))<ABS($L$167/$B176),$L$167-SUM($D176:L176),$L$167/$B176) -> 0.1283273072 | N176: =L$56-SUM(D176:M176) -> -0.1210622245 | O176: =IF(O177-1<0,0,O177-1) -> 5.5 | P176: -0.02201131355 | Q176: =IF($O176=0,0,IF(ABS($N176-SUM($P176:P176))<ABS($N176/$O176),$N176-SUM($P176:P176),$N176/$O176)) -> -0.02201131355 | R176: =IF($O176=0,0,IF(ABS($N176-SUM($P176:Q176))<ABS($N176/$O176),$N176-SUM($P176:Q176),$N176/$O176)) -> -0.02201131355 | S176: =IF($O176=0,0,IF(ABS($N176-SUM($P176:R176))<ABS($N176/$O176),$N176-SUM($P176:R176),$N176/$O176)) -> -0.02201131355 | T176: =IF($O176=0,0,IF(ABS($N176-SUM($P176:S176))<ABS($N176/$O176),$N176-SUM($P176:S176),$N176/$O176)) -> -0.02201131355
B177: 7 | C177: =M166 -> 2012 | M177: =($M$167*0.5)/$B177 -> 0.01787997232 | N177: =M$56-SUM(D177:M177) -> 0.2324396402 | O177: =B168-0.5 -> 6.5 | P177: 0.03575994464 | Q177: =IF($O177=0,0,IF(ABS($N177-SUM($P177:P177))<ABS($N177/$O177),$N177-SUM($P177:P177),$N177/$O177)) -> 0.03575994464 | R177: =IF($O177=0,0,IF(ABS($N177-SUM($P177:Q177))<ABS($N177/$O177),$N177-SUM($P177:Q177),$N177/$O177)) -> 0.03575994464 | S177: =IF($O177=0,0,IF(ABS($N177-SUM($P177:R177))<ABS($N177/$O177),$N177-SUM($P177:R177),$N177/$O177)) -> 0.03575994464 | T177: =IF($O177=0,0,IF(ABS($N177-SUM($P177:S177))<ABS($N177/$O177),$N177-SUM($P177:S177),$N177/$O177)) -> 0.03575994464
A178: SL Depreciation | D178: =SUM(D168:D177) -> 0.06910512333 | E178: 0.1623666632 | F178: 0.1950054494 | G178: 0.2132993091 | H178: 0.2366685844 | I178: 0.3253368863 | J178: 0.4594125117 | K178: 0.50747267 | L178: 0.5365749564 | M178: 0.5859797961 | N178: -0.9707285785 | P178: =SUM(P168:P177) -> -0.3023217967 | Q178: -0.3403880094 | R178: -0.2559377887 | S178: -0.09660299105 | T178: -0.01811225286
A179: Actual WDV | B179: Check | C179: =ABS(N179) -> 0 | D179: =D167-D178 -> 0.8983666033 | E179: =D179+E167-E178 -> 1.074189771 | F179: =E179+F167-F178 -> 0.9979374979 | G179: =F179+G167-G178 -> 0.921999048 | H179: =G179+H$56-H178 -> 0.919230271 | I179: =H179+I$56-I178 -> 0.7063633168 | J179: 0.3332975873 | K179: -0.1699221747 | L179: -0.6350683949 | M179: -0.9707285785 | N179: =ABS(N178-M179) -> 0 | P179: =N178-P178 -> -0.6684067818 | Q179: =P179-Q178 -> -0.3280187724 | R179: =Q179-R178 -> -0.07208098373 | S179: 0.02452200732 | T179: 0.04263426018
A181: =A$72 -> Computer Equipment | D181: =D$17 -> 2003 | E181: =E$17 -> 2004 | F181: 2005 | G181: 2006 | H181: 2007 | I181: 2008 | J181: 2009 | K181: 2010 | L181: 2011 | M181: 2012 | N181: =$P181 -> 2013 | O181: =$P181 -> 2013 | P181: =P$17 -> 2013 | Q181: 2014 | R181: 2015 | S181: 2016 | T181: 2017
A182: Decision Net Capex | B182: Eco Life | C182: Year | D182: =D$43 -> 3.915412124 | E182: =E$43 -> 6.056780086 | F182: 1.622854374 | G182: 0.6896048096 | H182: 1.37177947 | I182: 3.467042724 | J182: 26.14353805 | K182: 0.3293391188 | L182: 0.6287383178 | M182: 0.3293391188 | N182: OAV | O182: Rem Life
B183: =$B$72 -> 5 | C183: =D181 -> 2003 | D183: =($D$182*0.5)/$B183 -> 0.3915412124 | E183: =IF(ABS($D$182-SUM($D183:D183))<ABS($D$182/$B183),$D$182-SUM($D183:D183),$D$182/$B183) -> 0.7830824248 | F183: =IF(ABS($D$182-SUM($D183:E183))<ABS($D$182/$B183),$D$182-SUM($D183:E183),$D$182/$B183) -> 0.7830824248 | G183: =IF(ABS($D$182-SUM($D183:F183))<ABS($D$182/$B183),$D$182-SUM($D183:F183),$D$182/$B183) -> 0.7830824248 | H183: =IF(ABS($D$182-SUM($D183:G183))<ABS($D$182/$B183),$D$182-SUM($D183:G183),$D$182/$B183) -> 0.7830824248 | I183: =IF(ABS($D$182-SUM($D183:H183))<ABS($D$182/$B183),$D$182-SUM($D183:H183),$D$182/$B183) -> 0.3915412124 | J183: =IF(ABS($D$182-SUM($D183:I183))<ABS($D$182/$B183),$D$182-SUM($D183:I183),$D$182/$B183) -> 0 | K183: =IF(ABS($D$182-SUM($D183:J183))<ABS($D$182/$B183),$D$182-SUM($D183:J183),$D$182/$B183) -> 0 | L183: =IF(ABS($D$182-SUM($D183:K183))<ABS($D$182/$B183),$D$182-SUM($D183:K183),$D$182/$B183) -> 0 | M183: =IF(ABS($D$182-SUM($D183:L183))<ABS($D$182/$B183),$D$182-SUM($D183:L183),$D$182/$B183) -> 0 | N183: =D$57-SUM(D183:M183) -> 0 | O183: =IF(O184-1<0,0,O184-1) -> 0 | P183: =IF(O183<1,N183,N183/O183) -> 0 | Q183: =IF($O183=0,0,IF(ABS($N183-SUM($P183:P183))<ABS($N183/$O183),$N183-SUM($P183:P183),$N183/$O183)) -> 0 | R183: =IF($O183=0,0,IF(ABS($N183-SUM($P183:Q183))<ABS($N183/$O183),$N183-SUM($P183:Q183),$N183/$O183)) -> 0 | S183: =IF($O183=0,0,IF(ABS($N183-SUM($P183:R183))<ABS($N183/$O183),$N183-SUM($P183:R183),$N183/$O183)) -> 0 | T183: =IF($O183=0,0,IF(ABS($N183-SUM($P183:S183))<ABS($N183/$O183),$N183-SUM($P183:S183),$N183/$O183)) -> 0
B184: =B183 -> 5 | C184: =E181 -> 2004 | E184: =($E$182*0.5)/$B184 -> 0.6056780086 | F184: =IF(ABS($E$182-SUM($D184:E184))<ABS($E$182/$B184),$E$182-SUM($D184:E184),$E$182/$B184) -> 1.211356017 | G184: =IF(ABS($E$182-SUM($D184:F184))<ABS($E$182/$B184),$E$182-SUM($D184:F184),$E$182/$B184) -> 1.211356017 | H184: =IF(ABS($E$182-SUM($D184:G184))<ABS($E$182/$B184),$E$182-SUM($D184:G184),$E$182/$B184) -> 1.211356017 | I184: =IF(ABS($E$182-SUM($D184:H184))<ABS($E$182/$B184),$E$182-SUM($D184:H184),$E$182/$B184) -> 1.211356017 | J184: =IF(ABS($E$182-SUM($D184:I184))<ABS($E$182/$B184),$E$182-SUM($D184:I184),$E$182/$B184) -> 0.6056780086 | K184: =IF(ABS($E$182-SUM($D184:J184))<ABS($E$182/$B184),$E$182-SUM($D184:J184),$E$182/$B184) -> 0 | L184: =IF(ABS($E$182-SUM($D184:K184))<ABS($E$182/$B184),$E$182-SUM($D184:K184),$E$182/$B184) -> 0 | M184: =IF(ABS($E$182-SUM($D184:L184))<ABS($E$182/$B184),$E$182-SUM($D184:L184),$E$182/$B184) -> 0 | N184: =E$57-SUM(D184:M184) -> 0 | O184: 0 | P184: =IF(O184<1,N184,N184/O184) -> 0 | Q184: =IF($O184=0,0,IF(ABS($N184-SUM($P184:P184))<ABS($N184/$O184),$N184-SUM($P184:P184),$N184/$O184)) -> 0 | R184: =IF($O184=0,0,IF(ABS($N184-SUM($P184:Q184))<ABS($N184/$O184),$N184-SUM($P184:Q184),$N184/$O184)) -> 0 | S184: =IF($O184=0,0,IF(ABS($N184-SUM($P184:R184))<ABS($N184/$O184),$N184-SUM($P184:R184),$N184/$O184)) -> 0 | T184: =IF($O184=0,0,IF(ABS($N184-SUM($P184:S184))<ABS($N184/$O184),$N184-SUM($P184:S184),$N184/$O184)) -> 0
B185: 5 | C185: =F181 -> 2005 | F185: =($F$182*0.5)/$B185 -> 0.1622854374 | G185: =IF(ABS($F$182-SUM($D185:F185))<ABS($F$182/$B185),$F$182-SUM($D185:F185),$F$182/$B185) -> 0.3245708748 | H185: =IF(ABS($F$182-SUM($D185:G185))<ABS($F$182/$B185),$F$182-SUM($D185:G185),$F$182/$B185) -> 0.3245708748 | I185: =IF(ABS($F$182-SUM($D185:H185))<ABS($F$182/$B185),$F$182-SUM($D185:H185),$F$182/$B185) -> 0.3245708748 | J185: =IF(ABS($F$182-SUM($D185:I185))<ABS($F$182/$B185),$F$182-SUM($D185:I185),$F$182/$B185) -> 0.3245708748 | K185: =IF(ABS($F$182-SUM($D185:J185))<ABS($F$182/$B185),$F$182-SUM($D185:J185),$F$182/$B185) -> 0.1622854374 | L185: =IF(ABS($F$182-SUM($D185:K185))<ABS($F$182/$B185),$F$182-SUM($D185:K185),$F$182/$B185) -> 0 | M185: =IF(ABS($F$182-SUM($D185:L185))<ABS($F$182/$B185),$F$182-SUM($D185:L185),$F$182/$B185) -> 0 | N185: =F$57-SUM(D185:M185) -> 0 | O185: 0 | P185: 0 | Q185: =IF($O185=0,0,IF(ABS($N185-SUM($P185:P185))<ABS($N185/$O185),$N185-SUM($P185:P185),$N185/$O185)) -> 0 | R185: =IF($O185=0,0,IF(ABS($N185-SUM($P185:Q185))<ABS($N185/$O185),$N185-SUM($P185:Q185),$N185/$O185)) -> 0 | S185: =IF($O185=0,0,IF(ABS($N185-SUM($P185:R185))<ABS($N185/$O185),$N185-SUM($P185:R185),$N185/$O185)) -> 0 | T185: =IF($O185=0,0,IF(ABS($N185-SUM($P185:S185))<ABS($N185/$O185),$N185-SUM($P185:S185),$N185/$O185)) -> 0
B186: 5 | C186: =G181 -> 2006 | G186: =($G$182*0.5)/$B186 -> 0.06896048096 | H186: =IF(ABS($G$182-SUM($D186:G186))<ABS($G$182/$B186),$G$182-SUM($D186:G186),$G$182/$B186) -> 0.1379209619 | I186: =IF(ABS($G$182-SUM($D186:H186))<ABS($G$182/$B186),$G$182-SUM($D186:H186),$G$182/$B186) -> 0.1379209619 | J186: =IF(ABS($G$182-SUM($D186:I186))<ABS($G$182/$B186),$G$182-SUM($D186:I186),$G$182/$B186) -> 0.1379209619 | K186: =IF(ABS($G$182-SUM($D186:J186))<ABS($G$182/$B186),$G$182-SUM($D186:J186),$G$182/$B186) -> 0.1379209619 | L186: =IF(ABS($G$182-SUM($D186:K186))<ABS($G$182/$B186),$G$182-SUM($D186:K186),$G$182/$B186) -> 0.06896048096 | M186: =IF(ABS($G$182-SUM($D186:L186))<ABS($G$182/$B186),$G$182-SUM($D186:L186),$G$182/$B186) -> 0 | N186: =G$57-SUM(D186:M186) -> 0 | O186: 0 | P186: 0 | Q186: =IF($O186=0,0,IF(ABS($N186-SUM($P186:P186))<ABS($N186/$O186),$N186-SUM($P186:P186),$N186/$O186)) -> 0 | R186: =IF($O186=0,0,IF(ABS($N186-SUM($P186:Q186))<ABS($N186/$O186),$N186-SUM($P186:Q186),$N186/$O186)) -> 0 | S186: =IF($O186=0,0,IF(ABS($N186-SUM($P186:R186))<ABS($N186/$O186),$N186-SUM($P186:R186),$N186/$O186)) -> 0 | T186: =IF($O186=0,0,IF(ABS($N186-SUM($P186:S186))<ABS($N186/$O186),$N186-SUM($P186:S186),$N186/$O186)) -> 0
B187: 5 | C187: =H181 -> 2007 | H187: =($H$182*0.5)/$B187 -> 0.137177947 | I187: =IF(ABS($H$182-SUM($D187:H187))<ABS($H$182/$B187),$H$182-SUM($D187:H187),$H$182/$B187) -> 0.274355894 | J187: =IF(ABS($H$182-SUM($D187:I187))<ABS($H$182/$B187),$H$182-SUM($D187:I187),$H$182/$B187) -> 0.274355894 | K187: =IF(ABS($H$182-SUM($D187:J187))<ABS($H$182/$B187),$H$182-SUM($D187:J187),$H$182/$B187) -> 0.274355894 | L187: =IF(ABS($H$182-SUM($D187:K187))<ABS($H$182/$B187),$H$182-SUM($D187:K187),$H$182/$B187) -> 0.274355894 | M187: =IF(ABS($H$182-SUM($D187:L187))<ABS($H$182/$B187),$H$182-SUM($D187:L187),$H$182/$B187) -> 0.137177947 | N187: =H$57-SUM(D187:M187) -> -0.4926388148 | O187: 0 | P187: -0.4926388148 | Q187: =IF($O187=0,0,IF(ABS($N187-SUM($P187:P187))<ABS($N187/$O187),$N187-SUM($P187:P187),$N187/$O187)) -> 0 | R187: =IF($O187=0,0,IF(ABS($N187-SUM($P187:Q187))<ABS($N187/$O187),$N187-SUM($P187:Q187),$N187/$O187)) -> 0 | S187: =IF($O187=0,0,IF(ABS($N187-SUM($P187:R187))<ABS($N187/$O187),$N187-SUM($P187:R187),$N187/$O187)) -> 0 | T187: =IF($O187=0,0,IF(ABS($N187-SUM($P187:S187))<ABS($N187/$O187),$N187-SUM($P187:S187),$N187/$O187)) -> 0
B188: 5 | C188: =I181 -> 2008 | I188: =($I$182*0.5)/$B188 -> 0.3467042724 | J188: =IF(ABS($I$182-SUM($D188:I188))<ABS($I$182/$B188),$I$182-SUM($D188:I188),$I$182/$B188) -> 0.6934085447 | K188: =IF(ABS($I$182-SUM($D188:J188))<ABS($I$182/$B188),$I$182-SUM($D188:J188),$I$182/$B188) -> 0.6934085447 | L188: =IF(ABS($I$182-SUM($D188:K188))<ABS($I$182/$B188),$I$182-SUM($D188:K188),$I$182/$B188) -> 0.6934085447 | M188: =IF(ABS($I$182-SUM($D188:L188))<ABS($I$182/$B188),$I$182-SUM($D188:L188),$I$182/$B188) -> 0.6934085447 | N188: =I$57-SUM(D188:M188) -> -2.234699607 | O188: 0.5 | P188: -2.234699607 | Q188: =IF($O188=0,0,IF(ABS($N188-SUM($P188:P188))<ABS($N188/$O188),$N188-SUM($P188:P188),$N188/$O188)) -> 0 | R188: =IF($O188=0,0,IF(ABS($N188-SUM($P188:Q188))<ABS($N188/$O188),$N188-SUM($P188:Q188),$N188/$O188)) -> 0 | S188: =IF($O188=0,0,IF(ABS($N188-SUM($P188:R188))<ABS($N188/$O188),$N188-SUM($P188:R188),$N188/$O188)) -> 0 | T188: =IF($O188=0,0,IF(ABS($N188-SUM($P188:S188))<ABS($N188/$O188),$N188-SUM($P188:S188),$N188/$O188)) -> 0
B189: 5 | C189: =J181 -> 2009 | J189: =($J$182*0.5)/$B189 -> 2.614353805 | K189: =IF(ABS($J$182-SUM($D189:J189))<ABS($J$182/$B189),$J$182-SUM($D189:J189),$J$182/$B189) -> 5.22870761 | L189: =IF(ABS($J$182-SUM($D189:K189))<ABS($J$182/$B189),$J$182-SUM($D189:K189),$J$182/$B189) -> 5.22870761 | M189: =IF(ABS($J$182-SUM($D189:L189))<ABS($J$182/$B189),$J$182-SUM($D189:L189),$J$182/$B189) -> 5.22870761 | N189: =J$57-SUM(D189:M189) -> -17.03971836 | O189: 1.5 | P189: -11.35981224 | Q189: =IF($O189=0,0,IF(ABS($N189-SUM($P189:P189))<ABS($N189/$O189),$N189-SUM($P189:P189),$N189/$O189)) -> -5.679906121 | R189: =IF($O189=0,0,IF(ABS($N189-SUM($P189:Q189))<ABS($N189/$O189),$N189-SUM($P189:Q189),$N189/$O189)) -> 0 | S189: =IF($O189=0,0,IF(ABS($N189-SUM($P189:R189))<ABS($N189/$O189),$N189-SUM($P189:R189),$N189/$O189)) -> 0 | T189: =IF($O189=0,0,IF(ABS($N189-SUM($P189:S189))<ABS($N189/$O189),$N189-SUM($P189:S189),$N189/$O189)) -> 0
B190: 5 | C190: =K181 -> 2010 | K190: =($K$182*0.5)/$B190 -> 0.03293391188 | L190: =IF(ABS($K$182-SUM($D190:K190))<ABS($K$182/$B190),$K$182-SUM($D190:K190),$K$182/$B190) -> 0.06586782377 | M190: =IF(ABS($K$182-SUM($D190:L190))<ABS($K$182/$B190),$K$182-SUM($D190:L190),$K$182/$B190) -> 0.06586782377 | N190: =K$57-SUM(D190:M190) -> 6.262978397 | O190: 2.5 | P190: 2.505191359 | Q190: =IF($O190=0,0,IF(ABS($N190-SUM($P190:P190))<ABS($N190/$O190),$N190-SUM($P190:P190),$N190/$O190)) -> 2.505191359 | R190: =IF($O190=0,0,IF(ABS($N190-SUM($P190:Q190))<ABS($N190/$O190),$N190-SUM($P190:Q190),$N190/$O190)) -> 1.252595679 | S190: =IF($O190=0,0,IF(ABS($N190-SUM($P190:R190))<ABS($N190/$O190),$N190-SUM($P190:R190),$N190/$O190)) -> 0 | T190: =IF($O190=0,0,IF(ABS($N190-SUM($P190:S190))<ABS($N190/$O190),$N190-SUM($P190:S190),$N190/$O190)) -> 0
B191: 5 | C191: =L181 -> 2011 | L191: =($L$182*0.5)/$B191 -> 0.06287383178 | M191: =IF(ABS($L$182-SUM($D191:L191))<ABS($L$182/$B191),$L$182-SUM($D191:L191),$L$182/$B191) -> 0.1257476636 | N191: =L$57-SUM(D191:M191) -> 24.12959198 | O191: =IF(O192-1<0,0,O192-1) -> 3.5 | P191: 6.894169138 | Q191: =IF($O191=0,0,IF(ABS($N191-SUM($P191:P191))<ABS($N191/$O191),$N191-SUM($P191:P191),$N191/$O191)) -> 6.894169138 | R191: =IF($O191=0,0,IF(ABS($N191-SUM($P191:Q191))<ABS($N191/$O191),$N191-SUM($P191:Q191),$N191/$O191)) -> 6.894169138 | S191: =IF($O191=0,0,IF(ABS($N191-SUM($P191:R191))<ABS($N191/$O191),$N191-SUM($P191:R191),$N191/$O191)) -> 3.447084569 | T191: =IF($O191=0,0,IF(ABS($N191-SUM($P191:S191))<ABS($N191/$O191),$N191-SUM($P191:S191),$N191/$O191)) -> 0
B192: 5 | C192: =M181 -> 2012 | M192: =($M$182*0.5)/$B192 -> 0.03293391188 | N192: =M$57-SUM(D192:M192) -> 0.2964052069 | O192: =B183-0.5 -> 4.5 | P192: 0.06586782377 | Q192: =IF($O192=0,0,IF(ABS($N192-SUM($P192:P192))<ABS($N192/$O192),$N192-SUM($P192:P192),$N192/$O192)) -> 0.06586782377 | R192: =IF($O192=0,0,IF(ABS($N192-SUM($P192:Q192))<ABS($N192/$O192),$N192-SUM($P192:Q192),$N192/$O192)) -> 0.06586782377 | S192: =IF($O192=0,0,IF(ABS($N192-SUM($P192:R192))<ABS($N192/$O192),$N192-SUM($P192:R192),$N192/$O192)) -> 0.06586782377 | T192: =IF($O192=0,0,IF(ABS($N192-SUM($P192:S192))<ABS($N192/$O192),$N192-SUM($P192:S192),$N192/$O192)) -> 0.03293391188
A193: SL Depreciation | D193: =SUM(D183:D192) -> 0.3915412124 | E193: 1.388760433 | F193: 2.156723879 | G193: 2.387969798 | H193: 2.594108226 | I193: 2.686449233 | J193: 4.650288089 | K193: 6.52961236 | L193: 6.394174185 | M193: 6.283843501 | N193: 10.9219188 | P193: =SUM(P183:P192) -> -4.621922343 | Q193: 3.785322199 | R193: 8.212632642 | S193: 3.512952393 | T193: 0.03293391188
A194: Actual WDV | B194: Check | C194: =ABS(N194) -> 1.776356839e-15 | D194: =D182-D193 -> 3.523870912 | E194: =D194+E182-E193 -> 8.191890564 | F194: =E194+F182-F193 -> 7.658021059 | G194: =F194+G182-G193 -> 5.959656071 | H194: =G194+H$57-H193 -> 4.2446885 | I194: =H194+I$57-I193 -> 2.443878112 | J194: -0.9456517059 | K194: -1.04761611 | L194: 16.87642318 | M194: 10.9219188 | N194: =ABS(N193-M194) -> 1.776356839e-15 | P194: =N193-P193 -> 15.54384115 | Q194: =P194-Q193 -> 11.75851895 | R194: =Q194-R193 -> 3.545886305 | S194: 0.03293391188 | T194: -3.275157923e-15
A196: =A$73 -> Other Assets | D196: =D$17 -> 2003 | E196: =E$17 -> 2004 | F196: 2005 | G196: 2006 | H196: 2007 | I196: 2008 | J196: 2009 | K196: 2010 | L196: 2011 | M196: 2012 | N196: =$P196 -> 2013 | O196: =$P196 -> 2013 | P196: =P$17 -> 2013 | Q196: 2014 | R196: 2015 | S196: 2016 | T196: 2017
A197: Decision Net Capex | B197: Eco Life | C197: Year | D197: =D$44 -> 0.008322838787 | E197: =E$44 -> 0.1597000873 | F197: 0 | G197: 0 | H197: 0 | I197: 0 | J197: 0 | K197: 0 | L197: 0 | M197: 0 | N197: OAV | O197: Rem Life
B198: =$B$73 -> 10 | C198: =D196 -> 2003 | D198: =($D$197*0.5)/$B198 -> 0.0004161419394 | E198: =IF(ABS($D$197-SUM($D198:D198))<ABS($D$197/$B198),$D$197-SUM($D198:D198),$D$197/$B198) -> 0.0008322838787 | F198: =IF(ABS($D$197-SUM($D198:E198))<ABS($D$197/$B198),$D$197-SUM($D198:E198),$D$197/$B198) -> 0.0008322838787 | G198: =IF(ABS($D$197-SUM($D198:F198))<ABS($D$197/$B198),$D$197-SUM($D198:F198),$D$197/$B198) -> 0.0008322838787 | H198: =IF(ABS($D$197-SUM($D198:G198))<ABS($D$197/$B198),$D$197-SUM($D198:G198),$D$197/$B198) -> 0.0008322838787 | I198: =IF(ABS($D$197-SUM($D198:H198))<ABS($D$197/$B198),$D$197-SUM($D198:H198),$D$197/$B198) -> 0.0008322838787 | J198: =IF(ABS($D$197-SUM($D198:I198))<ABS($D$197/$B198),$D$197-SUM($D198:I198),$D$197/$B198) -> 0.0008322838787 | K198: =IF(ABS($D$197-SUM($D198:J198))<ABS($D$197/$B198),$D$197-SUM($D198:J198),$D$197/$B198) -> 0.0008322838787 | L198: =IF(ABS($D$197-SUM($D198:K198))<ABS($D$197/$B198),$D$197-SUM($D198:K198),$D$197/$B198) -> 0.0008322838787 | M198: =IF(ABS($D$197-SUM($D198:L198))<ABS($D$197/$B198),$D$197-SUM($D198:L198),$D$197/$B198) -> 0.0008322838787 | N198: =D$58-SUM(D198:M198) -> 0.0004161419394 | O198: =IF(O199-1<0,0,O199-1) -> 0.5 | P198: =IF(O198<1,N198,N198/O198) -> 0.0004161419394 | Q198: =IF($O198=0,0,IF(ABS($N198-SUM($P198:P198))<ABS($N198/$O198),$N198-SUM($P198:P198),$N198/$O198)) -> 0 | R198: =IF($O198=0,0,IF(ABS($N198-SUM($P198:Q198))<ABS($N198/$O198),$N198-SUM($P198:Q198),$N198/$O198)) -> 0 | S198: =IF($O198=0,0,IF(ABS($N198-SUM($P198:R198))<ABS($N198/$O198),$N198-SUM($P198:R198),$N198/$O198)) -> 0 | T198: =IF($O198=0,0,IF(ABS($N198-SUM($P198:S198))<ABS($N198/$O198),$N198-SUM($P198:S198),$N198/$O198)) -> 0
B199: =B198 -> 10 | C199: =E196 -> 2004 | E199: =($E$197*0.5)/$B199 -> 0.007985004363 | F199: =IF(ABS($E$197-SUM($D199:E199))<ABS($E$197/$B199),$E$197-SUM($D199:E199),$E$197/$B199) -> 0.01597000873 | G199: =IF(ABS($E$197-SUM($D199:F199))<ABS($E$197/$B199),$E$197-SUM($D199:F199),$E$197/$B199) -> 0.01597000873 | H199: =IF(ABS($E$197-SUM($D199:G199))<ABS($E$197/$B199),$E$197-SUM($D199:G199),$E$197/$B199) -> 0.01597000873 | I199: =IF(ABS($E$197-SUM($D199:H199))<ABS($E$197/$B199),$E$197-SUM($D199:H199),$E$197/$B199) -> 0.01597000873 | J199: =IF(ABS($E$197-SUM($D199:I199))<ABS($E$197/$B199),$E$197-SUM($D199:I199),$E$197/$B199) -> 0.01597000873 | K199: =IF(ABS($E$197-SUM($D199:J199))<ABS($E$197/$B199),$E$197-SUM($D199:J199),$E$197/$B199) -> 0.01597000873 | L199: =IF(ABS($E$197-SUM($D199:K199))<ABS($E$197/$B199),$E$197-SUM($D199:K199),$E$197/$B199) -> 0.01597000873 | M199: =IF(ABS($E$197-SUM($D199:L199))<ABS($E$197/$B199),$E$197-SUM($D199:L199),$E$197/$B199) -> 0.01597000873 | N199: =E$58-SUM(D199:M199) -> 0.02395501309 | O199: 1.5 | P199: =IF(O199<1,N199,N199/O199) -> 0.01597000873 | Q199: =IF($O199=0,0,IF(ABS($N199-SUM($P199:P199))<ABS($N199/$O199),$N199-SUM($P199:P199),$N199/$O199)) -> 0.007985004363 | R199: =IF($O199=0,0,IF(ABS($N199-SUM($P199:Q199))<ABS($N199/$O199),$N199-SUM($P199:Q199),$N199/$O199)) -> 0 | S199: =IF($O199=0,0,IF(ABS($N199-SUM($P199:R199))<ABS($N199/$O199),$N199-SUM($P199:R199),$N199/$O199)) -> 0 | T199: =IF($O199=0,0,IF(ABS($N199-SUM($P199:S199))<ABS($N199/$O199),$N199-SUM($P199:S199),$N199/$O199)) -> 0
B200: 10 | C200: =F196 -> 2005 | F200: =($F$197*0.5)/$B200 -> 0 | G200: =IF(ABS($F$197-SUM($D200:F200))<ABS($F$197/$B200),$F$197-SUM($D200:F200),$F$197/$B200) -> 0 | H200: =IF(ABS($F$197-SUM($D200:G200))<ABS($F$197/$B200),$F$197-SUM($D200:G200),$F$197/$B200) -> 0 | I200: =IF(ABS($F$197-SUM($D200:H200))<ABS($F$197/$B200),$F$197-SUM($D200:H200),$F$197/$B200) -> 0 | J200: =IF(ABS($F$197-SUM($D200:I200))<ABS($F$197/$B200),$F$197-SUM($D200:I200),$F$197/$B200) -> 0 | K200: =IF(ABS($F$197-SUM($D200:J200))<ABS($F$197/$B200),$F$197-SUM($D200:J200),$F$197/$B200) -> 0 | L200: =IF(ABS($F$197-SUM($D200:K200))<ABS($F$197/$B200),$F$197-SUM($D200:K200),$F$197/$B200) -> 0 | M200: =IF(ABS($F$197-SUM($D200:L200))<ABS($F$197/$B200),$F$197-SUM($D200:L200),$F$197/$B200) -> 0 | N200: =F$58-SUM(D200:M200) -> 0 | O200: 2.5 | P200: 0 | Q200: =IF($O200=0,0,IF(ABS($N200-SUM($P200:P200))<ABS($N200/$O200),$N200-SUM($P200:P200),$N200/$O200)) -> 0 | R200: =IF($O200=0,0,IF(ABS($N200-SUM($P200:Q200))<ABS($N200/$O200),$N200-SUM($P200:Q200),$N200/$O200)) -> 0 | S200: =IF($O200=0,0,IF(ABS($N200-SUM($P200:R200))<ABS($N200/$O200),$N200-SUM($P200:R200),$N200/$O200)) -> 0 | T200: =IF($O200=0,0,IF(ABS($N200-SUM($P200:S200))<ABS($N200/$O200),$N200-SUM($P200:S200),$N200/$O200)) -> 0
B201: 10 | C201: =G196 -> 2006 | G201: =($G$197*0.5)/$B201 -> 0 | H201: =IF(ABS($G$197-SUM($D201:G201))<ABS($G$197/$B201),$G$197-SUM($D201:G201),$G$197/$B201) -> 0 | I201: =IF(ABS($G$197-SUM($D201:H201))<ABS($G$197/$B201),$G$197-SUM($D201:H201),$G$197/$B201) -> 0 | J201: =IF(ABS($G$197-SUM($D201:I201))<ABS($G$197/$B201),$G$197-SUM($D201:I201),$G$197/$B201) -> 0 | K201: =IF(ABS($G$197-SUM($D201:J201))<ABS($G$197/$B201),$G$197-SUM($D201:J201),$G$197/$B201) -> 0 | L201: =IF(ABS($G$197-SUM($D201:K201))<ABS($G$197/$B201),$G$197-SUM($D201:K201),$G$197/$B201) -> 0 | M201: =IF(ABS($G$197-SUM($D201:L201))<ABS($G$197/$B201),$G$197-SUM($D201:L201),$G$197/$B201) -> 0 | N201: =G$58-SUM(D201:M201) -> 0 | O201: 3.5 | P201: 0 | Q201: =IF($O201=0,0,IF(ABS($N201-SUM($P201:P201))<ABS($N201/$O201),$N201-SUM($P201:P201),$N201/$O201)) -> 0 | R201: =IF($O201=0,0,IF(ABS($N201-SUM($P201:Q201))<ABS($N201/$O201),$N201-SUM($P201:Q201),$N201/$O201)) -> 0 | S201: =IF($O201=0,0,IF(ABS($N201-SUM($P201:R201))<ABS($N201/$O201),$N201-SUM($P201:R201),$N201/$O201)) -> 0 | T201: =IF($O201=0,0,IF(ABS($N201-SUM($P201:S201))<ABS($N201/$O201),$N201-SUM($P201:S201),$N201/$O201)) -> 0
B202: 10 | C202: =H196 -> 2007 | H202: =($H$197*0.5)/$B202 -> 0 | I202: =IF(ABS($H$197-SUM($D202:H202))<ABS($H$197/$B202),$H$197-SUM($D202:H202),$H$197/$B202) -> 0 | J202: =IF(ABS($H$197-SUM($D202:I202))<ABS($H$197/$B202),$H$197-SUM($D202:I202),$H$197/$B202) -> 0 | K202: =IF(ABS($H$197-SUM($D202:J202))<ABS($H$197/$B202),$H$197-SUM($D202:J202),$H$197/$B202) -> 0 | L202: =IF(ABS($H$197-SUM($D202:K202))<ABS($H$197/$B202),$H$197-SUM($D202:K202),$H$197/$B202) -> 0 | M202: =IF(ABS($H$197-SUM($D202:L202))<ABS($H$197/$B202),$H$197-SUM($D202:L202),$H$197/$B202) -> 0 | N202: =H$58-SUM(D202:M202) -> -0.003456647399 | O202: 4.5 | P202: -0.0007681438664 | Q202: =IF($O202=0,0,IF(ABS($N202-SUM($P202:P202))<ABS($N202/$O202),$N202-SUM($P202:P202),$N202/$O202)) -> -0.0007681438664 | R202: =IF($O202=0,0,IF(ABS($N202-SUM($P202:Q202))<ABS($N202/$O202),$N202-SUM($P202:Q202),$N202/$O202)) -> -0.0007681438664 | S202: =IF($O202=0,0,IF(ABS($N202-SUM($P202:R202))<ABS($N202/$O202),$N202-SUM($P202:R202),$N202/$O202)) -> -0.0007681438664 | T202: =IF($O202=0,0,IF(ABS($N202-SUM($P202:S202))<ABS($N202/$O202),$N202-SUM($P202:S202),$N202/$O202)) -> -0.0003840719332
B203: 10 | C203: =I196 -> 2008 | I203: =($I$197*0.5)/$B203 -> 0 | J203: =IF(ABS($I$197-SUM($D203:I203))<ABS($I$197/$B203),$I$197-SUM($D203:I203),$I$197/$B203) -> 0 | K203: =IF(ABS($I$197-SUM($D203:J203))<ABS($I$197/$B203),$I$197-SUM($D203:J203),$I$197/$B203) -> 0 | L203: =IF(ABS($I$197-SUM($D203:K203))<ABS($I$197/$B203),$I$197-SUM($D203:K203),$I$197/$B203) -> 0 | M203: =IF(ABS($I$197-SUM($D203:L203))<ABS($I$197/$B203),$I$197-SUM($D203:L203),$I$197/$B203) -> 0 | N203: =I$58-SUM(D203:M203) -> 0 | O203: 5.5 | P203: 0 | Q203: =IF($O203=0,0,IF(ABS($N203-SUM($P203:P203))<ABS($N203/$O203),$N203-SUM($P203:P203),$N203/$O203)) -> 0 | R203: =IF($O203=0,0,IF(ABS($N203-SUM($P203:Q203))<ABS($N203/$O203),$N203-SUM($P203:Q203),$N203/$O203)) -> 0 | S203: =IF($O203=0,0,IF(ABS($N203-SUM($P203:R203))<ABS($N203/$O203),$N203-SUM($P203:R203),$N203/$O203)) -> 0 | T203: =IF($O203=0,0,IF(ABS($N203-SUM($P203:S203))<ABS($N203/$O203),$N203-SUM($P203:S203),$N203/$O203)) -> 0
B204: 10 | C204: =J196 -> 2009 | J204: =($J$197*0.5)/$B204 -> 0 | K204: =IF(ABS($J$197-SUM($D204:J204))<ABS($J$197/$B204),$J$197-SUM($D204:J204),$J$197/$B204) -> 0 | L204: =IF(ABS($J$197-SUM($D204:K204))<ABS($J$197/$B204),$J$197-SUM($D204:K204),$J$197/$B204) -> 0 | M204: =IF(ABS($J$197-SUM($D204:L204))<ABS($J$197/$B204),$J$197-SUM($D204:L204),$J$197/$B204) -> 0 | N204: =J$58-SUM(D204:M204) -> 0 | O204: 6.5 | P204: 0 | Q204: =IF($O204=0,0,IF(ABS($N204-SUM($P204:P204))<ABS($N204/$O204),$N204-SUM($P204:P204),$N204/$O204)) -> 0 | R204: =IF($O204=0,0,IF(ABS($N204-SUM($P204:Q204))<ABS($N204/$O204),$N204-SUM($P204:Q204),$N204/$O204)) -> 0 | S204: =IF($O204=0,0,IF(ABS($N204-SUM($P204:R204))<ABS($N204/$O204),$N204-SUM($P204:R204),$N204/$O204)) -> 0 | T204: =IF($O204=0,0,IF(ABS($N204-SUM($P204:S204))<ABS($N204/$O204),$N204-SUM($P204:S204),$N204/$O204)) -> 0
B205: 10 | C205: =K196 -> 2010 | K205: =($K$197*0.5)/$B205 -> 0 | L205: =IF(ABS($K$197-SUM($D205:K205))<ABS($K$197/$B205),$K$197-SUM($D205:K205),$K$197/$B205) -> 0 | M205: =IF(ABS($K$197-SUM($D205:L205))<ABS($K$197/$B205),$K$197-SUM($D205:L205),$K$197/$B205) -> 0 | N205: =K$58-SUM(D205:M205) -> 0.1895124779 | O205: 7.5 | P205: 0.02526833039 | Q205: =IF($O205=0,0,IF(ABS($N205-SUM($P205:P205))<ABS($N205/$O205),$N205-SUM($P205:P205),$N205/$O205)) -> 0.02526833039 | R205: =IF($O205=0,0,IF(ABS($N205-SUM($P205:Q205))<ABS($N205/$O205),$N205-SUM($P205:Q205),$N205/$O205)) -> 0.02526833039 | S205: =IF($O205=0,0,IF(ABS($N205-SUM($P205:R205))<ABS($N205/$O205),$N205-SUM($P205:R205),$N205/$O205)) -> 0.02526833039 | T205: =IF($O205=0,0,IF(ABS($N205-SUM($P205:S205))<ABS($N205/$O205),$N205-SUM($P205:S205),$N205/$O205)) -> 0.02526833039
B206: 10 | C206: =L196 -> 2011 | L206: =($L$197*0.5)/$B206 -> 0 | M206: =IF(ABS($L$197-SUM($D206:L206))<ABS($L$197/$B206),$L$197-SUM($D206:L206),$L$197/$B206) -> 0 | N206: =L$58-SUM(D206:M206) -> 0.1252590883 | O206: =IF(O207-1<0,0,O207-1) -> 8.5 | P206: 0.01473636333 | Q206: =IF($O206=0,0,IF(ABS($N206-SUM($P206:P206))<ABS($N206/$O206),$N206-SUM($P206:P206),$N206/$O206)) -> 0.01473636333 | R206: =IF($O206=0,0,IF(ABS($N206-SUM($P206:Q206))<ABS($N206/$O206),$N206-SUM($P206:Q206),$N206/$O206)) -> 0.01473636333 | S206: =IF($O206=0,0,IF(ABS($N206-SUM($P206:R206))<ABS($N206/$O206),$N206-SUM($P206:R206),$N206/$O206)) -> 0.01473636333 | T206: =IF($O206=0,0,IF(ABS($N206-SUM($P206:S206))<ABS($N206/$O206),$N206-SUM($P206:S206),$N206/$O206)) -> 0.01473636333
B207: 10 | C207: =M196 -> 2012 | M207: =($M$197*0.5)/$B207 -> 0 | N207: =M$58-SUM(D207:M207) -> 0 | O207: =B198-0.5 -> 9.5 | P207: 0 | Q207: =IF($O207=0,0,IF(ABS($N207-SUM($P207:P207))<ABS($N207/$O207),$N207-SUM($P207:P207),$N207/$O207)) -> 0 | R207: =IF($O207=0,0,IF(ABS($N207-SUM($P207:Q207))<ABS($N207/$O207),$N207-SUM($P207:Q207),$N207/$O207)) -> 0 | S207: =IF($O207=0,0,IF(ABS($N207-SUM($P207:R207))<ABS($N207/$O207),$N207-SUM($P207:R207),$N207/$O207)) -> 0 | T207: =IF($O207=0,0,IF(ABS($N207-SUM($P207:S207))<ABS($N207/$O207),$N207-SUM($P207:S207),$N207/$O207)) -> 0
A208: SL Depreciation | D208: =SUM(D198:D207) -> 0.0004161419394 | E208: 0.008817288242 | F208: 0.0168022926 | G208: 0.0168022926 | H208: 0.0168022926 | I208: 0.0168022926 | J208: 0.0168022926 | K208: 0.0168022926 | L208: 0.0168022926 | M208: 0.0168022926 | N208: 0.3356860739 | P208: =SUM(P198:P207) -> 0.05562270052 | Q208: 0.04722155422 | R208: 0.03923654985 | S208: 0.03923654985 | T208: 0.03962062179
A209: Actual WDV | B209: Check | C209: =ABS(N209) -> 0 | D209: =D197-D208 -> 0.007906696848 | E209: =D209+E197-E208 -> 0.1587894959 | F209: =E209+F197-F208 -> 0.1419872033 | G209: =F209+G197-G208 -> 0.1251849107 | H209: =G209+H$58-H208 -> 0.1049259707 | I209: =H209+I$58-I208 -> 0.08812367805 | J209: 0.07132138544 | K209: 0.2440315708 | L209: 0.3524883665 | M209: 0.3356860739 | N209: =ABS(N208-M209) -> 0 | P209: =N208-P208 -> 0.2800633733 | Q209: =P209-Q208 -> 0.2328418191 | R209: =Q209-R208 -> 0.1936052693 | S209: 0.1543687194 | T209: 0.1147480976
A214: Total Closing WDV | C214: =C16 -> OAV | D214: =D$17 -> 2003 | E214: =E$17 -> 2004 | F214: 2005 | G214: 2006 | H214: 2007 | I214: 2008 | J214: 2009 | K214: 2010 | L214: 2011 | M214: 2012 | P214: 2013 | Q214: 2014 | R214: 2015 | S214: 2016 | T214: 2017
A215: =A$65 -> Transmission and Distribution | C215: =C19 -> 442.0304587 | D215: =C215+D36-D230-D231 -> 438.9141862 | E215: =D215+E36-E230-E231 -> 443.9391191 | F215: =E215+F36-F230-F231 -> 453.8587959 | G215: 466.8492623 | H215: =G215+H50-H230-H231 -> 541.1208365 | I215: =H215+I50-I230-I231 -> 544.9830154 | J215: 521.5275152 | K215: 517.8224549 | L215: 518.0773035 | M215: 521.1909705 | P215: =M215-P230-P231 -> 505.6214213 | Q215: =P215-Q230-Q231 -> 490.051872 | R215: =Q215-R230-R231 -> 474.4823228 | S215: 458.9127736 | T215: 443.3432243
A216: =A$66 -> Services | C216: =C21 -> 430.5732593 | D216: =C216+D37-D232-D233 -> 428.606679 | E216: =D216+E37-E232-E233 -> 419.5257654 | F216: =E216+F37-F232-F233 -> 410.5030382 | G216: 401.8911349 | H216: =G216+H51-H232-H233 -> 391.5997112 | I216: =H216+I51-I232-I233 -> 384.2935221 | J216: 378.5468431 | K216: 372.5958887 | L216: 367.5899277 | M216: 364.1839695 | P216: =M216-P232-P233 -> 352.2754077 | Q216: =P216-Q232-Q233 -> 340.3668459 | R216: =Q216-R232-R233 -> 328.4582841 | S216: 316.5497224 | T216: 304.6411606
A217: =A$67 -> CP | C217: =C23 -> 0 | D217: =C217+D38-D234 -> 0.07890472909 | E217: 0.1755064393 | F217: 0.2501925559 | G217: 0.335560918 | H217: =G217+H52-H234 -> 0.3883770802 | I217: 0.4983574006 | J217: 0.6738484701 | K217: 0.7307573303 | L217: 0.8487790155 | M217: 0.9846630618 | P217: =M217-P234 -> 0.9630451395 | Q217: =P217-Q234 -> 0.9414272171 | R217: =Q217-R234 -> 0.9198092947 | S217: 0.8981913724 | T217: 0.87657345
A218: =A$68 -> Supply Regs / Valve Stations | C218: =C24 -> 17.44752138 | D218: 18.25098915 | E218: 19.86104761 | F218: 20.07081462 | G218: 20.44636533 | H218: 20.69518122 | I218: 22.30941327 | J218: 22.81434781 | K218: 22.69983935 | L218: 22.72831331 | M218: 22.9144168 | P218: =M218-P235 -> 21.66783934 | Q218: =P218-Q235 -> 20.42126187 | R218: 19.1746844 | S218: 17.92810693 | T218: 16.68152946
A219: =A$69 -> Meters | C219: =C25 -> 143.1338841 | D219: 139.2271831 | E219: 135.4623003 | F219: 130.7312489 | G219: 126.4305327 | H219: 121.1287617 | I219: 115.4968154 | J219: 110.1165354 | K219: 104.9505397 | L219: 99.97622769 | M219: 96.95369911 | P219: 87.68125753 | Q219: 78.40881595 | R219: 69.13637437 | S219: 59.86393279 | T219: 50.59149121
A220: =A$70 -> Land & Buildings | C220: 0 | D220: 0 | E220: 0 | F220: 0 | G220: 0 | H220: 0 | I220: 0 | J220: 0 | K220: 0 | L220: 0 | M220: 0 | P220: 0 | Q220: 0 | R220: 0 | S220: 0 | T220: 0
A221: =A$71 -> SCADA | C221: =C26 -> 3.916341496 | D221: 4.255230743 | E221: 3.871576554 | F221: 3.235846924 | G221: 2.600431118 | H221: 2.038184984 | I221: 1.265840673 | J221: 0.3332975873 | K221: -0.1699221747 | L221: -0.6350683949 | M221: -0.9707285785 | P221: 0 | Q221: 0 | R221: 0 | S221: 0 | T221: 0
A222: =A$72 -> Computer Equipment | C222: =C27 -> 25.3968007 | D222: 23.84131147 | E222: 23.42997098 | F222: 17.81674134 | G222: 11.03901621 | H222: 4.2446885 | I222: 2.443878112 | J222: -0.9456517059 | K222: -1.04761611 | L222: 16.87642318 | M222: 10.9219188 | P222: 8.737535042 | Q222: 6.553151281 | R222: =Q222-R239 -> 4.368767521 | S222: 2.18438376 | T222: 0
A223: =A$73 -> Other Assets | C223: =C28 -> 2.821781562 | D223: 2.426576607 | E223: 2.174347755 | F223: 1.75443381 | G223: 1.334519866 | H223: 0.9111492742 | I223: 0.4912353298 | J223: 0.07132138544 | K223: 0.2440315708 | L223: 0.3524883665 | M223: 0.3356860739 | P223: 0.2800633733 | Q223: 0.2328418191 | R223: 0.1936052693 | S223: 0.1543687194 | T223: 0.1147480976
C224: =SUM(C215:C223) -> 1065.320047 | D224: 1055.601061 | E224: 1048.439634 | F224: 1038.221112 | G224: 1030.926823 | H224: 1082.12689 | I224: 1071.782078 | J224: 1033.138057 | K224: 1017.825973 | L224: 1025.814394 | M224: 1016.514595 | P224: =SUM(P215:P223) -> 977.2265694 | Q224: 936.9762161 | R224: 896.7338478 | S224: 856.4914795 | T224: 816.2487271
A226: Check to GAAR 2008-12 | C226: =ABS('GAAR 2008-12 Data Inputs'!G13*$L$10-C224) -> 0 | D226: =ABS('GAAR 2008-12 Data Inputs'!H13*$L$10-D224) -> 0 | E226: =ABS('GAAR 2008-12 Data Inputs'!I13*$L$10-E224) -> 2.273736754e-13 | F226: =ABS('GAAR 2008-12 Data Inputs'!J13*$L$10-F224) -> 0 | G226: =ABS('GAAR 2008-12 Data Inputs'!K13*$L$10-G224) -> 2.273736754e-13
C227: =SUM(C226:G226) -> 4.547473509e-13
A229: Total SL Depreciation | D229: =D$17 -> 2003 | E229: =E$17 -> 2004 | F229: 2005 | G229: 2006 | H229: 2007 | I229: 2008 | J229: 2009 | K229: 2010 | L229: 2011 | M229: 2012 | P229: 2013 | Q229: 2014 | R229: 2015 | S229: 2016 | T229: 2017
A230: =A$65 -> Transmission and Distribution | D230: =D19+D$87 -> 11.74315691 | E230: =E19+E$87 -> 12.05339381 | F230: 12.50628891 | G230: 13.05286815 | H230: 14.21540261 | I230: 15.06807278 | J230: 15.74521765 | K230: 16.55102879 | L230: 17.36575622 | M230: 18.10840091 | P230: 15.56954923 | Q230: 15.56954923 | R230: 15.56954923 | S230: 15.56954923 | T230: 15.56954923
... 12 more rows

Sheet RAB Roll Forward ($Real 2012)
A1: ='GAAR 2008-12 Data Inputs'!$A$1 -> Multinet | C1: Check | D1: =SUM(B14,H14,B38:G38) -> 3.694822226e-13
A2: $m Real 2012 | B2: 2007 | C2: 2008 | D2: 2009 | E2: 2010 | F2: 2011 | G2: 2012 | H2: 2013
A3: Opening RAB
A4: Transmission and distribution | B4: ='Regulatory Depn'!G215 -> 466.8492623 | C4: =B40 -> 541.1208365 | D4: 544.9830154 | E4: 521.5275152 | F4: 517.8224549 | G4: 518.0773035 | H4: 521.1909705
A5: Services | B5: ='Regulatory Depn'!G216 -> 401.8911349 | C5: 391.5997112 | D5: 384.2935221 | E5: 378.5468431 | F5: 372.5958887 | G5: 367.5899277 | H5: 364.1839695
A6: Cathodic Protection | B6: ='Regulatory Depn'!G217 -> 0.335560918 | C6: 0.3883770802 | D6: 0.4983574006 | E6: 0.6738484701 | F6: 0.7307573303 | G6: 0.8487790155 | H6: 0.9846630618
A7: Suppy Regs/Valve stations | B7: ='Regulatory Depn'!G218 -> 20.44636533 | C7: 20.69518122 | D7: 22.30941327 | E7: 22.81434781 | F7: 22.69983935 | G7: 22.72831331 | H7: 22.9144168
A8: Meters | B8: ='Regulatory Depn'!G219 -> 126.4305327 | C8: 121.1287617 | D8: 115.4968154 | E8: 110.1165354 | F8: 104.9505397 | G8: 99.97622769 | H8: 96.95369911
A9: Land and buildings | B9: ='Regulatory Depn'!G220 -> 0 | C9: 0 | D9: 0 | E9: 0 | F9: 0 | G9: 0 | H9: 0
A10: IT | B10: ='Regulatory Depn'!G222 -> 11.03901621 | C10: 4.2446885 | D10: 2.443878112 | E10: -0.9456517059 | F10: -1.04761611 | G10: 16.87642318 | H10: 10.9219188
A11: SCADA | B11: ='Regulatory Depn'!G221 -> 2.600431118 | C11: 2.038184984 | D11: 1.265840673 | E11: 0.3332975873 | F11: -0.1699221747 | G11: -0.6350683949 | H11: -0.9707285785
A12: Other | B12: ='Regulatory Depn'!G223 -> 1.334519866 | C12: 0.9111492742 | D12: 0.4912353298 | E12: 0.07132138544 | F12: 0.2440315708 | G12: 0.3524883665 | H12: 0.3356860739
B13: =SUM(B4:B12) -> 1030.926823 | C13: 1082.12689 | D13: 1071.782078 | E13: 1033.138057 | F13: 1017.825973 | G13: 1025.814394 | H13: 1016.514595
A14: Check | B14: =ABS(B13-'GAAR 2008-12 Data Inputs'!K13*'Actual Data Inputs'!$L$9) -> 2.273736754e-13 | H14: =ABS(H13-'Regulatory Depn'!M224) -> 1.136868377e-13
A15: Actual Net Capex
A16: =A$4 -> Transmission and distribution | B16: =('Actual Data Inputs'!B39-'Actual Data Inputs'!B51+'Actual Data Inputs'!B64)*'Actual Data Inputs'!M$9 -> 91.65518672 | C16: =('Actual Data Inputs'!C39-'Actual Data Inputs'!C51)*'Actual Data Inputs'!N$9 -> 23.16335111 | D16: =('Actual Data Inputs'!D39-'Actual Data Inputs'!D51)*'Actual Data Inputs'!O$9 -> -3.626693832 | E16: =('Actual Data Inputs'!E39-'Actual Data Inputs'!E51)*'Actual Data Inputs'!P$9 -> 16.90802383 | F16: =('Actual Data Inputs'!F39-'Actual Data Inputs'!F51)*'Actual Data Inputs'!Q$9 -> 21.55178636 | G16: =('Actual Data Inputs'!G39-'Actual Data Inputs'!G51)*'Actual Data Inputs'!R$9 -> 25.05060922
A17: =A$5 -> Services | B17: =('Actual Data Inputs'!B40-'Actual Data Inputs'!B52)*'Actual Data Inputs'!M$9 -> 5.020204239 | C17: =('Actual Data Inputs'!C40-'Actual Data Inputs'!C52)*'Actual Data Inputs'!N$9 -> 8.660152932 | D17: =('Actual Data Inputs'!D40-'Actual Data Inputs'!D52)*'Actual Data Inputs'!O$9 -> 10.10768777 | E17: =('Actual Data Inputs'!E40-'Actual Data Inputs'!E52)*'Actual Data Inputs'!P$9 -> 9.79143705 | F17: =('Actual Data Inputs'!F40-'Actual Data Inputs'!F52)*'Actual Data Inputs'!Q$9 -> 10.62445516 | G17: =('Actual Data Inputs'!G40-'Actual Data Inputs'!G52)*'Actual Data Inputs'!R$9 -> 12.11248264
A18: =A$6 -> Cathodic Protection | B18: =('Actual Data Inputs'!B41-'Actual Data Inputs'!B53)*'Actual Data Inputs'!M$9 -> 0.06106743738 | C18: =('Actual Data Inputs'!C41-'Actual Data Inputs'!C53)*'Actual Data Inputs'!N$9 -> 0.1194951615 | D18: =('Actual Data Inputs'!D41-'Actual Data Inputs'!D53)*'Actual Data Inputs'!O$9 -> 0.1850059106 | E18: =('Actual Data Inputs'!E41-'Actual Data Inputs'!E53)*'Actual Data Inputs'!P$9 -> 0.06642370125 | F18: =('Actual Data Inputs'!F41-'Actual Data Inputs'!F53)*'Actual Data Inputs'!Q$9 -> 0.1275365263 | G18: =('Actual Data Inputs'!G41-'Actual Data Inputs'!G53)*'Actual Data Inputs'!R$9 -> 0.1453988874
A19: =A$7 -> Suppy Regs/Valve stations | B19: =('Actual Data Inputs'!B42-'Actual Data Inputs'!B54)*'Actual Data Inputs'!M$9 -> 1.326200385 | C19: =('Actual Data Inputs'!C42-'Actual Data Inputs'!C54)*'Actual Data Inputs'!N$9 -> 2.711226536 | D19: =('Actual Data Inputs'!D42-'Actual Data Inputs'!D54)*'Actual Data Inputs'!O$9 -> 1.601929016 | E19: =('Actual Data Inputs'!E42-'Actual Data Inputs'!E54)*'Actual Data Inputs'!P$9 -> 0.9824860259 | F19: =('Actual Data Inputs'!F42-'Actual Data Inputs'!F54)*'Actual Data Inputs'!Q$9 -> 1.125468436 | G19: =('Actual Data Inputs'!G42-'Actual Data Inputs'!G54)*'Actual Data Inputs'!R$9 -> 1.283097974
A20: =A$8 -> Meters | B20: =('Actual Data Inputs'!B43-'Actual Data Inputs'!B55)*'Actual Data Inputs'!M$9 -> 3.284967245 | C20: =('Actual Data Inputs'!C43-'Actual Data Inputs'!C55)*'Actual Data Inputs'!N$9 -> 3.142545225 | D20: =('Actual Data Inputs'!D43-'Actual Data Inputs'!D55)*'Actual Data Inputs'!O$9 -> 3.575154885 | E20: =('Actual Data Inputs'!E43-'Actual Data Inputs'!E55)*'Actual Data Inputs'!P$9 -> 3.958714129 | F20: =('Actual Data Inputs'!F43-'Actual Data Inputs'!F55)*'Actual Data Inputs'!Q$9 -> 4.316055511 | G20: =('Actual Data Inputs'!G43-'Actual Data Inputs'!G55)*'Actual Data Inputs'!R$9 -> 6.435821779
A21: =A$9 -> Land and buildings | B21: =('Actual Data Inputs'!B44-'Actual Data Inputs'!B56)*'Actual Data Inputs'!M$9 -> 0 | C21: =('Actual Data Inputs'!C44-'Actual Data Inputs'!C56)*'Actual Data Inputs'!N$9 -> 0 | D21: =('Actual Data Inputs'!D44-'Actual Data Inputs'!D56)*'Actual Data Inputs'!O$9 -> 0 | E21: =('Actual Data Inputs'!E44-'Actual Data Inputs'!E56)*'Actual Data Inputs'!P$9 -> 0 | F21: =('Actual Data Inputs'!F44-'Actual Data Inputs'!F56)*'Actual Data Inputs'!Q$9 -> 0 | G21: =('Actual Data Inputs'!G44-'Actual Data Inputs'!G56)*'Actual Data Inputs'!R$9 -> 0
A22: =A$10 -> IT | B22: =('Actual Data Inputs'!B45-'Actual Data Inputs'!B57)*'Actual Data Inputs'!M$9 -> 0.8791406551 | C22: =('Actual Data Inputs'!C45-'Actual Data Inputs'!C57)*'Actual Data Inputs'!N$9 -> 0.8856388446 | D22: =('Actual Data Inputs'!D45-'Actual Data Inputs'!D57)*'Actual Data Inputs'!O$9 -> 1.260758271 | E22: =('Actual Data Inputs'!E45-'Actual Data Inputs'!E57)*'Actual Data Inputs'!P$9 -> 6.427647956 | F22: =('Actual Data Inputs'!F45-'Actual Data Inputs'!F57)*'Actual Data Inputs'!Q$9 -> 24.31821348 | G22: =('Actual Data Inputs'!G45-'Actual Data Inputs'!G57)*'Actual Data Inputs'!R$9 -> 0.3293391188
A23: =A$11 -> SCADA | B23: =('Actual Data Inputs'!B46-'Actual Data Inputs'!B58)*'Actual Data Inputs'!M$9 -> 0.2338998073 | C23: =('Actual Data Inputs'!C46-'Actual Data Inputs'!C58)*'Actual Data Inputs'!N$9 -> 0.1124699321 | D23: =('Actual Data Inputs'!D46-'Actual Data Inputs'!D58)*'Actual Data Inputs'!O$9 -> 0.08634678234 | E23: =('Actual Data Inputs'!E46-'Actual Data Inputs'!E58)*'Actual Data Inputs'!P$9 -> 0.0042529079 | F23: =('Actual Data Inputs'!F46-'Actual Data Inputs'!F58)*'Actual Data Inputs'!Q$9 -> 0.0714287363 | G23: =('Actual Data Inputs'!G46-'Actual Data Inputs'!G58)*'Actual Data Inputs'!R$9 -> 0.2503196125
A24: =A$12 -> Other | B24: =('Actual Data Inputs'!B47-'Actual Data Inputs'!B59)*'Actual Data Inputs'!M$9 -> -0.003456647399 | C24: =('Actual Data Inputs'!C47-'Actual Data Inputs'!C59)*'Actual Data Inputs'!N$9 -> 0 | D24: =('Actual Data Inputs'!D47-'Actual Data Inputs'!D59)*'Actual Data Inputs'!O$9 -> 0 | E24: =('Actual Data Inputs'!E47-'Actual Data Inputs'!E59)*'Actual Data Inputs'!P$9 -> 0.1895124779 | F24: =('Actual Data Inputs'!F47-'Actual Data Inputs'!F59)*'Actual Data Inputs'!Q$9 -> 0.1252590883 | G24: =('Actual Data Inputs'!G47-'Actual Data Inputs'!G59)*'Actual Data Inputs'!R$9 -> 0
B25: =SUM(B16:B24) -> 102.4572098 | C25: 38.79487974 | D25: 13.1901888 | E25: 38.32849808 | F25: 62.2602033 | G25: 45.60706923
A27: Regulatory Depreciation
A28: =A$4 -> Transmission and distribution | B28: =SUM('Regulatory Depn'!H230:H231) -> 17.38361255 | C28: =SUM('Regulatory Depn'!I230:I231) -> 19.30117215 | D28: =SUM('Regulatory Depn'!J230:J231) -> 19.82880643 | E28: =SUM('Regulatory Depn'!K230:K231) -> 20.61308408 | F28: =SUM('Regulatory Depn'!L230:L231) -> 21.29693775 | G28: =SUM('Regulatory Depn'!M230:M231) -> 21.93694226
A29: =A$5 -> Services | B29: =SUM('Regulatory Depn'!H232:H233) -> 15.31162799 | C29: =SUM('Regulatory Depn'!I232:I233) -> 15.96634205 | D29: =SUM('Regulatory Depn'!J232:J233) -> 15.85436675 | E29: =SUM('Regulatory Depn'!K232:K233) -> 15.74239145 | F29: =SUM('Regulatory Depn'!L232:L233) -> 15.63041614 | G29: =SUM('Regulatory Depn'!M232:M233) -> 15.51844084
A30: =A$6 -> Cathodic Protection | B30: ='Regulatory Depn'!H234 -> 0.008251275248 | C30: ='Regulatory Depn'!I234 -> 0.009514841069 | D30: ='Regulatory Depn'!J234 -> 0.009514841069 | E30: ='Regulatory Depn'!K234 -> 0.009514841069 | F30: ='Regulatory Depn'!L234 -> 0.009514841069 | G30: ='Regulatory Depn'!M234 -> 0.009514841069
A31: =A$7 -> Suppy Regs/Valve stations | B31: ='Regulatory Depn'!H235 -> 1.0773845 | C31: ='Regulatory Depn'!I235 -> 1.09699448 | D31: ='Regulatory Depn'!J235 -> 1.09699448 | E31: ='Regulatory Depn'!K235 -> 1.09699448 | F31: ='Regulatory Depn'!L235 -> 1.09699448 | G31: ='Regulatory Depn'!M235 -> 1.09699448
A32: =A$8 -> Meters | B32: ='Regulatory Depn'!H236 -> 8.586738292 | C32: ='Regulatory Depn'!I236 -> 8.774491477 | D32: ='Regulatory Depn'!J236 -> 8.955434951 | E32: ='Regulatory Depn'!K236 -> 9.124709813 | F32: ='Regulatory Depn'!L236 -> 9.2903675 | G32: ='Regulatory Depn'!M236 -> 9.458350364
A33: =A$9 -> Land and buildings | B33: ='Regulatory Depn'!H237 -> 0 | C33: ='Regulatory Depn'!I237 -> 0 | D33: ='Regulatory Depn'!J237 -> 0 | E33: ='Regulatory Depn'!K237 -> 0 | F33: ='Regulatory Depn'!L237 -> 0 | G33: ='Regulatory Depn'!M237 -> 0
A34: =A$10 -> IT | B34: ='Regulatory Depn'!H239 -> 7.673468365 | C34: ='Regulatory Depn'!I239 -> 2.686449233 | D34: ='Regulatory Depn'!J239 -> 4.650288089 | E34: ='Regulatory Depn'!K239 -> 6.52961236 | F34: ='Regulatory Depn'!L239 -> 6.394174185 | G34: ='Regulatory Depn'!M239 -> 6.283843501
A35: =A$11 -> SCADA | B35: ='Regulatory Depn'!H238 -> 0.796145941 | C35: ='Regulatory Depn'!I238 -> 0.8848142429 | D35: ='Regulatory Depn'!J238 -> 1.018889868 | E35: ='Regulatory Depn'!K238 -> 0.50747267 | F35: ='Regulatory Depn'!L238 -> 0.5365749564 | G35: ='Regulatory Depn'!M238 -> 0.5859797961
A36: =A$12 -> Other | B36: ='Regulatory Depn'!H240 -> 0.4199139444 | C36: ='Regulatory Depn'!I240 -> 0.4199139444 | D36: ='Regulatory Depn'!J240 -> 0.4199139444 | E36: ='Regulatory Depn'!K240 -> 0.0168022926 | F36: ='Regulatory Depn'!L240 -> 0.0168022926 | G36: ='Regulatory Depn'!M240 -> 0.0168022926
B37: =SUM(B28:B36) -> 51.25714286 | C37: 49.13969241 | D37: 51.83420935 | E37: 53.64058198 | F37: 54.27178215 | G37: 54.90686838
A38: Check to GAAR 2008-12 | B38: =ABS(B37-'GAAR 2008-12 Data Inputs'!K17*'Actual Data Inputs'!$L$9) -> 7.105427358e-15 | C38: =ABS(C37-'GAAR 2008-12 Data Inputs'!L17*'Actual Data Inputs'!$L$9) -> 0 | D38: =ABS(D37-'GAAR 2008-12 Data Inputs'!M17*'Actual Data Inputs'!$L$9) -> 7.105427358e-15 | E38: =ABS(E37-'GAAR 2008-12 Data Inputs'!N17*'Actual Data Inputs'!$L$9) -> 7.105427358e-15 | F38: =ABS(F37-'GAAR 2008-12 Data Inputs'!O17*'Actual Data Inputs'!$L$9) -> 0 | G38: =ABS(G37-'GAAR 2008-12 Data Inputs'!P17*'Actual Data Inputs'!$L$9) -> 7.105427358e-15
A39: Closing RAB
A40: =A$4 -> Transmission and distribution | B40: =B4+B16-B28 -> 541.1208365 | C40: 544.9830154 | D40: 521.5275152 | E40: 517.8224549 | F40: 518.0773035 | G40: 521.1909705
A41: =A$5 -> Services | B41: 391.5997112 | C41: 384.2935221 | D41: 378.5468431 | E41: 372.5958887 | F41: 367.5899277 | G41: 364.1839695
A42: =A$6 -> Cathodic Protection | B42: 0.3883770802 | C42: 0.4983574006 | D42: 0.6738484701 | E42: 0.7307573303 | F42: 0.8487790155 | G42: 0.9846630618
A43: =A$7 -> Suppy Regs/Valve stations | B43: 20.69518122 | C43: 22.30941327 | D43: 22.81434781 | E43: 22.69983935 | F43: 22.72831331 | G43: 22.9144168
A44: =A$8 -> Meters | B44: 121.1287617 | C44: 115.4968154 | D44: 110.1165354 | E44: 104.9505397 | F44: 99.97622769 | G44: 96.95369911
A45: =A$9 -> Land and buildings | B45: 0 | C45: 0 | D45: 0 | E45: 0 | F45: 0 | G45: 0
A46: =A$10 -> IT | B46: 4.2446885 | C46: 2.443878112 | D46: -0.9456517059 | E46: -1.04761611 | F46: 16.87642318 | G46: 10.9219188
A47: =A$11 -> SCADA | B47: 2.038184984 | C47: 1.265840673 | D47: 0.3332975873 | E47: -0.1699221747 | F47: -0.6350683949 | G47: -0.9707285785
A48: =A$12 -> Other | B48: 0.9111492742 | C48: 0.4912353298 | D48: 0.07132138544 | E48: 0.2440315708 | F48: 0.3524883665 | G48: 0.3356860739
B49: =SUM(B40:B48) -> 1082.12689 | C49: 1071.782078 | D49: 1033.138057 | E49: 1017.825973 | F49: 1025.814394 | G49: 1016.514595

Sheet Tax value Roll Forward
A1: ='GAAR 2008-12 Data Inputs'!$A$1 -> Multinet | C1: 2007 | D1: 2008 | E1: 2009 | F1: 2010 | G1: 2011 | H1: 2012 | I1: 2013
A2: Nominal $m | B2: Tax Depn rates
A3: Depn Method - Declining Balance | C3: =C$1 -> 2007 | D3: =D$1 -> 2008 | E3: 2009 | F3: 2010 | G3: 2011 | H3: 2012 | I3: 2013
A4: Opening Tax value
A5: Mains & Services
A6: Additions 1996 to 1999 | B6: ='GAAR 2008-12 Data Inputs'!C65 -> 0.2 | C6: ='GAAR 2008-12 Data Inputs'!D65 -> 60.38529402 | D6: =C78 -> 48.30823522 | E6: 38.64658818 | F6: 30.91727054 | G6: 24.73381643 | H6: 19.78705315 | I6: 15.82964252
A7: Additions 1999 to 2002 | B7: ='GAAR 2008-12 Data Inputs'!C67 -> 0.03 | C7: ='GAAR 2008-12 Data Inputs'!D67 -> 35.17216908 | D7: 34.11700401 | E7: 33.09349389 | F7: 32.10068907 | G7: 31.1376684 | H7: 30.20353835 | I7: 29.2974322
A8: Additions 2002 to 2006 | B8: ='GAAR 2008-12 Data Inputs'!C69 -> 0.075 | C8: ='GAAR 2008-12 Data Inputs'!D69 -> 99.29436346 | D8: 91.8472862 | E8: 84.95873974 | F8: 78.58683426 | G8: 72.69282169 | H8: 67.24086006 | I8: 62.19779556
A9: Additions 2006 onwards | B9: ='GAAR 2008-12 Data Inputs'!C73 -> 0.1 | C9: ='GAAR 2008-12 Data Inputs'!D73 -> 30.06701415 | D9: 92.43171274 | E9: 115.2889379 | F9: 135.1267368 | G9: 147.6135209 | H9: 164.3959688 | I9: 186.5425577
C10: =SUM(C6:C9) -> 224.9188407 | D10: 266.7042382 | E10: 271.9877597 | F10: 276.7315307 | G10: 276.1778274 | H10: 281.6274204 | I10: 293.8674279
A11: Meters
A12: Additions 1999 to 2007 | B12: ='GAAR 2008-12 Data Inputs'!C83 -> 0.375 | C12: ='GAAR 2008-12 Data Inputs'!D83 -> 5.33343931 | D12: =C84 -> 4.895837069 | E12: 3.059898168 | F12: 1.912436355 | G12: 1.195272722 | H12: 0.7470454512 | I12: 0.466903407
A14: Meters Domestic
A15: Additions 2008 onwards | B15: ='GAAR 2008-12 Data Inputs'!C89 -> 0.375 | C15: ='GAAR 2008-12 Data Inputs'!D89 -> 0 | D15: =C87 -> 0 | E15: 1.152038267 | F15: 2.047670586 | G15: 3.758823591 | H15: 4.972827245 | I15: 6.871722409
A17: Meters Industrial & Commercial
A18: Additions 2008 onwards | B18: ='GAAR 2008-12 Data Inputs'!C95 -> 0.1333333333 | C18: ='GAAR 2008-12 Data Inputs'!D95 -> 0 | D18: =C90 -> 0 | E18: 0.3384816192 | F18: 0.6834280518 | G18: 1.216969089 | H18: 1.929239877 | I18: 3.355338962
A20: Other Assets
A21: Additions 1996 to 1999 | B21: ='GAAR 2008-12 Data Inputs'!C102 -> 0.3 | C21: ='GAAR 2008-12 Data Inputs'!D102 -> 0.5767115156 | D21: =C93 -> 0.4036980609 | E21: 0.2825886426 | F21: 0.1978120498 | G21: 0.1384684349 | H21: 0.09692790442 | I21: 0.0678495331
A22: Additions 1999 to 2006 | B22: ='GAAR 2008-12 Data Inputs'!C106 -> 0.15 | C22: ='GAAR 2008-12 Data Inputs'!D106 -> 18.70718376 | D22: 15.9011062 | E22: 13.51594027 | F22: 11.48854923 | G22: 9.765266843 | H22: 8.300476817 | I22: 7.055405294
A23: Additions 2006 onwards | B23: ='GAAR 2008-12 Data Inputs'!C110 -> 0.2 | C23: ='GAAR 2008-12 Data Inputs'!D110 -> 0.4938706295 | D23: 1.264496504 | E23: 1.805744621 | F23: 2.569811373 | G23: 8.543557139 | H23: 29.15394571 | I23: 23.84484943
C24: =SUM(C21:C23) -> 19.77776591 | D24: 17.56930076 | E24: 15.60427353 | F24: 14.25617265 | G24: 18.44729242 | H24: 37.55135043 | I24: 30.96810425
C26: =SUM(C10,C12,C15,C18,C24) -> 250.0300459 | D26: =SUM(D10,D12,D15,D18,D24) -> 289.169376 | E26: 292.1424513 | F26: 295.6312384 | G26: 300.7961853 | H26: 326.8278834 | I26: 335.529497
A28: Actual Tax Additions
A29: Mains & Services
A30: Additions 1996 to 1999
A31: Additions 1999 to 2002
A32: Additions 2002 to 2006
A33: Additions 2006 onwards | C33: ='Actual Data Inputs'!B74 -> 68.812 | D33: ='Actual Data Inputs'!C74 -> 33.78989103 | E33: ='Actual Data Inputs'!D74 -> 33.01757126 | F33: ='Actual Data Inputs'!E74 -> 27.36785028 | G33: ='Actual Data Inputs'!F74 -> 33.204 | H33: ='Actual Data Inputs'!G74 -> 40.61703759
C34: =SUM(C30:C33) -> 68.812 | D34: 33.78989103 | E34: 33.01757126 | F34: 27.36785028 | G34: 33.204 | H34: 40.61703759
A35: Meters
A36: Additions 1999 to 2007 | C36: ='Actual Data Inputs'!B75 -> 1.923
A38: Meters Domestic
A39: Additions 2008 onwards | D39: ='Actual Data Inputs'!C75 -> 1.417893252 | E39: ='Actual Data Inputs'!D75 -> 1.63402667 | F39: ='Actual Data Inputs'!E75 -> 3.0511132 | G39: ='Actual Data Inputs'!F75 -> 3.229 | H39: ='Actual Data Inputs'!G75 -> 4.632252777
A41: Meters Industrial & Commercial
A42: Additions 2008 onwards | D42: ='Actual Data Inputs'!C76 -> 0.3626588777 | E42: ='Actual Data Inputs'!D76 -> 0.4179399805 | F42: ='Actual Data Inputs'!E76 -> 0.66928369 | G42: ='Actual Data Inputs'!F76 -> 0.937 | H42: ='Actual Data Inputs'!G76 -> 1.803569002
A44: Other Assets
A45: Additions 1996 to 1999
A46: Additions 1999 to 2006
A47: Additions 2006 onwards | C47: ='Actual Data Inputs'!B78 -> 0.966 | D47: ='Actual Data Inputs'!C78 -> 0.88238602 | E47: ='Actual Data Inputs'!D78 -> 1.25023964 | F47: ='Actual Data Inputs'!E78 -> 7.20856449 | G47: ='Actual Data Inputs'!F78 -> 24.799 | H47: ='Actual Data Inputs'!G78 -> 0.5796587313
C48: =SUM(C45:C47) -> 0.966 | D48: 0.88238602 | E48: 1.25023964 | F48: 7.20856449 | G48: 24.799 | H48: 0.5796587313
C50: =SUM(C34,C36,C39,C42,C48) -> 71.701 | D50: =SUM(D34,D36,D39,D42,D48) -> 36.45282918 | E50: 36.31977755 | F50: 38.29681166 | G50: 62.169 | H50: 47.6325181
A52: Actual Tax Depreciation
A53: Mains & Services
A54: Additions 1996 to 1999 | C54: =IF($B6=1,C30,(C6+C30*0.5)*$B6) -> 12.0770588 | D54: 9.661647044 | E54: 7.729317635 | F54: 6.183454108 | G54: 4.946763287 | H54: 3.957410629
A55: Additions 1999 to 2002 | C55: 1.055165073 | D55: 1.02351012 | E55: 0.9928048167 | F55: 0.9630206722 | G55: 0.9341300521 | H55: 0.9061061505
A56: Additions 2002 to 2006 | C56: 7.44707726 | D56: 6.888546465 | E56: 6.37190548 | F56: 5.894012569 | G56: 5.451961627 | H56: 5.043064505
A57: Additions 2006 onwards | C57: 6.447301415 | D57: 10.93266583 | E57: 13.17977236 | F57: 14.8810662 | G57: 16.42155209 | H57: 18.47044876
C58: =SUM(C54:C57) -> 27.02660255 | D58: 28.50636945 | E58: 28.27380029 | F58: 27.92155355 | G58: 27.75440706 | H58: 28.37703005
A59: Meters
A60: Additions 1999 to 2007 | C60: =IF($B12=1,C36,(C12+C36*0.5)*$B12) -> 2.360602241 | D60: 1.835938901 | E60: 1.147461813 | F60: 0.7171636332 | G60: 0.4482272707 | H60: 0.2801420442
A62: Meters Domestic
A63: Additions 2008 onwards | C63: =IF($B15=1,C39,(C15+C39*0.5)*$B15) -> 0 | D63: 0.2658549848 | E63: 0.7383943508 | F63: 1.339960195 | G63: 2.014996347 | H63: 2.733357612
A65: Meters Industrial & Commercial
A66: Additions 2008 onwards | C66: =IF($B18=1,C42,(C18+C42*0.5)*$B18) -> 0 | D66: 0.02417725852 | E66: 0.07299354793 | F66: 0.1357426529 | G66: 0.2247292119 | H66: 0.3774699171
A68: Other Assets
A69: Additions 1996 to 1999 | C69: =IF($B21=1,C45,(C21+C45*0.5)*$B21) -> 0.1730134547 | D69: 0.1211094183 | E69: 0.08477659279 | F69: 0.05934361495 | G69: 0.04154053047 | H69: 0.02907837133
A70: Additions 1999 to 2006 | C70: 2.806077564 | D70: 2.38516593 | E70: 2.02739104 | F70: 1.723282384 | G70: 1.464790027 | H70: 1.245071523
A71: Additions 2006 onwards | C71: 0.1953741259 | D71: 0.3411379027 | E71: 0.4861728882 | F71: 1.234818724 | G71: 4.188611428 | H71: 5.888755015
C72: =SUM(C69:C71) -> 3.174465145 | D72: 2.847413251 | E72: 2.598340521 | F72: 3.017444723 | G72: 5.694941985 | H72: 7.162904909
C74: =SUM(C58,C60,C63,C66,C72) -> 32.56166994 | D74: =SUM(D58,D60,D63,D66,D72) -> 33.47975385 | E74: 32.83099052 | F74: 33.13186475 | G74: 36.13730187 | H74: 38.93090453
A76: Closing Tax value
A77: Mains & Services
A78: Additions 1996 to 1999 | C78: =C6+C30-C54 -> 48.30823522 | D78: 38.64658818 | E78: 30.91727054 | F78: 24.73381643 | G78: 19.78705315 | H78: 15.82964252
A79: Additions 1999 to 2002 | C79: 34.11700401 | D79: 33.09349389 | E79: 32.10068907 | F79: 31.1376684 | G79: 30.20353835 | H79: 29.2974322
A80: Additions 2002 to 2006 | C80: 91.8472862 | D80: 84.95873974 | E80: 78.58683426 | F80: 72.69282169 | G80: 67.24086006 | H80: 62.19779556
A81: Additions 2006 onwards | C81: 92.43171274 | D81: 115.2889379 | E81: 135.1267368 | F81: 147.6135209 | G81: 164.3959688 | H81: 186.5425577
C82: =SUM(C78:C81) -> 266.7042382 | D82: 271.9877597 | E82: 276.7315307 | F82: 276.1778274 | G82: 281.6274204 | H82: 293.8674279
A83: Meters
A84: Additions 1999 to 2007 | C84: =C12+C36-C60 -> 4.895837069 | D84: =D12+D36-D60 -> 3.059898168 | E84: 1.912436355 | F84: 1.195272722 | G84: 0.7470454512 | H84: 0.466903407
A86: Meters Domestic
A87: Additions 2008 onwards | C87: =C15+C39-C63 -> 0 | D87: 1.152038267 | E87: 2.047670586 | F87: 3.758823591 | G87: 4.972827245 | H87: 6.871722409
A89: Meters Industrial & Commercial
A90: Additions 2008 onwards | C90: =C18+C42-C66 -> 0 | D90: 0.3384816192 | E90: 0.6834280518 | F90: 1.216969089 | G90: 1.929239877 | H90: 3.355338962
A92: Other Assets
A93: Additions 1996 to 1999 | C93: =C21+C45-C69 -> 0.4036980609 | D93: 0.2825886426 | E93: 0.1978120498 | F93: 0.1384684349 | G93: 0.09692790442 | H93: 0.0678495331
A94: Additions 1999 to 2006 | C94: 15.9011062 | D94: 13.51594027 | E94: 11.48854923 | F94: 9.765266843 | G94: 8.300476817 | H94: 7.055405294
A95: Additions 2006 onwards | C95: 1.264496504 | D95: 1.805744621 | E95: 2.569811373 | F95: 8.543557139 | G95: 29.15394571 | H95: 23.84484943
C96: =SUM(C93:C95) -> 17.56930076 | D96: 15.60427353 | E96: 14.25617265 | F96: 18.44729242 | G96: 37.55135043 | H96: 30.96810425
C98: =SUM(C82,C84,C87,C90,C96) -> 289.169376 | D98: =SUM(D82,D84,D87,D90,D96) -> 292.1424513 | E98: 295.6312384 | F98: 300.7961853 | G98: 326.8278834 | H98: 335.529497
A101: Depn Method - Fully Deductible | C101: =C$1 -> 2007 | D101: =D$1 -> 2008 | E101: 2009 | F101: 2010 | G101: 2011 | H101: 2012 | I101: 2013
A102: Repairs
A103: Opening Tax value | C103: 0 | D103: =C106 -> 0 | E103: =D106 -> 0 | F103: 0 | G103: 0 | H103: 0 | I103: =H106 -> 0
A104: Actual Tax Additions | C104: ='Actual Data Inputs'!B79 -> 0 | D104: ='Actual Data Inputs'!C79 -> 0 | E104: ='Actual Data Inputs'!D79 -> 0 | F104: ='Actual Data Inputs'!E79 -> 0 | G104: ='Actual Data Inputs'!F79 -> 0 | H104: ='Actual Data Inputs'!G79 -> 0
A105: Actual Tax Depreciation | C105: =C104 -> 0 | D105: =D104 -> 0 | E105: 0 | F105: 0 | G105: 0 | H105: 0
A106: Closing Tax value | C106: =C103+C104-C105 -> 0 | D106: =D103+D104-D105 -> 0 | E106: 0 | F106: 0 | G106: 0 | H106: 0
A110: Depn Method - Straight Line | B110: 1996 | C110: 1997 | D110: 1998 | E110: 1999 | F110: 2000 | G110: 2001 | H110: 2002 | I110: 2003 | J110: 2004 | K110: 2005 | L110: 2006 | M110: =C1 -> 2007 | N110: =D1 -> 2008 | O110: 2009 | P110: 2010 | Q110: 2011 | R110: 2012 | S110: 2013
A111: Land & Buildings | B111: Depn Life
B112: ='GAAR 2008-12 Data Inputs'!B44 -> 40
A113: Opening Tax value | B113: ='GAAR 2008-12 Data Inputs'!C44 -> 13.727 | C113: =B116 -> 13.5554125 | D113: =C116 -> 13.3109875 | E113: 12.9653125 | F113: 12.6196375 | G113: 12.2739625 | H113: 11.9282875 | I113: 11.5826125 | J113: 11.2369375 | K113: 10.8912625 | L113: 10.5455875 | M113: 10.1999125 | N113: 9.8542375 | O113: 9.5085625 | P113: 9.1628875 | Q113: 8.8172125 | R113: 8.567453533 | S113: 8.219350279
A114: Actual Tax Additions | B114: ='GAAR 2008-12 Data Inputs'!D44 -> 0 | C114: ='GAAR 2008-12 Data Inputs'!E44 -> 0.1 | D114: ='GAAR 2008-12 Data Inputs'!F44 -> 0 | E114: ='GAAR 2008-12 Data Inputs'!G44 -> 0 | F114: ='GAAR 2008-12 Data Inputs'!H44 -> 0 | G114: ='GAAR 2008-12 Data Inputs'!I44 -> 0 | H114: ='GAAR 2008-12 Data Inputs'!J44 -> 0 | I114: ='GAAR 2008-12 Data Inputs'!K44 -> 0 | J114: ='GAAR 2008-12 Data Inputs'!L44 -> 0 | K114: ='GAAR 2008-12 Data Inputs'!M44 -> 0 | L114: ='GAAR 2008-12 Data Inputs'!N44 -> 0 | M114: ='Actual Data Inputs'!B77 -> 0 | N114: ='Actual Data Inputs'!C77 -> 0 | O114: ='Actual Data Inputs'!D77 -> 0 | P114: ='Actual Data Inputs'!E77 -> 0 | Q114: ='Actual Data Inputs'!F77 -> 0.09713016 | R114: ='Actual Data Inputs'!G77 -> 0
A115: Actual Tax Depreciation | B115: =SUM(B113:B114)*0.5/$B112 -> 0.1715875 | C115: =(SUM($B113,$B114:B114)+C114*0.5)/$B112 -> 0.344425 | D115: =(SUM($B113,$B114:C114)+D114*0.5)/$B112 -> 0.345675 | E115: =(SUM($B113,$B114:D114)+E114*0.5)/$B112 -> 0.345675 | F115: =(SUM($B113,$B114:E114)+F114*0.5)/$B112 -> 0.345675 | G115: =(SUM($B113,$B114:F114)+G114*0.5)/$B112 -> 0.345675 | H115: =(SUM($B113,$B114:G114)+H114*0.5)/$B112 -> 0.345675 | I115: =(SUM($B113,$B114:H114)+I114*0.5)/$B112 -> 0.345675 | J115: =(SUM($B113,$B114:I114)+J114*0.5)/$B112 -> 0.345675 | K115: =(SUM($B113,$B114:J114)+K114*0.5)/$B112 -> 0.345675 | L115: =(SUM($B113,$B114:K114)+L114*0.5)/$B112 -> 0.345675 | M115: =(SUM($B113,$B114:L114)+M114*0.5)/$B112 -> 0.345675 | N115: =(SUM($B113,$B114:M114)+N114*0.5)/$B112 -> 0.345675 | O115: =(SUM($B113,$B114:N114)+O114*0.5)/$B112 -> 0.345675 | P115: =(SUM($B113,$B114:O114)+P114*0.5)/$B112 -> 0.345675 | Q115: =(SUM($B113,$B114:P114)+Q114*0.5)/$B112 -> 0.346889127 | R115: =(SUM($B113,$B114:Q114)+R114*0.5)/$B112 -> 0.348103254
A116: Closing Tax value | B116: =B113+B114-B115 -> 13.5554125 | C116: =C113+C114-C115 -> 13.3109875 | D116: 12.9653125 | E116: 12.6196375 | F116: 12.2739625 | G116: 11.9282875 | H116: 11.5826125 | I116: 11.2369375 | J116: 10.8912625 | K116: 10.5455875 | L116: 10.1999125 | M116: 9.8542375 | N116: 9.5085625 | O116: 9.1628875 | P116: 8.8172125 | Q116: 8.567453533 | R116: 8.219350279
A120: Grand Total | C120: =C$1 -> 2007 | D120: =D$1 -> 2008 | E120: 2009 | F120: 2010 | G120: 2011 | H120: 2012 | I120: 2013
A121: Opening Tax value | C121: =SUM(C26,C103,M113) -> 260.2299584 | D121: =SUM(D26,D103,N113) -> 299.0236135 | E121: 301.6510138 | F121: 304.7941259 | G121: 309.6133978 | H121: 335.3953369 | I121: 343.7488472
A122: Actual Tax Additions | C122: =SUM(C50,C104,M114) -> 71.701 | D122: =SUM(D50,D104,N114) -> 36.45282918 | E122: 36.31977755 | F122: 38.29681166 | G122: 62.26613016 | H122: 47.6325181
A123: Actual Tax Depreciation | C123: =SUM(C74,C105,M115) -> 32.90734494 | D123: =SUM(D74,D105,N115) -> 33.82542885 | E123: 33.17666552 | F123: 33.47753975 | G123: 36.484191 | H123: 39.27900778
A124: Closing Tax value | C124: =SUM(C98,C106,M116) -> 299.0236135 | D124: =SUM(D98,D106,N116) -> 301.6510138 | E124: 304.7941259 | F124: 309.6133978 | G124: 335.3953369 | H124: 343.7488472

Sheet PTRM Inputs
A1: ='GAAR 2008-12 Data Inputs'!$A$1 -> Multinet | C1: Check | D1: =SUM('Actual Data Inputs'!D1,'Regulatory Depn'!D1,'RAB Roll Forward ($Real 2012)'!D1) -> 0.0003098400011
A3: PTRM Inputs
A5: RAB
A6: Asset Class Name | B6: Opening Asset Value | C6: Remaining Life | D6: Standard Life
A7: ='RAB Roll Forward ($Real 2012)'!A4 -> Transmission and distribution | B7: ='RAB Roll Forward ($Real 2012)'!H4-B16 -> 521.1909705 | C7: =B7/'Regulatory Depn'!P230 -> 33.47501991 | D7: ='Regulatory Depn'!B65 -> 50
A8: ='RAB Roll Forward ($Real 2012)'!A5 -> Services | B8: ='RAB Roll Forward ($Real 2012)'!H5-B17 -> 364.1839695 | C8: =B8/'Regulatory Depn'!P232 -> 30.58169207 | D8: ='Regulatory Depn'!B66 -> 50
A9: ='RAB Roll Forward ($Real 2012)'!A6 -> Cathodic Protection | B9: ='RAB Roll Forward ($Real 2012)'!H6 -> 0.9846630618 | C9: =B9/'Regulatory Depn'!P234 -> 45.54845952 | D9: ='Regulatory Depn'!B67 -> 50
A10: ='RAB Roll Forward ($Real 2012)'!A7 -> Suppy Regs/Valve stations | B10: ='RAB Roll Forward ($Real 2012)'!H7 -> 22.9144168 | C10: =B10/'Regulatory Depn'!P235 -> 18.38186344 | D10: ='Regulatory Depn'!B68 -> 50
A11: ='RAB Roll Forward ($Real 2012)'!A8 -> Meters | B11: ='RAB Roll Forward ($Real 2012)'!H8 -> 96.95369911 | C11: =B11/'Regulatory Depn'!P236 -> 10.45611323 | D11: ='Regulatory Depn'!B69 -> 30
A12: ='RAB Roll Forward ($Real 2012)'!A9 -> Land and buildings | B12: ='RAB Roll Forward ($Real 2012)'!H9 -> 0 | C12: =D12 -> 50 | D12: ='Regulatory Depn'!B70 -> 50
A13: ='RAB Roll Forward ($Real 2012)'!A10 -> IT | B13: ='RAB Roll Forward ($Real 2012)'!H10 -> 10.9219188 | C13: =B13/'Regulatory Depn'!P239 -> 5 | D13: ='Regulatory Depn'!B72 -> 5
A14: ='RAB Roll Forward ($Real 2012)'!A11 -> SCADA | B14: ='RAB Roll Forward ($Real 2012)'!H11 -> -0.9707285785 | C14: 0 | D14: ='Regulatory Depn'!B71 -> 7
A15: ='RAB Roll Forward ($Real 2012)'!A12 -> Other | B15: ='RAB Roll Forward ($Real 2012)'!H12 -> 0.3356860739 | C15: =B15/'Regulatory Depn'!P240 -> 6.035055305 | D15: ='Regulatory Depn'!B73 -> 10
A16: ='Regulatory Depn'!A231 -> Pipeworks Writeoff (Mains) | B16: =SUM('Regulatory Depn'!P231:T231) -> 0 | C16: 5 | D16: =C16 -> 5
A17: ='Regulatory Depn'!A233 -> Pipeworks Writeoff (Services) | B17: =SUM('Regulatory Depn'!P233:T233) -> 0 | C17: 5 | D17: =C17 -> 5
B18: =SUM(B7:B17) -> 1016.514595
A21: REGULATED TAX ASSET VALUE
A22: ($m Nominal)
A24: ='Tax value Roll Forward'!A3 -> Depn Method - Declining Balance | B24: 2013 | C24: Tax Depn rate
B25: Opening Bal | C25: Declining Balance
A26: ='Tax value Roll Forward'!A5 -> Mains & Services | J26: Check
A27: ='Tax value Roll Forward'!A6 -> Additions 1996 to 1999 | B27: ='Tax value Roll Forward'!I6 -> 15.82964252 | C27: ='Tax value Roll Forward'!B6 -> 0.2 | I27: =SUM('PTRM Inputs by Tax Group'!B11,'PTRM Inputs by Tax Group'!B20) -> 15.82964252 | J27: =B27-I27 -> 0
A28: ='Tax value Roll Forward'!A7 -> Additions 1999 to 2002 | B28: ='Tax value Roll Forward'!I7 -> 29.2974322 | C28: ='Tax value Roll Forward'!B7 -> 0.03 | I28: ='PTRM Inputs by Tax Group'!B30 -> 29.2974322 | J28: =B28-I28 -> 0
A29: ='Tax value Roll Forward'!A8 -> Additions 2002 to 2006 | B29: ='Tax value Roll Forward'!I8 -> 62.19779556 | C29: ='Tax value Roll Forward'!B8 -> 0.075 | I29: ='PTRM Inputs by Tax Group'!B40 -> 62.19779556 | J29: 0
A30: ='Tax value Roll Forward'!A9 -> Additions 2006 onwards | B30: ='Tax value Roll Forward'!I9 -> 186.5425577 | C30: ='Tax value Roll Forward'!B9 -> 0.1 | I30: =SUM('PTRM Inputs by Tax Group'!B50,'PTRM Inputs by Tax Group'!B60) -> 186.5425577 | J30: 0
B31: =SUM(B27:B30) -> 293.8674279 | I31: =SUM(I27:I30) -> 293.8674279 | J31: 0
A33: ='Tax value Roll Forward'!A11 -> Meters
A34: ='Tax value Roll Forward'!A12 -> Additions 1999 to 2007 | B34: ='Tax value Roll Forward'!I12 -> 0.466903407 | C34: ='Tax value Roll Forward'!B12 -> 0.375 | I34: =SUM('PTRM Inputs by Tax Group'!B12,'PTRM Inputs by Tax Group'!B21,'PTRM Inputs by Tax Group'!B31,'PTRM Inputs by Tax Group'!B41,'PTRM Inputs by Tax Group'!B51) -> 0.466903407 | J34: =B34-I34 -> 0
A36: ='Tax value Roll Forward'!A14 -> Meters Domestic
A37: ='Tax value Roll Forward'!A15 -> Additions 2008 onwards | B37: ='Tax value Roll Forward'!I15 -> 6.871722409 | C37: ='Tax value Roll Forward'!B15 -> 0.375 | I37: ='PTRM Inputs by Tax Group'!B61 -> 6.871722409 | J37: =B37-I37 -> 0
A39: ='Tax value Roll Forward'!A17 -> Meters Industrial & Commercial
A40: ='Tax value Roll Forward'!A18 -> Additions 2008 onwards | B40: ='Tax value Roll Forward'!I18 -> 3.355338962 | C40: ='Tax value Roll Forward'!B18 -> 0.1333333333 | I40: ='PTRM Inputs by Tax Group'!B62 -> 3.355338962 | J40: =B40-I40 -> 0
A42: ='Tax value Roll Forward'!A20 -> Other Assets
A43: ='Tax value Roll Forward'!A21 -> Additions 1996 to 1999 | B43: ='Tax value Roll Forward'!I21 -> 0.0678495331 | C43: ='Tax value Roll Forward'!B21 -> 0.3 | I43: =SUM('PTRM Inputs by Tax Group'!B14,'PTRM Inputs by Tax Group'!B23) -> 0.0678495331 | J43: =B43-I43 -> 0
A44: ='Tax value Roll Forward'!A22 -> Additions 1999 to 2006 | B44: ='Tax value Roll Forward'!I22 -> 7.055405294 | C44: ='Tax value Roll Forward'!B22 -> 0.15 | I44: =SUM('PTRM Inputs by Tax Group'!B33,'PTRM Inputs by Tax Group'!B43) -> 7.055405294 | J44: 0
A45: ='Tax value Roll Forward'!A23 -> Additions 2006 onwards | B45: ='Tax value Roll Forward'!I23 -> 23.84484943 | C45: ='Tax value Roll Forward'!B23 -> 0.2 | I45: =SUM('PTRM Inputs by Tax Group'!B53,'PTRM Inputs by Tax Group'!B64) -> 23.84484943 | J45: 0
B46: =SUM(B43:B45) -> 30.96810425 | I46: =SUM(I43:I45) -> 30.96810425 | J46: 0
A48: ='Tax value Roll Forward'!A101 -> Depn Method - Fully Deductible | B48: 2013
B49: Opening Bal
A50: ='Tax value Roll Forward'!A102 -> Repairs | B50: ='Tax value Roll Forward'!I103 -> 0 | I50: =SUM('Tax value Roll Fwd by Tax Group'!R156,'Tax value Roll Fwd by Tax Group'!R257,'Tax value Roll Fwd by Tax Group'!R358,'Tax value Roll Fwd by Tax Group'!R459,'Tax value Roll Fwd by Tax Group'!R574) -> 0 | J50: =B50-I50 -> 0
A52: ='Tax value Roll Forward'!A110 -> Depn Method - Straight Line | B52: 2013 | C52: Tax Remaining | D52: Tax Standard
B53: Opening Bal | C53: Life | D53: Life
A55: ='Tax value Roll Forward'!A111 -> Land & Buildings | B55: ='Tax value Roll Forward'!S113 -> 8.219350279 | C55: =IF('Tax value Roll Forward'!R115=0,0,'Tax value Roll Forward'!S113/'Tax value Roll Forward'!R115) -> 23.61181685 | D55: ='Tax value Roll Forward'!B112 -> 40 | I55: =SUM('PTRM Inputs by Tax Group'!B13,'PTRM Inputs by Tax Group'!B22,'PTRM Inputs by Tax Group'!B32,'PTRM Inputs by Tax Group'!B42,'PTRM Inputs by Tax Group'!B52,'PTRM Inputs by Tax Group'!B63) -> 8.219350279 | J55: =B55-I55 -> 0
A57: Equity Raising Costs | B57: 0 | C57: 0 | D57: 5
A59: Check | B59: =ABS('Tax value Roll Forward'!I121-SUM(B31,B34,B37,B40,B46,B50,B55,B57)) -> 0 | I59: ='PTRM Inputs by Tax Group'!B71 -> 343.7488472 | J59: =SUM(B31,B34,B37,B40,B46,B50,B55)-I59 -> 0
A62: Land & Buildings | B62: 1996 | C62: 1997 | D62: 1998 | E62: 1999 | F62: 2000 | G62: 2001 | H62: 2002 | I62: 2003 | J62: 2004 | K62: 2005 | L62: 2006 | M62: 2007 | N62: 2008 | O62: 2009 | P62: 2010 | Q62: 2011 | R62: 2012
A63: Opening Tax value | B63: ='Tax value Roll Forward'!B113 -> 13.727
A64: Actual Tax Additions | B64: ='Tax value Roll Forward'!B114 -> 0 | C64: ='Tax value Roll Forward'!C114 -> 0.1 | D64: ='Tax value Roll Forward'!D114 -> 0 | E64: ='Tax value Roll Forward'!E114 -> 0 | F64: ='Tax value Roll Forward'!F114 -> 0 | G64: ='Tax value Roll Forward'!G114 -> 0 | H64: ='Tax value Roll Forward'!H114 -> 0 | I64: ='Tax value Roll Forward'!I114 -> 0 | J64: ='Tax value Roll Forward'!J114 -> 0 | K64: ='Tax value Roll Forward'!K114 -> 0 | L64: ='Tax value Roll Forward'!L114 -> 0 | M64: ='Tax value Roll Forward'!M114 -> 0 | N64: ='Tax value Roll Forward'!N114 -> 0 | O64: ='Tax value Roll Forward'!O114 -> 0 | P64: ='Tax value Roll Forward'!P114 -> 0 | Q64: ='Tax value Roll Forward'!Q114 -> 0.09713016 | R64: ='Tax value Roll Forward'!R114 -> 0

Sheet Tax value Roll Fwd by Tax Group
A1: ='GAAR 2008-12 Data Inputs'!$A$1 -> Multinet
A3: TAX DEPRECIATION - GROUP 1 ASSET CLASS
A5: Group 1 Asset Class | B5: OAV $m (MOD) | C5: Depn Life | D5: Depn Method
A6: Mains & Services | B6: 525.5 | C6: 7.5 | D6: Declining Balance
A7: Meters | B7: 98 | C7: 1 | D7: Fully Deductible
A8: Land & Buildings | B8: 13.727 | C8: 40 | D8: Straight Line
A9: Other Assets | B9: 3.8 | C9: 5 | D9: Declining Balance
B10: =SUM(B6:B9) -> 641.027
A12: Tax Depreciation Schedule $m (MOD)
A14: =A$6 -> Mains & Services
A15: OAV | B15: =B6 -> 525.5
A16: Depn Life | B16: =C6 -> 7.5
A17: Depn Method | B17: =D6 -> Declining Balance
A18: Depn Rate | B18: =IF(B17="Straight Line",1/B16,IF(B17="Declining Balance",1/B16*1.5,1)) -> 0.2
B20: 1996 | C20: 1997 | D20: 1998 | E20: 1999 | F20: 2000 | G20: 2001 | H20: 2002 | I20: 2003 | J20: 2004 | K20: 2005 | L20: 2006 | M20: 2007 | N20: 2008 | O20: 2009 | P20: 2010 | Q20: 2011 | R20: 2012
A21: Opening Asset Value | B21: =B15 -> 525.5 | C21: =B23 -> 472.95 | D21: =C23 -> 378.36 | E21: 302.688 | F21: 242.1504 | G21: 193.72032 | H21: 154.976256 | I21: 123.9810048 | J21: 99.18480384 | K21: 79.34784307 | L21: 63.47827446 | M21: 50.78261957 | N21: =M23 -> 40.62609565 | O21: =N23 -> 32.50087652 | P21: =O23 -> 26.00070122 | Q21: =P23 -> 20.80056097 | R21: =Q23 -> 16.64044878
A22: Tax Depreciation | B22: =B18*B21*0.5 -> 52.55 | C22: =$B18*C21 -> 94.59 | D22: =$B18*D21 -> 75.672 | E22: 60.5376 | F22: 48.43008 | G22: 38.744064 | H22: 30.9952512 | I22: 24.79620096 | J22: 19.83696077 | K22: 15.86956861 | L22: 12.69565489 | M22: 10.15652391 | N22: 8.125219131 | O22: 6.500175304 | P22: 5.200140244 | Q22: 4.160112195 | R22: 3.328089756
A23: Closing Asset Value | B23: =B21-B22 -> 472.95 | C23: =C21-C22 -> 378.36 | D23: =D21-D22 -> 302.688 | E23: 242.1504 | F23: 193.72032 | G23: 154.976256 | H23: 123.9810048 | I23: 99.18480384 | J23: 79.34784307 | K23: 63.47827446 | L23: 50.78261957 | M23: 40.62609565 | N23: =N21-N22 -> 32.50087652 | O23: =O21-O22 -> 26.00070122 | P23: =P21-P22 -> 20.80056097 | Q23: =Q21-Q22 -> 16.64044878 | R23: =R21-R22 -> 13.31235902
A25: =A$7 -> Meters
A26: OAV | B26: =B7 -> 98
A27: Depn Life | B27: =C7 -> 1
A28: Depn Method | B28: =D7 -> Fully Deductible
A29: Depn Rate | B29: =IF(B28="Straight Line",1/B27,IF(B28="Declining Balance",1/B27*1.5,1)) -> 1
B31: 1996 | C31: 1997 | D31: 1998 | E31: 1999 | F31: 2000 | G31: 2001 | H31: 2002 | I31: 2003 | J31: 2004 | K31: 2005 | L31: 2006 | M31: 2007 | N31: 2008 | O31: 2009 | P31: 2010 | Q31: 2011 | R31: 2012
A32: Opening Asset Value | B32: =B26 -> 98 | C32: =B34 -> 49 | D32: =C34 -> 0 | E32: 0 | F32: 0 | G32: 0 | H32: 0 | I32: 0 | J32: 0 | K32: 0 | L32: 0 | M32: 0 | N32: =M34 -> 0 | O32: =N34 -> 0 | P32: =O34 -> 0 | Q32: =P34 -> 0 | R32: =Q34 -> 0
A33: Tax Depreciation | B33: =B29*B32*0.5 -> 49 | C33: =$B29*C32 -> 49 | D33: 0 | E33: 0 | F33: 0 | G33: 0 | H33: 0 | I33: 0 | J33: 0 | K33: 0 | L33: 0 | M33: 0 | N33: 0 | O33: 0 | P33: 0 | Q33: 0 | R33: 0
A34: Closing Asset Value | B34: =B32-B33 -> 49 | C34: 0 | D34: 0 | E34: 0 | F34: 0 | G34: 0 | H34: 0 | I34: 0 | J34: 0 | K34: 0 | L34: 0 | M34: 0 | N34: =N32-N33 -> 0 | O34: =O32-O33 -> 0 | P34: =P32-P33 -> 0 | Q34: =Q32-Q33 -> 0 | R34: =R32-R33 -> 0
A36: =A$8 -> Land & Buildings
A37: OAV | B37: =B8 -> 13.727
A38: Depn Life | B38: =C8 -> 40
A39: Depn Method | B39: =D8 -> Straight Line
A40: Depn Rate | B40: =IF(B39="Straight Line",1/B38,IF(B39="Declining Balance",1/B38*1.5,1)) -> 0.025
B42: 1996 | C42: 1997 | D42: 1998 | E42: 1999 | F42: 2000 | G42: 2001 | H42: 2002 | I42: 2003 | J42: 2004 | K42: 2005 | L42: 2006 | M42: 2007 | N42: 2008 | O42: 2009 | P42: 2010 | Q42: 2011 | R42: 2012
A43: Opening Asset Value | B43: =B37 -> 13.727 | C43: =B45 -> 13.5554125 | D43: =C45 -> 13.2122375 | E43: 12.8690625 | F43: 12.5258875 | G43: 12.1827125 | H43: 11.8395375 | I43: 11.4963625 | J43: 11.1531875 | K43: 10.8100125 | L43: 10.4668375 | M43: 10.1236625 | N43: =M45 -> 9.7804875 | O43: =N45 -> 9.4373125 | P43: =O45 -> 9.0941375 | Q43: =P45 -> 8.7509625 | R43: =Q45 -> 8.4077875
A44: Tax Depreciation | B44: =B40*B43*0.5 -> 0.1715875 | C44: =IF(SUM($B44:B44)>=$B42,0,$B40*$B43) -> 0.343175 | D44: =IF(SUM($B44:C44)>=$B42,0,MIN(D43,$B40*$B43)) -> 0.343175 | E44: =IF(SUM($B44:D44)>=$B42,0,MIN(E43,$B40*$B43)) -> 0.343175 | F44: =IF(SUM($B44:E44)>=$B42,0,MIN(F43,$B40*$B43)) -> 0.343175 | G44: =IF(SUM($B44:F44)>=$B42,0,MIN(G43,$B40*$B43)) -> 0.343175 | H44: =IF(SUM($B44:G44)>=$B42,0,MIN(H43,$B40*$B43)) -> 0.343175 | I44: =IF(SUM($B44:H44)>=$B42,0,MIN(I43,$B40*$B43)) -> 0.343175 | J44: =IF(SUM($B44:I44)>=$B42,0,MIN(J43,$B40*$B43)) -> 0.343175 | K44: =IF(SUM($B44:J44)>=$B42,0,MIN(K43,$B40*$B43)) -> 0.343175 | L44: =IF(SUM($B44:K44)>=$B42,0,MIN(L43,$B40*$B43)) -> 0.343175 | M44: =IF(SUM($B44:L44)>=$B42,0,MIN(M43,$B40*$B43)) -> 0.343175 | N44: =IF(SUM($B44:M44)>=$B42,0,MIN(N43,$B40*$B43)) -> 0.343175 | O44: =IF(SUM($B44:N44)>=$B42,0,MIN(O43,$B40*$B43)) -> 0.343175 | P44: =IF(SUM($B44:O44)>=$B42,0,MIN(P43,$B40*$B43)) -> 0.343175 | Q44: =IF(SUM($B44:P44)>=$B42,0,MIN(Q43,$B40*$B43)) -> 0.343175 | R44: =IF(SUM($B44:Q44)>=$B42,0,MIN(R43,$B40*$B43)) -> 0.343175
A45: Closing Asset Value | B45: =B43-B44 -> 13.5554125 | C45: 13.2122375 | D45: 12.8690625 | E45: 12.5258875 | F45: 12.1827125 | G45: 11.8395375 | H45: 11.4963625 | I45: 11.1531875 | J45: 10.8100125 | K45: 10.4668375 | L45: 10.1236625 | M45: 9.7804875 | N45: =N43-N44 -> 9.4373125 | O45: =O43-O44 -> 9.0941375 | P45: =P43-P44 -> 8.7509625 | Q45: =Q43-Q44 -> 8.4077875 | R45: =R43-R44 -> 8.0646125
A47: =A$9 -> Other Assets
A48: OAV | B48: =B9 -> 3.8
A49: Depn Life | B49: =C9 -> 5
A50: Depn Method | B50: =D9 -> Declining Balance
A51: Depn Rate | B51: =IF(B50="Straight Line",1/B49,IF(B50="Declining Balance",1/B49*1.5,1)) -> 0.3
B53: 1996 | C53: 1997 | D53: 1998 | E53: 1999 | F53: 2000 | G53: 2001 | H53: 2002 | I53: 2003 | J53: 2004 | K53: 2005 | L53: 2006 | M53: 2007 | N53: 2008 | O53: 2009 | P53: 2010 | Q53: 2011 | R53: 2012
A54: Opening Asset Value | B54: =B48 -> 3.8 | C54: =B56 -> 3.23 | D54: =C56 -> 2.261 | E54: 1.5827 | F54: 1.10789 | G54: 0.775523 | H54: 0.5428661 | I54: 0.38000627 | J54: 0.266004389 | K54: 0.1862030723 | L54: 0.1303421506 | M54: 0.09123950543 | N54: =M56 -> 0.0638676538 | O54: =N56 -> 0.04470735766 | P54: =O56 -> 0.03129515036 | Q54: =P56 -> 0.02190660525 | R54: =Q56 -> 0.01533462368
A55: Tax Depreciation | B55: =B51*B54*0.5 -> 0.57 | C55: =$B51*C54 -> 0.969 | D55: 0.6783 | E55: 0.47481 | F55: 0.332367 | G55: 0.2326569 | H55: 0.16285983 | I55: 0.114001881 | J55: 0.0798013167 | K55: 0.05586092169 | L55: 0.03910264518 | M55: 0.02737185163 | N55: 0.01916029614 | O55: 0.0134122073 | P55: 0.009388545108 | Q55: 0.006571981576 | R55: 0.004600387103
A56: Closing Asset Value | B56: =B54-B55 -> 3.23 | C56: 2.261 | D56: 1.5827 | E56: 1.10789 | F56: 0.775523 | G56: 0.5428661 | H56: 0.38000627 | I56: 0.266004389 | J56: 0.1862030723 | K56: 0.1303421506 | L56: 0.09123950543 | M56: 0.0638676538 | N56: =N54-N55 -> 0.04470735766 | O56: =O54-O55 -> 0.03129515036 | P56: =P54-P55 -> 0.02190660525 | Q56: =Q54-Q55 -> 0.01533462368 | R56: =R54-R55 -> 0.01073423657
A59: Total Group 1 Asset Class Tax Depreciation
B61: 1996 | C61: 1997 | D61: 1998 | E61: 1999 | F61: 2000 | G61: 2001 | H61: 2002 | I61: 2003 | J61: 2004 | K61: 2005 | L61: 2006 | M61: 2007 | N61: 2008 | O61: 2009 | P61: 2010 | Q61: 2011 | R61: 2012
A62: Opening Asset Value | B62: =B21+B32+B43+B54 -> 641.027 | C62: =B64 -> 538.7354125 | D62: =C64 -> 393.8332375 | E62: 317.1397625 | F62: 255.7841775 | G62: 206.6785555 | H62: 167.3586596 | I62: 135.8573736 | J62: 110.6039957 | K62: 90.34405864 | L62: 74.07545411 | M62: 60.99752157 | N62: =M64 -> 50.47045081 | O62: =N64 -> 41.98289638 | P62: =O64 -> 35.12613387 | Q62: =P64 -> 29.57343008 | R62: =Q64 -> 25.0635709
A63: Tax Depreciation | B63: =B22+B33+B44+B55 -> 102.2915875 | C63: 144.902175 | D63: 76.693475 | E63: 61.355585 | F63: 49.105622 | G63: 39.3198959 | H63: 31.50128603 | I63: 25.25337784 | J63: 20.25993708 | K63: 16.26860454 | L63: 13.07793254 | M63: 10.52707076 | N63: =N22+N33+N44+N55 -> 8.487554427 | O63: =O22+O33+O44+O55 -> 6.856762512 | P63: =P22+P33+P44+P55 -> 5.552703789 | Q63: =Q22+Q33+Q44+Q55 -> 4.509859176 | R63: =R22+R33+R44+R55 -> 3.675865143
A64: Closing Asset Value | B64: =B62-B63 -> 538.7354125 | C64: 393.8332375 | D64: 317.1397625 | E64: 255.7841775 | F64: 206.6785555 | G64: 167.3586596 | H64: 135.8573736 | I64: 110.6039957 | J64: 90.34405864 | K64: 74.07545411 | L64: 60.99752157 | M64: 50.47045081 | N64: =N62-N63 -> 41.98289638 | O64: =O62-O63 -> 35.12613387 | P64: =P62-P63 -> 29.57343008 | Q64: =Q62-Q63 -> 25.0635709 | R64: =R62-R63 -> 21.38770576
A70: TAX DEPRECIATION - GROUP 2 ASSET CLASS
A72: Group 2 Asset Class | B72: OAV $m (MOD) | C72: Depn Life | D72: Depn Method
A73: Mains & Services | B73: 0 | C73: 7.5 | D73: Declining Balance
A74: Meters | B74: 0 | C74: 1 | D74: Fully Deductible
A75: Land & Buildings | B75: 0 | C75: 40 | D75: Straight Line
A76: Other Assets | B76: 0 | C76: 5 | D76: Declining Balance
A77: Repairs | B77: 0 | C77: 0 | D77: Fully Deductible
B78: =SUM(B73:B77) -> 0
A80: Tax Depreciation Schedule $m (MOD)
A82: =A73 -> Mains & Services
A83: OAV | B83: =B73 -> 0
A84: Depn Life | B84: =C73 -> 7.5
A85: Depn Method | B85: =D73 -> Declining Balance
A86: Depn Rate | B86: =IF(B85="Straight Line",1/B84,IF(B85="Declining Balance",1/B84*1.5,1)) -> 0.2
A88: Capital Expenditure | B88: 1996 | C88: 1997 | D88: 1998 | E88: 1999
A89: Capex $m (MOD) | B89: 14.4 | C89: 26.1 | D89: 17 | E89: 13.2
B91: 1996 | C91: 1997 | D91: 1998 | E91: 1999 | F91: 2000 | G91: 2001 | H91: 2002 | I91: 2003 | J91: 2004 | K91: 2005 | L91: 2006 | M91: 2007 | N91: 2008 | O91: 2009 | P91: 2010 | Q91: 2011 | R91: 2012
A92: Opening Asset Value | B92: =B83 -> 0 | C92: =B95 -> 12.96 | D92: 33.858 | E92: 42.3864 | F92: 45.78912 | G92: 36.631296 | H92: 29.3050368 | I92: 23.44402944 | J92: 18.75522355 | K92: 15.00417884 | L92: 12.00334307 | M92: 9.602674459 | N92: =M95 -> 7.682139567 | O92: =N95 -> 6.145711654 | P92: =O95 -> 4.916569323 | Q92: =P95 -> 3.933255458 | R92: =Q95 -> 3.146604367
A93: Capex | B93: =B89 -> 14.4 | C93: =C89 -> 26.1 | D93: =D89 -> 17 | E93: =E89 -> 13.2 | F93: 0 | G93: 0 | H93: 0 | I93: 0 | J93: 0 | K93: 0 | L93: 0 | M93: 0 | N93: 0 | O93: 0 | P93: 0 | Q93: 0 | R93: 0
A94: Tax Depn | B94: =IF($B86=1,B93+B92,B93*$B86*0.5) -> 1.44 | C94: =IF($B86=1,C93+C92,(C92+C93*0.5)*$B86) -> 5.202 | D94: =IF($B86=1,D93+D92,(D92+D93*0.5)*$B86) -> 8.4716 | E94: 9.79728 | F94: 9.157824 | G94: 7.3262592 | H94: 5.86100736 | I94: 4.688805888 | J94: 3.75104471 | K94: 3.000835768 | L94: 2.400668615 | M94: 1.920534892 | N94: 1.536427913 | O94: 1.229142331 | P94: 0.9833138646 | Q94: 0.7866510917 | R94: 0.6293208733
A95: Closing Asset Value | B95: =B92+B93-B94 -> 12.96 | C95: 33.858 | D95: 42.3864 | E95: 45.78912 | F95: 36.631296 | G95: 29.3050368 | H95: 23.44402944 | I95: 18.75522355 | J95: 15.00417884 | K95: 12.00334307 | L95: 9.602674459 | M95: 7.682139567 | N95: 6.145711654 | O95: 4.916569323 | P95: 3.933255458 | Q95: 3.146604367 | R95: 2.517283493
A97: =A74 -> Meters
A98: OAV | B98: =B74 -> 0
A99: Depn Life | B99: =C74 -> 1
A100: Depn Method | B100: =D74 -> Fully Deductible
A101: Depn Rate | B101: =IF(AND(B99=0,B100=""),0,IF(B100="Straight Line",1/B99,IF(B100="Declining Balance",1/B99*1.5,1))) -> 1
A103: Capital Expenditure | B103: 1996 | C103: 1997 | D103: 1998 | E103: 1999
A104: Capex $m (MOD) | B104: 2.1 | C104: 4.2 | D104: 5.2 | E104: 2.3
B106: 1996 | C106: 1997 | D106: 1998 | E106: 1999 | F106: 2000 | G106: 2001 | H106: 2002 | I106: 2003 | J106: 2004 | K106: 2005 | L106: 2006 | M106: 2007 | N106: 2008 | O106: 2009 | P106: 2010 | Q106: 2011 | R106: 2012
A107: Opening Asset Value | B107: =B98 -> 0 | C107: =B110 -> 0 | D107: 0 | E107: 0 | F107: 0 | G107: 0 | H107: 0 | I107: 0 | J107: 0 | K107: 0 | L107: 0 | M107: 0 | N107: =M110 -> 0 | O107: =N110 -> 0 | P107: =O110 -> 0 | Q107: =P110 -> 0 | R107: =Q110 -> 0
A108: Capex | B108: =B104 -> 2.1 | C108: =C104 -> 4.2 | D108: =D104 -> 5.2 | E108: =E104 -> 2.3 | F108: 0 | G108: 0 | H108: 0 | I108: 0 | J108: 0 | K108: 0 | L108: 0 | M108: 0 | N108: 0 | O108: 0 | P108: 0 | Q108: 0 | R108: 0
A109: Tax Depn | B109: =IF($B101=1,B108+B107,B108*$B101*0.5) -> 2.1 | C109: =IF($B101=1,C108+C107,(C107+C108*0.5)*$B101) -> 4.2 | D109: 5.2 | E109: 2.3 | F109: 0 | G109: 0 | H109: 0 | I109: 0 | J109: 0 | K109: 0 | L109: 0 | M109: 0 | N109: 0 | O109: 0 | P109: 0 | Q109: 0 | R109: 0
A110: Closing Asset Value | B110: =B107+B108-B109 -> 0 | C110: 0 | D110: 0 | E110: 0 | F110: 0 | G110: 0 | H110: 0 | I110: 0 | J110: 0 | K110: 0 | L110: 0 | M110: 0 | N110: 0 | O110: 0 | P110: 0 | Q110: 0 | R110: 0
A112: =A75 -> Land & Buildings
A113: OAV | B113: =B75 -> 0
A114: Depn Life | B114: =C75 -> 40
A115: Depn Method | B115: =D75 -> Straight Line
A116: Depn Rate | B116: =IF(AND(B114=0,B115=""),0,IF(B115="Straight Line",1/B114,IF(B115="Declining Balance",1/B114*1.5,1))) -> 0.025
A118: Capital Expenditure | B118: 1996 | C118: 1997 | D118: 1998 | E118: 1999
A119: Capex $m (MOD) | B119: 0 | C119: 0.1 | D119: 0 | E119: 0
B121: 1996 | C121: 1997 | D121: 1998 | E121: 1999 | F121: 2000 | G121: 2001 | H121: 2002 | I121: 2003 | J121: 2004 | K121: 2005 | L121: 2006 | M121: 2007 | N121: 2008 | O121: 2009 | P121: 2010 | Q121: 2011 | R121: 2012
A122: Opening Asset Value | B122: =B113 -> 0 | C122: =B125 -> 0 | D122: 0.09875 | E122: 0.09625 | F122: 0.09375 | G122: 0.09125 | H122: 0.08875 | I122: 0.08625 | J122: 0.08375 | K122: 0.08125 | L122: 0.07875 | M122: 0.07625 | N122: =M125 -> 0.07375 | O122: =N125 -> 0.07125 | P122: =O125 -> 0.06875 | Q122: =P125 -> 0.06625 | R122: =Q125 -> 0.06375
A123: Capex | B123: =B119 -> 0 | C123: =C119 -> 0.1 | D123: =D119 -> 0 | E123: =E119 -> 0 | F123: 0 | G123: 0 | H123: 0 | I123: 0 | J123: 0 | K123: 0 | L123: 0 | M123: 0 | N123: 0 | O123: 0 | P123: 0 | Q123: 0 | R123: 0
A124: Tax Depn | B124: =B123*$B116*0.5 -> 0 | C124: =(SUM($B123:B123)+C123*0.5)*$B116 -> 0.00125 | D124: =(SUM($B123:C123)+D123*0.5)*$B116 -> 0.0025 | E124: =(SUM($B123:D123)+E123*0.5)*$B116 -> 0.0025 | F124: =(SUM($B123:E123)+F123*0.5)*$B116 -> 0.0025 | G124: =(SUM($B123:F123)+G123*0.5)*$B116 -> 0.0025 | H124: =(SUM($B123:G123)+H123*0.5)*$B116 -> 0.0025 | I124: =(SUM($B123:H123)+I123*0.5)*$B116 -> 0.0025 | J124: =(SUM($B123:I123)+J123*0.5)*$B116 -> 0.0025 | K124: =(SUM($B123:J123)+K123*0.5)*$B116 -> 0.0025 | L124: =(SUM($B123:K123)+L123*0.5)*$B116 -> 0.0025 | M124: =(SUM($B123:L123)+M123*0.5)*$B116 -> 0.0025 | N124: =(SUM($B123:M123)+N123*0.5)*$B116 -> 0.0025 | O124: =(SUM($B123:N123)+O123*0.5)*$B116 -> 0.0025 | P124: =(SUM($B123:O123)+P123*0.5)*$B116 -> 0.0025 | Q124: =(SUM($B123:P123)+Q123*0.5)*$B116 -> 0.0025 | R124: =(SUM($B123:Q123)+R123*0.5)*$B116 -> 0.0025
A125: Closing Asset Value | B125: =B122+B123-B124 -> 0 | C125: 0.09875 | D125: 0.09625 | E125: 0.09375 | F125: 0.09125 | G125: 0.08875 | H125: 0.08625 | I125: 0.08375 | J125: 0.08125 | K125: 0.07875 | L125: 0.07625 | M125: 0.07375 | N125: 0.07125 | O125: 0.06875 | P125: 0.06625 | Q125: 0.06375 | R125: 0.06125
A127: =A76 -> Other Assets
A128: OAV | B128: =B76 -> 0
A129: Depn Life | B129: =C76 -> 5
A130: Depn Method | B130: =D76 -> Declining Balance
A131: Depn Rate | B131: =IF(AND(B129=0,B130=""),0,IF(B130="Straight Line",1/B129,IF(B130="Declining Balance",1/B129*1.5,1))) -> 0.3
A133: Capital Expenditure | B133: 1996 | C133: 1997 | D133: 1998 | E133: 1999
A134: Capex $m (MOD) | B134: 0.4 | C134: 0.2 | D134: 5 | E134: 3.2
B136: 1996 | C136: 1997 | D136: 1998 | E136: 1999 | F136: 2000 | G136: 2001 | H136: 2002 | I136: 2003 | J136: 2004 | K136: 2005 | L136: 2006 | M136: 2007 | N136: 2008 | O136: 2009 | P136: 2010 | Q136: 2011 | R136: 2012
A137: Opening Asset Value | B137: =B128 -> 0 | C137: =B140 -> 0.34 | D137: 0.408 | E137: 4.5356 | F137: 5.89492 | G137: 4.126444 | H137: 2.8885108 | I137: 2.02195756 | J137: 1.415370292 | K137: 0.9907592044 | L137: 0.6935314431 | M137: 0.4854720102 | N137: =M140 -> 0.3398304071 | O137: =N140 -> 0.237881285 | P137: =O140 -> 0.1665168995 | Q137: =P140 -> 0.1165618296 | R137: =Q140 -> 0.08159328075
A138: Capex | B138: =B134 -> 0.4 | C138: =C134 -> 0.2 | D138: =D134 -> 5 | E138: =E134 -> 3.2 | F138: 0 | G138: 0 | H138: 0 | I138: 0 | J138: 0 | K138: 0 | L138: 0 | M138: 0 | N138: 0 | O138: 0 | P138: 0 | Q138: 0 | R138: 0
A139: Tax Depn | B139: =IF($B131=1,B138+B137,B138*$B131*0.5) -> 0.06 | C139: =IF($B131=1,C138+C137,(C137+C138*0.5)*$B131) -> 0.132 | D139: 0.8724 | E139: 1.84068 | F139: 1.768476 | G139: 1.2379332 | H139: 0.86655324 | I139: 0.606587268 | J139: 0.4246110876 | K139: 0.2972277613 | L139: 0.2080594329 | M139: 0.145641603 | N139: 0.1019491221 | O139: 0.07136438549 | P139: 0.04995506985 | Q139: 0.03496854889 | R139: 0.02447798422
A140: Closing Asset Value | B140: =B137+B138-B139 -> 0.34 | C140: 0.408 | D140: 4.5356 | E140: 5.89492 | F140: 4.126444 | G140: 2.8885108 | H140: 2.02195756 | I140: 1.415370292 | J140: 0.9907592044 | K140: 0.6935314431 | L140: 0.4854720102 | M140: 0.3398304071 | N140: 0.237881285 | O140: 0.1665168995 | P140: 0.1165618296 | Q140: 0.08159328075 | R140: 0.05711529652
A143: =A77 -> Repairs
A144: OAV | B144: =B77 -> 0
A145: Depn Life | B145: =C77 -> 0
A146: Depn Method | B146: =D77 -> Fully Deductible
A147: Depn Rate | B147: =IF(AND(B145=0,B146=""),0,IF(B146="Straight Line",1/B145,IF(B146="Declining Balance",1/B145*1.5,1))) -> 1
A149: Capital Expenditure | B149: 1996 | C149: 1997 | D149: 1998 | E149: 1999
A150: Capex $m (MOD) | B150: 0 | C150: 0 | D150: 0 | E150: 0
B152: 1996 | C152: 1997 | D152: 1998 | E152: 1999 | F152: 2000 | G152: 2001 | H152: 2002 | I152: 2003 | J152: 2004 | K152: 2005 | L152: 2006 | M152: 2007 | N152: 2008 | O152: 2009 | P152: 2010 | Q152: 2011 | R152: 2012
A153: Opening Asset Value | B153: =B144 -> 0 | C153: =B156 -> 0 | D153: 0 | E153: 0 | F153: 0 | G153: 0 | H153: 0 | I153: 0 | J153: 0 | K153: 0 | L153: 0 | M153: 0 | N153: =M156 -> 0 | O153: =N156 -> 0 | P153: =O156 -> 0 | Q153: =P156 -> 0 | R153: =Q156 -> 0
A154: Capex | B154: =B150 -> 0 | C154: =C150 -> 0 | D154: =D150 -> 0 | E154: =E150 -> 0 | F154: 0 | G154: 0 | H154: 0 | I154: 0 | J154: 0 | K154: 0 | L154: 0 | M154: 0 | N154: 0 | O154: 0 | P154: 0 | Q154: 0 | R154: 0
A155: Tax Depn | B155: =IF($B147=1,B154+B153,B154*$B147*0.5) -> 0 | C155: =IF($B147=1,C154+C153,(C153+C154*0.5)*$B147) -> 0 | D155: 0 | E155: 0 | F155: 0 | G155: 0 | H155: 0 | I155: 0 | J155: 0 | K155: 0 | L155: 0 | M155: 0 | N155: 0 | O155: 0 | P155: 0 | Q155: 0 | R155: 0
A156: Closing Asset Value | B156: =B153+B154-B155 -> 0 | C156: 0 | D156: 0 | E156: 0 | F156: 0 | G156: 0 | H156: 0 | I156: 0 | J156: 0 | K156: 0 | L156: 0 | M156: 0 | N156: 0 | O156: 0 | P156: 0 | Q156: 0 | R156: 0
A159: Total Group 2 Asset Class Tax Depreciation
B161: 1996 | C161: 1997 | D161: 1998 | E161: 1999 | F161: 2000 | G161: 2001 | H161: 2002 | I161: 2003 | J161: 2004 | K161: 2005 | L161: 2006 | M161: 2007 | N161: 2008 | O161: 2009 | P161: 2010 | Q161: 2011 | R161: 2012
A162: Opening Asset Value | B162: =B92+B107+B122+B137+B153 -> 0 | C162: 13.3 | D162: 34.36475 | E162: 47.01825 | F162: 51.77779 | G162: 40.84899 | H162: 32.2822976 | I162: 25.552237 | J162: 20.25434384 | K162: 16.07618805 | L162: 12.77562452 | M162: 10.16439647 | N162: 8.095719974 | O162: 6.454842938 | P162: 5.151836222 | Q162: 4.116067288 | R162: 3.291947647
A163: Capital Expenditure | B163: =B93+B108+B123+B138+B154 -> 16.9 | C163: 30.6 | D163: 27.2 | E163: 18.7 | F163: 0 | G163: 0 | H163: 0 | I163: 0 | J163: 0 | K163: 0 | L163: 0 | M163: 0 | N163: 0 | O163: 0 | P163: 0 | Q163: 0 | R163: 0
A164: Tax Depreciation | B164: =B94+B109+B124+B139+B155 -> 3.6 | C164: 9.53525 | D164: 14.5465 | E164: 13.94046 | F164: 10.9288 | G164: 8.5666924 | H164: 6.7300606 | I164: 5.297893156 | J164: 4.178155798 | K164: 3.30056353 | L164: 2.611228048 | M164: 2.068676495 | N164: 1.640877036 | O164: 1.303006716 | P164: 1.035768934 | Q164: 0.8241196405 | R164: 0.6562988575
A165: Closing Asset Value | B165: =B162+B163-B164 -> 13.3 | C165: =C162+C163-C164 -> 34.36475 | D165: 47.01825 | E165: 51.77779 | F165: 40.84899 | G165: 32.2822976 | H165: 25.552237 | I165: 20.25434384 | J165: 16.07618805 | K165: 12.77562452 | L165: 10.16439647 | M165: 8.095719974 | N165: =N162+N163-N164 -> 6.454842938 | O165: =O162+O163-O164 -> 5.151836222 | P165: =P162+P163-P164 -> 4.116067288 | Q165: =Q162+Q163-Q164 -> 3.291947647 | R165: =R162+R163-R164 -> 2.63564879
A171: TAX DEPRECIATION - GROUP 3 ASSET CLASS
A173: Group 3 Asset Class | B173: OAV $m (MOD) | C173: Depn Life | D173: Depn Method
A174: Mains & Services | B174: 0 | C174: 50 | D174: Declining Balance
A175: Meters | B175: 0 | C175: 4 | D175: Declining Balance
A176: Land & Buildings | B176: 0 | C176: 40 | D176: Straight Line
A177: Other Assets | B177: 0 | C177: 10 | D177: Declining Balance
A178: Repairs | B178: 0 | C178: 0 | D178: Fully Deductible
B179: =SUM(B174:B178) -> 0
A181: Tax Depreciation Schedule $m (MOD)
A183: =A174 -> Mains & Services
A184: OAV | B184: =B174 -> 0
A185: Depn Life | B185: =C174 -> 50
A186: Depn Method | B186: =D174 -> Declining Balance
A187: Depn Rate | B187: =IF(B186="Straight Line",1/B185,IF(B186="Declining Balance",1/B185*1.5,1)) -> 0.03
A189: Capital Expenditure | B189: 1999 | C189: 2000 | D189: 2001 | E189: 2002
A190: Capex $m (MOD) | B190: 5.1 | C190: 10.6 | D190: 16.9 | E190: 9.313263345
B192: 1996 | C192: 1997 | D192: 1998 | E192: 1999 | F192: 2000 | G192: 2001 | H192: 2002 | I192: 2003 | J192: 2004 | K192: 2005 | L192: 2006 | M192: 2007 | N192: 2008 | O192: 2009 | P192: 2010 | Q192: 2011 | R192: 2012
A193: Opening Asset Value | B193: =B184 -> 0 | C193: =B196 -> 0 | D193: 0 | E193: 0 | F193: 5.0235 | G193: 15.313795 | H193: 31.50088115 | I193: 39.72941911 | J193: 38.53753654 | K193: 37.38141044 | L193: 36.25996813 | M193: 35.17216908 | N193: 34.11700401 | O193: 33.09349389 | P193: 32.10068907 | Q193: 31.1376684 | R193: 30.20353835
A194: Capex | B194: 0 | C194: 0 | D194: 0 | E194: =B190 -> 5.1 | F194: =C190 -> 10.6 | G194: =D190 -> 16.9 | H194: =E190 -> 9.313263345 | I194: 0 | J194: 0 | K194: 0 | L194: 0 | M194: 0 | N194: 0 | O194: 0 | P194: 0 | Q194: 0 | R194: 0
A195: Tax Depn | B195: =IF($B187=1,B194+B193,B194*$B187*0.5) -> 0 | C195: =IF($B187=1,C194+C193,(C193+C194*0.5)*$B187) -> 0 | D195: 0 | E195: 0.0765 | F195: 0.309705 | G195: 0.71291385 | H195: 1.084725385 | I195: 1.191882573 | J195: 1.156126096 | K195: 1.121442313 | L195: 1.087799044 | M195: 1.055165073 | N195: 1.02351012 | O195: 0.9928048167 | P195: 0.9630206722 | Q195: 0.9341300521 | R195: 0.9061061505
A196: Closing Asset Value | B196: =B193+B194-B195 -> 0 | C196: 0 | D196: 0 | E196: 5.0235 | F196: 15.313795 | G196: 31.50088115 | H196: 39.72941911 | I196: 38.53753654 | J196: 37.38141044 | K196: 36.25996813 | L196: 35.17216908 | M196: 34.11700401 | N196: 33.09349389 | O196: 32.10068907 | P196: 31.1376684 | Q196: 30.20353835 | R196: 29.2974322
A198: =A175 -> Meters
A199: OAV | B199: =B175 -> 0
A200: Depn Life | B200: =C175 -> 4
A201: Depn Method | B201: =D175 -> Declining Balance
A202: Depn Rate | B202: =IF(AND(B200=0,B201=""),0,IF(B201="Straight Line",1/B200,IF(B201="Declining Balance",1/B200*1.5,1))) -> 0.375
A204: Capital Expenditure | B204: 1999 | C204: 2000 | D204: 2001 | E204: 2002
A205: Capex $m (MOD) | B205: 0.9 | C205: 3 | D205: 3.4 | E205: 1.57849536
B207: 1996 | C207: 1997 | D207: 1998 | E207: 1999 | F207: 2000 | G207: 2001 | H207: 2002 | I207: 2003 | J207: 2004 | K207: 2005 | L207: 2006 | M207: 2007 | N207: 2008 | O207: 2009 | P207: 2010 | Q207: 2011 | R207: 2012
A208: Opening Asset Value | B208: =B199 -> 0 | C208: =B211 -> 0 | D208: 0 | E208: 0 | F208: 0.73125 | G208: 2.89453125 | H208: 4.571582031 | I208: 4.13976625 | J208: 2.587353906 | K208: 1.617096191 | L208: 1.01068512 | M208: 0.6316781997 | N208: 0.3947988748 | O208: 0.2467492968 | P208: 0.1542183105 | Q208: 0.09638644405 | R208: 0.06024152753
A209: Capex | B209: 0 | C209: 0 | D209: 0 | E209: =B205 -> 0.9 | F209: =C205 -> 3 | G209: =D205 -> 3.4 | H209: =E205 -> 1.57849536 | I209: 0 | J209: 0 | K209: 0 | L209: 0 | M209: 0 | N209: 0 | O209: 0 | P209: 0 | Q209: 0 | R209: 0
A210: Tax Depn | B210: =IF($B202=1,B209+B208,B209*$B202*0.5) -> 0 | C210: =IF($B202=1,C209+C208,(C208+C209*0.5)*$B202) -> 0 | D210: 0 | E210: 0.16875 | F210: 0.83671875 | G210: 1.722949219 | H210: 2.010311142 | I210: 1.552412344 | J210: 0.9702577147 | K210: 0.6064110717 | L210: 0.3790069198 | M210: 0.2368793249 | N210: 0.1480495781 | O210: 0.09253098628 | P210: 0.05783186643 | Q210: 0.03614491652 | R210: 0.02259057282
A211: Closing Asset Value | B211: =B208+B209-B210 -> 0 | C211: 0 | D211: 0 | E211: 0.73125 | F211: 2.89453125 | G211: 4.571582031 | H211: 4.13976625 | I211: 2.587353906 | J211: 1.617096191 | K211: 1.01068512 | L211: 0.6316781997 | M211: 0.3947988748 | N211: 0.2467492968 | O211: 0.1542183105 | P211: 0.09638644405 | Q211: 0.06024152753 | R211: 0.03765095471
A213: =A176 -> Land & Buildings
A214: OAV | B214: =B176 -> 0
A215: Depn Life | B215: =C176 -> 40
A216: Depn Method | B216: =D176 -> Straight Line
A217: Depn Rate | B217: =IF(AND(B215=0,B216=""),0,IF(B216="Straight Line",1/B215,IF(B216="Declining Balance",1/B215*1.5,1))) -> 0.025
A219: Capital Expenditure | B219: 1999 | C219: 2000 | D219: 2001 | E219: 2002
A220: Capex $m (MOD) | B220: 0 | C220: 0 | D220: 0 | E220: 0
B222: 1996 | C222: 1997 | D222: 1998 | E222: 1999 | F222: 2000 | G222: 2001 | H222: 2002 | I222: 2003 | J222: 2004 | K222: 2005 | L222: 2006 | M222: 2007 | N222: 2008 | O222: 2009 | P222: 2010 | Q222: 2011 | R222: 2012
A223: Opening Asset Value | B223: =B214 -> 0 | C223: =B226 -> 0 | D223: 0 | E223: 0 | F223: 0 | G223: 0 | H223: 0 | I223: 0 | J223: 0 | K223: 0 | L223: 0 | M223: 0 | N223: 0 | O223: 0 | P223: 0 | Q223: 0 | R223: 0
A224: Capex | B224: 0 | C224: 0 | D224: 0 | E224: =B220 -> 0 | F224: =C220 -> 0 | G224: =D220 -> 0 | H224: =E220 -> 0 | I224: 0 | J224: 0 | K224: 0 | L224: 0 | M224: 0 | N224: 0 | O224: 0 | P224: 0 | Q224: 0 | R224: 0
A225: Tax Depn | B225: =B224*$B217*0.5 -> 0 | C225: =(SUM($B224:B224)+C224*0.5)*$B217 -> 0 | D225: =(SUM($B224:C224)+D224*0.5)*$B217 -> 0 | E225: =(SUM($B224:D224)+E224*0.5)*$B217 -> 0 | F225: =(SUM($B224:E224)+F224*0.5)*$B217 -> 0 | G225: =(SUM($B224:F224)+G224*0.5)*$B217 -> 0 | H225: =(SUM($B224:G224)+H224*0.5)*$B217 -> 0 | I225: =(SUM($B224:H224)+I224*0.5)*$B217 -> 0 | J225: =(SUM($B224:I224)+J224*0.5)*$B217 -> 0 | K225: =(SUM($B224:J224)+K224*0.5)*$B217 -> 0 | L225: =(SUM($B224:K224)+L224*0.5)*$B217 -> 0 | M225: =(SUM($B224:L224)+M224*0.5)*$B217 -> 0 | N225: =(SUM($B224:M224)+N224*0.5)*$B217 -> 0 | O225: =(SUM($B224:N224)+O224*0.5)*$B217 -> 0 | P225: =(SUM($B224:O224)+P224*0.5)*$B217 -> 0 | Q225: =(SUM($B224:P224)+Q224*0.5)*$B217 -> 0 | R225: =(SUM($B224:Q224)+R224*0.5)*$B217 -> 0
A226: Closing Asset Value | B226: =B223+B224-B225 -> 0 | C226: 0 | D226: 0 | E226: 0 | F226: 0 | G226: 0 | H226: 0 | I226: 0 | J226: 0 | K226: 0 | L226: 0 | M226: 0 | N226: 0 | O226: 0 | P226: 0 | Q226: 0 | R226: 0
A228: =A177 -> Other Assets
A229: OAV | B229: =B177 -> 0
A230: Depn Life | B230: =C177 -> 10
A231: Depn Method | B231: =D177 -> Declining Balance
A232: Depn Rate | B232: =IF(AND(B230=0,B231=""),0,IF(B231="Straight Line",1/B230,IF(B231="Declining Balance",1/B230*1.5,1))) -> 0.15
A234: Capital Expenditure | B234: 1999 | C234: 2000 | D234: 2001 | E234: 2002
A235: Capex $m (MOD) | B235: 1.2 | C235: 9.3 | D235: 5.6 | E235: 5.76050376
B237: 1996 | C237: 1997 | D237: 1998 | E237: 1999 | F237: 2000 | G237: 2001 | H237: 2002 | I237: 2003 | J237: 2004 | K237: 2005 | L237: 2006 | M237: 2007 | N237: 2008 | O237: 2009 | P237: 2010 | Q237: 2011 | R237: 2012
A238: Opening Asset Value | B238: =B229 -> 0 | C238: =B241 -> 0 | D238: 0 | E238: 0 | F238: 1.11 | G238: 9.546 | H238: 13.2941 | I238: 16.62845098 | J238: 14.13418333 | K238: 12.01405583 | L238: 10.21194746 | M238: 8.680155338 | N238: 7.378132038 | O238: 6.271412232 | P238: 5.330700397 | Q238: 4.531095338 | R238: 3.851431037
A239: Capex | B239: 0 | C239: 0 | D239: 0 | E239: =B235 -> 1.2 | F239: =C235 -> 9.3 | G239: =D235 -> 5.6 | H239: =E235 -> 5.76050376 | I239: 0 | J239: 0 | K239: 0 | L239: 0 | M239: 0 | N239: 0 | O239: 0 | P239: 0 | Q239: 0 | R239: 0
A240: Tax Depn | B240: =IF($B232=1,B239+B238,B239*$B232*0.5) -> 0 | C240: =IF($B232=1,C239+C238,(C238+C239*0.5)*$B232) -> 0 | D240: 0 | E240: 0.09 | F240: 0.864 | G240: 1.8519 | H240: 2.426152782 | I240: 2.494267647 | J240: 2.1201275 | K240: 1.802108375 | L240: 1.531792119 | M240: 1.302023301 | N240: 1.106719806 | O240: 0.9407118348 | P240: 0.7996050596 | Q240: 0.6796643006 | R240: 0.5777146555
A241: Closing Asset Value | B241: =B238+B239-B240 -> 0 | C241: 0 | D241: 0 | E241: 1.11 | F241: 9.546 | G241: 13.2941 | H241: 16.62845098 | I241: 14.13418333 | J241: 12.01405583 | K241: 10.21194746 | L241: 8.680155338 | M241: 7.378132038 | N241: 6.271412232 | O241: 5.330700397 | P241: 4.531095338 | Q241: 3.851431037 | R241: 3.273716381
A244: =A178 -> Repairs
A245: OAV | B245: =B178 -> 0
A246: Depn Life | B246: =C178 -> 0
A247: Depn Method | B247: =D178 -> Fully Deductible
A248: Depn Rate | B248: =IF(AND(B246=0,B247=""),0,IF(B247="Straight Line",1/B246,IF(B247="Declining Balance",1/B246*1.5,1))) -> 1
A250: Capital Expenditure | B250: 1999 | C250: 2000 | D250: 2001 | E250: 2002
A251: Capex $m (MOD) | B251: 0 | C251: 0 | D251: 0 | E251: 0
B253: 1996 | C253: 1997 | D253: 1998 | E253: 1999 | F253: 2000 | G253: 2001 | H253: 2002 | I253: 2003 | J253: 2004 | K253: 2005 | L253: 2006 | M253: 2007 | N253: 2008 | O253: 2009 | P253: 2010 | Q253: 2011 | R253: 2012
A254: Opening Asset Value | B254: =B245 -> 0 | C254: =B257 -> 0 | D254: 0 | E254: 0 | F254: 0 | G254: 0 | H254: 0 | I254: 0 | J254: 0 | K254: 0 | L254: 0 | M254: 0 | N254: 0 | O254: 0 | P254: 0 | Q254: 0 | R254: 0
A255: Capex | B255: 0 | C255: 0 | D255: 0 | E255: =B251 -> 0 | F255: =C251 -> 0 | G255: =D251 -> 0 | H255: =E251 -> 0 | I255: 0 | J255: 0 | K255: 0 | L255: 0 | M255: 0 | N255: 0 | O255: 0 | P255: 0 | Q255: 0 | R255: 0
A256: Tax Depn | B256: =IF($B248=1,B255+B254,B255*$B248*0.5) -> 0 | C256: =IF($B248=1,C255+C254,(C254+C255*0.5)*$B248) -> 0 | D256: 0 | E256: 0 | F256: 0 | G256: 0 | H256: 0 | I256: 0 | J256: 0 | K256: 0 | L256: 0 | M256: 0 | N256: 0 | O256: 0 | P256: 0 | Q256: 0 | R256: 0
A257: Closing Asset Value | B257: =B254+B255-B256 -> 0 | C257: 0 | D257: 0 | E257: 0 | F257: 0 | G257: 0 | H257: 0 | I257: 0 | J257: 0 | K257: 0 | L257: 0 | M257: 0 | N257: 0 | O257: 0 | P257: 0 | Q257: 0 | R257: 0
A260: Total Group 3 Asset Class Tax Depreciation
B262: 1996 | C262: 1997 | D262: 1998 | E262: 1999 | F262: 2000 | G262: 2001 | H262: 2002 | I262: 2003 | J262: 2004 | K262: 2005 | L262: 2006 | M262: 2007 | N262: 2008 | O262: 2009 | P262: 2010 | Q262: 2011 | R262: 2012
A263: Opening Asset Value | B263: =B193+B208+B223+B238+B254 -> 0 | C263: 0 | D263: 0 | E263: 0 | F263: 6.86475 | G263: 27.75432625 | H263: 49.36656318 | I263: 60.49763634 | J263: 55.25907377 | K263: 51.01256246 | L263: 47.4826007 | M263: 44.48400262 | N263: 41.88993492 | O263: 39.61165542 | P263: 37.58560778 | Q263: 35.76515018 | R263: 34.11521091
A264: Capital Expenditure | B264: =B194+B209+B224+B239+B255 -> 0 | C264: 0 | D264: 0 | E264: 7.2 | F264: 22.9 | G264: 25.9 | H264: 16.65226247 | I264: 0 | J264: 0 | K264: 0 | L264: 0 | M264: 0 | N264: 0 | O264: 0 | P264: 0 | Q264: 0 | R264: 0
A265: Tax Depreciation | B265: =B195+B210+B225+B240+B256 -> 0 | C265: 0 | D265: 0 | E265: 0.33525 | F265: 2.01042375 | G265: 4.287763069 | H265: 5.521189308 | I265: 5.238562564 | J265: 4.246511311 | K265: 3.52996176 | L265: 2.998598082 | M265: 2.594067698 | N265: 2.278279504 | O265: 2.026047638 | P265: 1.820457598 | Q265: 1.649939269 | R265: 1.506411379
A266: Closing Asset Value | B266: =B263+B264-B265 -> 0 | C266: 0 | D266: 0 | E266: 6.86475 | F266: 27.75432625 | G266: 49.36656318 | H266: 60.49763634 | I266: 55.25907377 | J266: 51.01256246 | K266: 47.4826007 | L266: 44.48400262 | M266: 41.88993492 | N266: 39.61165542 | O266: 37.58560778 | P266: 35.76515018 | Q266: 34.11521091 | R266: 32.60879954
... 254 more rows

Sheet PTRM Inputs by Tax Group
A1: ='GAAR 2008-12 Data Inputs'!$A$1 -> Multinet | C1: Check | D1: =SUM('Actual Data Inputs'!D1,'RAB Roll Forward ($Real 2012)'!D1) -> 0.0003098400004
A3: PTRM Inputs
A6: REGULATED TAX ASSET VALUE
A7: ($m Nominal)
A9: OAV 1996
A10: Group 1 Asset Class | B10: 2013 OAV $m (MOD) | C10: Depn Life | D10: Depn Rate | E10: Depn Method
A11: ='Tax value Roll Fwd by Tax Group'!A6 -> Mains & Services | B11: ='Tax value Roll Fwd by Tax Group'!R23 -> 13.31235902 | C11: ='Tax value Roll Fwd by Tax Group'!C6 -> 7.5 | D11: =IF(E11="Straight Line",1/C11,IF(E11="Declining Balance",1/C11*1.5,1)) -> 0.2 | E11: ='Tax value Roll Fwd by Tax Group'!D6 -> Declining Balance
A12: ='Tax value Roll Fwd by Tax Group'!A7 -> Meters | B12: ='Tax value Roll Fwd by Tax Group'!R34 -> 0 | C12: ='Tax value Roll Fwd by Tax Group'!C7 -> 1 | D12: =IF(E12="Straight Line",1/C12,IF(E12="Declining Balance",1/C12*1.5,1)) -> 1 | E12: ='Tax value Roll Fwd by Tax Group'!D7 -> Fully Deductible
A13: ='Tax value Roll Fwd by Tax Group'!A8 -> Land & Buildings | B13: ='Tax value Roll Fwd by Tax Group'!R45 -> 8.0646125 | C13: ='Tax value Roll Fwd by Tax Group'!C8 -> 40 | D13: =IF(E13="Straight Line",1/C13,IF(E13="Declining Balance",1/C13*1.5,1)) -> 0.025 | E13: ='Tax value Roll Fwd by Tax Group'!D8 -> Straight Line
A14: ='Tax value Roll Fwd by Tax Group'!A9 -> Other Assets | B14: ='Tax value Roll Fwd by Tax Group'!R56 -> 0.01073423657 | C14: ='Tax value Roll Fwd by Tax Group'!C9 -> 5 | D14: =IF(E14="Straight Line",1/C14,IF(E14="Declining Balance",1/C14*1.5,1)) -> 0.3 | E14: ='Tax value Roll Fwd by Tax Group'!D9 -> Declining Balance
B15: =SUM(B11:B14) -> 21.38770576
A16: Check | B16: =B15-'Tax value Roll Fwd by Tax Group'!R64 -> 0
A18: Capex 1996 to 1999 PRE BTR
A19: Group 2 Asset Class | B19: 2013 OAV $m (MOD) | C19: Depn Life | D19: Depn rate | E19: Depn Method
A20: ='Tax value Roll Fwd by Tax Group'!A73 -> Mains & Services | B20: ='Tax value Roll Fwd by Tax Group'!R95 -> 2.517283493 | C20: ='Tax value Roll Fwd by Tax Group'!C73 -> 7.5 | D20: =IF(E20="Straight Line",1/C20,IF(E20="Declining Balance",1/C20*1.5,1)) -> 0.2 | E20: ='Tax value Roll Fwd by Tax Group'!D73 -> Declining Balance
A21: ='Tax value Roll Fwd by Tax Group'!A74 -> Meters | B21: ='Tax value Roll Fwd by Tax Group'!R110 -> 0 | C21: ='Tax value Roll Fwd by Tax Group'!C74 -> 1 | D21: 1 | E21: ='Tax value Roll Fwd by Tax Group'!D74 -> Fully Deductible
A22: ='Tax value Roll Fwd by Tax Group'!A75 -> Land & Buildings | B22: ='Tax value Roll Fwd by Tax Group'!R125 -> 0.06125 | C22: ='Tax value Roll Fwd by Tax Group'!C75 -> 40 | D22: 0.025 | E22: ='Tax value Roll Fwd by Tax Group'!D75 -> Straight Line
A23: ='Tax value Roll Fwd by Tax Group'!A76 -> Other Assets | B23: ='Tax value Roll Fwd by Tax Group'!R140 -> 0.05711529652 | C23: ='Tax value Roll Fwd by Tax Group'!C76 -> 5 | D23: 0.3 | E23: ='Tax value Roll Fwd by Tax Group'!D76 -> Declining Balance
A24: ='Tax value Roll Fwd by Tax Group'!A77 -> Repairs | B24: ='Tax value Roll Fwd by Tax Group'!R156 -> 0 | C24: ='Tax value Roll Fwd by Tax Group'!C77 -> 0 | D24: 1 | E24: ='Tax value Roll Fwd by Tax Group'!D77 -> Fully Deductible
B25: =SUM(B20:B24) -> 2.63564879
A26: Check | B26: =B25-'Tax value Roll Fwd by Tax Group'!R165 -> 0
A28: Capex 1999 to 2002 Post BTR
A29: Group 3 Asset Class | B29: 2013 OAV $m (MOD) | C29: Depn Life | D29: Depn rate | E29: Depn Method
A30: ='Tax value Roll Fwd by Tax Group'!A174 -> Mains & Services | B30: ='Tax value Roll Fwd by Tax Group'!R196 -> 29.2974322 | C30: ='Tax value Roll Fwd by Tax Group'!C174 -> 50 | D30: =IF(E30="Straight Line",1/C30,IF(E30="Declining Balance",1/C30*1.5,1)) -> 0.03 | E30: ='Tax value Roll Fwd by Tax Group'!D174 -> Declining Balance
A31: ='Tax value Roll Fwd by Tax Group'!A175 -> Meters | B31: ='Tax value Roll Fwd by Tax Group'!R211 -> 0.03765095471 | C31: ='Tax value Roll Fwd by Tax Group'!C175 -> 4 | D31: 0.375 | E31: ='Tax value Roll Fwd by Tax Group'!D175 -> Declining Balance
A32: ='Tax value Roll Fwd by Tax Group'!A176 -> Land & Buildings | B32: ='Tax value Roll Fwd by Tax Group'!R226 -> 0 | C32: ='Tax value Roll Fwd by Tax Group'!C176 -> 40 | D32: 0.025 | E32: ='Tax value Roll Fwd by Tax Group'!D176 -> Straight Line
A33: ='Tax value Roll Fwd by Tax Group'!A177 -> Other Assets | B33: ='Tax value Roll Fwd by Tax Group'!R241 -> 3.273716381 | C33: ='Tax value Roll Fwd by Tax Group'!C177 -> 10 | D33: 0.15 | E33: ='Tax value Roll Fwd by Tax Group'!D177 -> Declining Balance
A34: ='Tax value Roll Fwd by Tax Group'!A178 -> Repairs | B34: ='Tax value Roll Fwd by Tax Group'!R257 -> 0 | C34: ='Tax value Roll Fwd by Tax Group'!C178 -> 0 | D34: 1 | E34: ='Tax value Roll Fwd by Tax Group'!D178 -> Fully Deductible
B35: =SUM(B30:B34) -> 32.60879954
A36: Check | B36: =B35-'Tax value Roll Fwd by Tax Group'!R266 -> 0
A38: Capex 2002 to 2006
A39: Group 4 Asset Class | B39: 2013 OAV $m (MOD) | C39: Depn Life | D39: Depn rate | E39: Depn Method
A40: ='Tax value Roll Fwd by Tax Group'!A275 -> Mains & Services | B40: ='Tax value Roll Fwd by Tax Group'!R297 -> 62.19779556 | C40: ='Tax value Roll Fwd by Tax Group'!C275 -> 20 | D40: =IF(E40="Straight Line",1/C40,IF(E40="Declining Balance",1/C40*1.5,1)) -> 0.075 | E40: ='Tax value Roll Fwd by Tax Group'!D275 -> Declining Balance
A41: ='Tax value Roll Fwd by Tax Group'!A276 -> Meters | B41: ='Tax value Roll Fwd by Tax Group'!R312 -> 0.2214144565 | C41: ='Tax value Roll Fwd by Tax Group'!C276 -> 4 | D41: 0.375 | E41: ='Tax value Roll Fwd by Tax Group'!D276 -> Declining Balance
A42: ='Tax value Roll Fwd by Tax Group'!A277 -> Land & Buildings | B42: ='Tax value Roll Fwd by Tax Group'!R327 -> 0 | C42: ='Tax value Roll Fwd by Tax Group'!C277 -> 40 | D42: 0.025 | E42: ='Tax value Roll Fwd by Tax Group'!D277 -> Straight Line
A43: ='Tax value Roll Fwd by Tax Group'!A278 -> Other Assets | B43: ='Tax value Roll Fwd by Tax Group'!R342 -> 3.781688913 | C43: ='Tax value Roll Fwd by Tax Group'!C278 -> 10 | D43: 0.15 | E43: ='Tax value Roll Fwd by Tax Group'!D278 -> Declining Balance
A44: ='Tax value Roll Fwd by Tax Group'!A279 -> Repairs | B44: ='Tax value Roll Fwd by Tax Group'!R358 -> 0 | C44: ='Tax value Roll Fwd by Tax Group'!C279 -> 0 | D44: 1 | E44: ='Tax value Roll Fwd by Tax Group'!D279 -> Fully Deductible
B45: =SUM(B40:B44) -> 66.20089893
A46: Check | B46: =B45-'Tax value Roll Fwd by Tax Group'!R367 -> 0
A48: Capex 2006 to 2007
A49: Group 5 Asset Class | B49: 2013 OAV $m (MOD) | C49: Depn Life | D49: Depn rate | E49: Depn Method
A50: ='Tax value Roll Fwd by Tax Group'!A376 -> Mains & Services | B50: ='Tax value Roll Fwd by Tax Group'!R398 -> 54.58000205 | C50: ='Tax value Roll Fwd by Tax Group'!C376 -> 20 | D50: =IF(E50="Straight Line",1/C50,IF(E50="Declining Balance",1/C50*2,1)) -> 0.1 | E50: ='Tax value Roll Fwd by Tax Group'!D376 -> Declining Balance
A51: ='Tax value Roll Fwd by Tax Group'!A377 -> Meters | B51: ='Tax value Roll Fwd by Tax Group'!R413 -> 0.2078379958 | C51: ='Tax value Roll Fwd by Tax Group'!C377 -> 4 | D51: =IF(E51="Straight Line",1/C51,IF(E51="Declining Balance",1/C51*1.5,1)) -> 0.375 | E51: ='Tax value Roll Fwd by Tax Group'!D377 -> Declining Balance
A52: ='Tax value Roll Fwd by Tax Group'!A378 -> Land & Buildings | B52: ='Tax value Roll Fwd by Tax Group'!R428 -> 0 | C52: ='Tax value Roll Fwd by Tax Group'!C378 -> 40 | D52: =IF(E52="Straight Line",1/C52,IF(E52="Declining Balance",1/C52*2,1)) -> 0.025 | E52: ='Tax value Roll Fwd by Tax Group'!D378 -> Straight Line
A53: ='Tax value Roll Fwd by Tax Group'!A379 -> Other Assets | B53: ='Tax value Roll Fwd by Tax Group'!R443 -> 0.4143502143 | C53: ='Tax value Roll Fwd by Tax Group'!C379 -> 10 | D53: =IF(E53="Straight Line",1/C53,IF(E53="Declining Balance",1/C53*2,1)) -> 0.2 | E53: ='Tax value Roll Fwd by Tax Group'!D379 -> Declining Balance
A54: ='Tax value Roll Fwd by Tax Group'!A380 -> Repairs | B54: ='Tax value Roll Fwd by Tax Group'!R459 -> 0 | C54: ='Tax value Roll Fwd by Tax Group'!C380 -> 0 | D54: 1 | E54: ='Tax value Roll Fwd by Tax Group'!D380 -> Fully Deductible
B55: =SUM(B50:B54) -> 55.20219026
A56: Check | B56: =B55-'Tax value Roll Fwd by Tax Group'!R468 -> 0
A58: Capex 2008 to 2012
A59: Group 6 Asset Class | B59: 2013 OAV $m (MOD) | C59: Depn Life | D59: Depn rate | E59: Depn Method
A60: ='Tax value Roll Fwd by Tax Group'!A476 -> Mains & Services | B60: ='Tax value Roll Fwd by Tax Group'!R499 -> 131.9625556 | C60: ='Tax value Roll Fwd by Tax Group'!C476 -> 20 | D60: =IF(E60="Straight Line",1/C60,IF(E60="Declining Balance",1/C60*2,1)) -> 0.1 | E60: ='Tax value Roll Fwd by Tax Group'!D476 -> Declining Balance
A61: ='Tax value Roll Fwd by Tax Group'!A477 -> Meters Domestic | B61: ='Tax value Roll Fwd by Tax Group'!R514 -> 6.871722409 | C61: ='Tax value Roll Fwd by Tax Group'!C477 -> 4 | D61: =IF(E61="Straight Line",1/C61,IF(E61="Declining Balance",1/C61*1.5,1)) -> 0.375 | E61: ='Tax value Roll Fwd by Tax Group'!D477 -> Declining Balance
A62: ='Tax value Roll Fwd by Tax Group'!A478 -> Meters Industrial & Commercial | B62: ='Tax value Roll Fwd by Tax Group'!R529 -> 3.355338962 | C62: ='Tax value Roll Fwd by Tax Group'!C478 -> 15 | D62: =IF(E62="Straight Line",1/C62,IF(E62="Declining Balance",1/C62*2,1)) -> 0.1333333333 | E62: ='Tax value Roll Fwd by Tax Group'!D478 -> Declining Balance
A63: ='Tax value Roll Fwd by Tax Group'!A479 -> Land & Buildings | B63: ='Tax value Roll Fwd by Tax Group'!R544 -> 0.093487779 | C63: ='Tax value Roll Fwd by Tax Group'!C479 -> 40 | D63: =IF(E63="Straight Line",1/C63,IF(E63="Declining Balance",1/C63*2,1)) -> 0.025 | E63: ='Tax value Roll Fwd by Tax Group'!D479 -> Straight Line
A64: ='Tax value Roll Fwd by Tax Group'!A480 -> Other Assets | B64: ='Tax value Roll Fwd by Tax Group'!R559 -> 23.43049921 | C64: ='Tax value Roll Fwd by Tax Group'!C480 -> 10 | D64: 0.2 | E64: ='Tax value Roll Fwd by Tax Group'!D480 -> Declining Balance
A65: ='Tax value Roll Fwd by Tax Group'!A481 -> Repairs | B65: ='Tax value Roll Fwd by Tax Group'!R574 -> 0 | C65: ='Tax value Roll Fwd by Tax Group'!C481 -> 0 | D65: 1 | E65: ='Tax value Roll Fwd by Tax Group'!D481 -> Fully Deductible
B66: =SUM(B60:B65) -> 165.713604
A67: Check | B67: =B66-'Tax value Roll Fwd by Tax Group'!R583 -> 0
A71: Total 2013 OAV $m (MOD) | B71: =SUM(B15,B25,B35,B45,B55,B66) -> 343.7488472
A72: Check | B72: =B71-SUM('Tax value Roll Fwd by Tax Group'!R64,'Tax value Roll Fwd by Tax Group'!R165,'Tax value Roll Fwd by Tax Group'!R266,'Tax value Roll Fwd by Tax Group'!R367,'Tax value Roll Fwd by Tax Group'!R468,'Tax value Roll Fwd by Tax Group'!R583) -> 0
